Workbook

Sheet 1. Info
AB1: Algoma Power Inc.
AB2: Atikokan Hydro Inc.
AB3: Attawapiskat Power Corporation
AB4: Bluewater Power Distribution Corp.
AB5: Brant County Power
AB6: Brantford Power Inc.
AB7: Burlington Hydro Inc.
AB8: Cambridge and North Dumfries Hydro
AB9: Canadian Niagara Power Inc. – Eastern Ontario Power/Fort Erie/Port Colborne
AB10: Centre Wellington Hydro Ltd.
AB11: Chapleau Public Utilities Corporation
AB12: COLLUS Power Corp.
AB13: Cooperative Hydro Embrun Inc.
AB14: E.L.K. Energy Inc.
C15: Utility Name | D15: Haldimand County Hydro Inc. | AB15: Enersource Hydro Mississauga Inc.
AB16: Entegrus Powerlines Inc.
C17: Service Territory | AB17: ENWIN Utilities Ltd.
AB18: Erie Thames Powerlines Corp.
C19: Assigned EB Number | D19: EB-2013-0134 | AB19: Espanola Regional Hydro Distribution Corporation
AB20: Essex Powerlines Corporation
C21: Name and Title | D21: Jacqueline A. Scott, Finance Manager | AB21: Festival Hydro Inc.
AB22: Fort Albany Power Corporation
C23: Phone Number | D23: 905-765-5211 ext. 2237 | AB23: Fort Frances Power Corporation
AB24: Greater Sudbury Hydro Inc.
C25: Email Address | D25: jscott@hchydro.ca | AB25: Grimsby Power Inc.
AB26: Guelph Hydro Electric Systems Inc.
C27: Date | D27: 11/15/2013 - Revised 03/04/14 | AB27: Haldimand County Hydro Inc.
AB28: Halton Hills Hydro Inc.
C29: Last COS Re-based Year | D29: 2010 | AB29: Hearst Power Distribution Co. Ltd.
AB30: Horizon Utilities Corporation
AB31: Hydro 2000 Inc.
A32: Note: Drop-down lists are shaded blue; Input cells are shaded green. | AB32: Hydro Hawkesbury Inc.
AB33: Hydro One Brampton Networks Inc.
AB34: Hydro One Networks Inc.
AB35: Hydro One Remote Communities Inc.
AB36: Hydro Ottawa Limited
AB37: Innisfil Hydro Dist. Systems Limited
AB38: Kashechewan Power Corporation
AB39: Kenora Hydro Electric Corporation Ltd.
AB40: Kingston Hydro Corporation
AB41: Kitchener-Wilmot Hydro Inc.
AB42: Lakefront Utilities Inc.
AB43: Lakeland Power Distribution Ltd.
AB44: London Hydro Inc.
AB45: Midland Power Utility Corporation
AB46: Milton Hydro Distribution Inc.
AB47: Newmarket – Tay Power Distribution Ltd.
AB48: Niagara Peninsula Energy Inc.
AB49: Niagara-on-the-Lake Hydro Inc.
AB50: Norfolk Power Distribution Ltd.
AB51: North Bay Hydro Distribution Limited
AB52: Northern Ontario Wires Inc.
AB53: Oakville Hydro Distribution Inc.
AB54: Orangeville Hydro Limited
AB55: Orillia Power Distribution Corp.
AB56: Oshawa PUC Networks Inc.
AB57: Ottawa River Power Corporation
AB58: Parry Sound Power Corporation
AB59: Peterborough Distribution Inc.
AB60: PowerStream Inc.
AB61: PUC Distribution Inc.
AB62: Renfrew Hydro Inc.
AB63: Rideau St. Lawrence Distribution Inc.
AB64: St. Thomas Energy Inc.
AB65: Sioux Lookout Hydro Inc.
AB66: Thunder Bay Hydro Electricity Distribution
AB67: Tillsonburg Hydro Inc.
AB68: Toronto Hydro-Electric System Limited
AB69: Veridian Connections Inc.
AB70: Wasaga Distribution Inc.
AB71: Waterloo North Hydro Inc.
AB72: Welland Hydro Electric System Corp.
AB73: Wellington North Power Inc.
AB74: West Coast Huron Energy Inc.
AB75: Westario Power Inc.
AB76: Whitby Hydro Electric Corporation
AB77: Woodstock Hydro Services Inc.

Sheet 2. Table of Contents
D20: 1. Info | I20: 7. Current Wholesale
D22: 2. Table of Contents | I22: 8. Forecast Wholesale
D24: 3. Rate Classes | I24: 9. Adj Network to Current WS
D26: 4. RRR Data | I26: 10. Adj Conn. to Current WS
D28: 5. UTRs and Sub-Transmission | I28: 11. Adj Network to Forecast WS
D30: 6. Historical Wholesale | I30: 12. Adj Conn. to Forecast WS
I32: 13. Final 2013 RTS Rates

Sheet 3. Rate Classes
C13: 1. Select the appropriate rate classes that appear on your most recent Board-Approved Tariff of Rates and Charges. 2. Enter the RTS Network and Connection Rate as it appears on the Tariff of Rates and Charges
C22: Rate Class | H22: Unit | J22: RTSR-Network | M22: RTSR-Connection
C24: Residential | H24: kWh | J24: 0.0065 | M24: 0.0048 | Q24: =IF(OR(ISBLANK(C24), ISERROR(FIND("Choose", C24))=FALSE), 0, 1) -> 1 | R24: ="C" & ROW(C24) -> C24 | S24: =IF(OR(C24="General Service Intermediate Rate Class 1,000 To 4,999 kW (formerly General Service > 50 kW Customers)", C24="General Service Intermediate Rate Class 1,000 To 4,999 kW (formerly Large Use Customers)"), "x", "") ->  | AB24: Choose Rate Class
C25: General Service Less Than 50 kW | H25: kWh | J25: 0.0058 | M25: 0.0044 | Q25: 1 | R25: C25 | S25: =IF(OR(C25="General Service Intermediate Rate Class 1,000 To 4,999 kW (formerly General Service > 50 kW Customers)", C25="General Service Intermediate Rate Class 1,000 To 4,999 kW (formerly Large Use Customers)"), "x", "") ->  | AB25: Residential
C26: General Service 50 to 4,999 kW | H26: kW | J26: 2.483 | M26: 1.8646 | Q26: 1 | R26: C26 | AB26: Residential Regular
C27: Unmetered Scattered Load | H27: kWh | J27: 0.0058 | M27: 0.0044 | Q27: 1 | R27: C27 | AB27: Residential Urban
C28: Sentinel Lighting | H28: kW | J28: 1.8025 | M28: 1.3675 | Q28: 1 | R28: C28 | AB28: Residential Urban Year-Round
C29: Street Lighting | H29: kW | J29: 1.7934 | M29: 1.3395 | Q29: 1 | R29: C29 | AB29: Residential Suburban
C30: Choose Rate Class | Q30: 0 | R30: C30 | AB30: Residential Suburban Seasonal
C31: Choose Rate Class | Q31: 0 | R31: C31 | AB31: Residential Suburban Year Round
C32: Choose Rate Class | Q32: 0 | R32: C32 | AB32: Residential - Time of Use
C33: Choose Rate Class | Q33: 0 | R33: C33 | AB33: Residential - Hensall
C34: Choose Rate Class | Q34: 0 | R34: C34 | AB34: Residential – High Density [R1]
C35: Choose Rate Class | Q35: 0 | R35: C35 | AB35: Residential – Normal Density [R2]
C36: Choose Rate Class | Q36: 0 | R36: C36 | AB36: Seasonal Residential – High Density [R3]
C37: Choose Rate Class | Q37: 0 | R37: C37 | AB37: Seasonal Residential – Normal Density [R4]
C38: Choose Rate Class | Q38: 0 | R38: C38 | AB38: Residential – Urban [UR]
C39: Choose Rate Class | Q39: 0 | R39: C39
C40: Choose Rate Class | Q40: 0 | R40: C40 | AB40: General Service Less Than 50 kW
C41: Choose Rate Class | Q41: 0 | R41: C41 | AB41: General Service Less Than 50 kW – Single Phase energy-billed [G1]
C42: Choose Rate Class | Q42: 0 | R42: C42 | AB42: General Service Less Than 50 kW – Three Phase energy-billed [G3]
C43: Choose Rate Class | Q43: 0 | R43: C43 | AB43: General Service Less Than 50 kW – Transmission Class energy-billed [T]
C44: Choose Rate Class | Q44: 0 | R44: C44 | AB44: General Service Less Than 50 kW – Urban energy-billed [UG]
C45: Choose Rate Class | Q45: 0 | R45: C45 | AB45: Westport Sewage Treatment Plant
S46: =COUNTIF(S24:S45, "x") -> 0 | AB46: Small Commercial and USL - per meter
AB47: Small Commercial and USL - per connection
AB48: Farms – Single Phase energy-billed [F1]
AB50: General Service 50 to 499 kW
AB51: General Service 50 to 699 kW
AB52: General Service 50 to 999 kW
AB53: General Service 50 to 999 kW - Interval Metered
AB54: General Service 50 to 1,000 kW
AB55: General Service 50 to 1,000 kW - Interval Meters
AB56: General Service 50 to 1,000 kW - Non Interval Meters
AB57: General Service 50 to 1,499 kW
AB58: General Service 50 to 1,499 kW - Interval Metered
AB59: General Service 50 to 2,499 kW
AB60: General Service 50 to 2,999 kW
AB61: General Service 50 to 2,999 kW - Time of Use
AB62: General Service 50 to 4,999 kW
AB63: General Service 50 to 4,999 kW – Interval Metered
AB64: General Service 50 to 4,999 kW - Time of Use
AB65: General Service 50 to 4,999 kW (CoGeneration)
AB66: General Service 50 to 4,999 kW (formerly Time of Use)
AB67: General Service 500 to 4,999 kW
AB68: General Service 700 to 4,999 kW
AB69: General Service 1,000 to 2,999 kW
AB70: General Service 1,000 to 4,999 kW
AB71: General Service 1,000 to 4,999 kW - Interval Meters
AB72: General Service 1,000 To 4,999 kW (co-generation)
AB73: General Service Greater Than 1,000 kW
AB74: General Service Intermediate Rate Class 1,000 To 4,999 kW (formerly Large Use Customers)
AB75: General Service Intermediate Rate Class 1,000 To 4,999 kW (formerly General Service > 50 kW Customers)
AB76: General Service 1,500 to 4,999 kW
AB77: General Service Equal To Or Greater Than 1,500 kW
AB78: General Service Equal To Or Greater Than 1,500 kW - Interval Metered
AB79: General Service Intermediate 1,000 To 4,999 kW
AB80: General Service 2,500 to 4,999 kW
AB81: General Service 3,000 to 4,999 kW
AB82: General Service 3,000 to 4,999 kW - Interval Metered
AB83: General Service 3,000 to 4,999 kW - Intermediate Use
AB84: General Service 3,000 to 4,999 kW - Time of Use
AB85: Intermediate With Self Generation
AB86: General Service - Commercial
AB87: General Service - Institutional
AB88: Farms – Three Phase energy-billed [F3]
AB90: Large Use
AB91: Large Use - Regular
AB92: Large Use > 5000 kW
AB93: Large Use - 3TS
AB94: Large Use - Ford Annex
AB96: Unmetered Scattered Load
AB98: Sentinel Lighting
AB100: Street Lighting
AB102: Embedded Distributor
AB103: Low Voltage Wheeling Charge Rate
AB105: Stand-By
AB106: Standby Power
AB107: Standby Power – INTERIM APPROVAL
AB108: Standby Power - APPROVED ON AN INTERIM BASIS
AB109: Standby - General Service 50 - 1,000 kW
AB110: Standby Power General Service 50 to 1,499 kW
AB111: Standby - General Service 1,000 - 5,000 kW
AB112: Standby Power General Service 1,500 to 4,999 kW
AB113: Standby - Large Use
AB114: Standby Power General Service Large Use
AB115: Standby Distribution Service

Sheet 4. RRR Data
B13: In the green shaded cells, enter the most recent reported RRR billing determinants. Please ensure that billing determinants are non-loss adjusted.
B24: Rate Class | D24: Unit | F24: Non-Loss Adjusted Metered kWh | G24: Non-Loss Adjusted Metered kW | H24: Applicable Loss Factor | J24: Load Factor | L24: Loss Adjusted Billed kWh | M24: Billed kW
B27: =IF('3. Rate Classes'!Q24=1,'3. Rate Classes'!C24, 0) -> Residential | D27: =IF(OR(VLOOKUP($B27, '3. Rate Classes'!$C$24:$H$45,6,0)=0, ISERROR(VLOOKUP($B27, '3. Rate Classes'!$C$24:$H$45,6,0))), "", VLOOKUP($B27, '3. Rate Classes'!$C$24:$H$45,6,0)) -> kWh | F27: 168308353 | H27: 1.068 | J27: =IF(ISERROR(F27/(G27*30.4*24)), "", IF(D27="kW", F27/(G27*30.4*24), "")) ->  | L27: =IF(OR(H27=0, OR(ISBLANK(H27), TRIM(H27)="")), F27, F27*H27) -> 179753321 | M27: =IF(OR(H27=0, OR(ISBLANK(H27), TRIM(H27)="")), G27, G27) -> 0
B28: =IF('3. Rate Classes'!Q25=1,'3. Rate Classes'!C25, 0) -> General Service Less Than 50 kW | D28: =IF(OR(VLOOKUP($B28, '3. Rate Classes'!$C$24:$H$45,6,0)=0, ISERROR(VLOOKUP($B28, '3. Rate Classes'!$C$24:$H$45,6,0))), "", VLOOKUP($B28, '3. Rate Classes'!$C$24:$H$45,6,0)) -> kWh | F28: 56019870 | H28: 1.068 | L28: =IF(OR(H28=0, OR(ISBLANK(H28), TRIM(H28)="")), F28, F28*H28) -> 59829221.16 | M28: =IF(OR(H28=0, OR(ISBLANK(H28), TRIM(H28)="")), G28, G28) -> 0
B29: =IF('3. Rate Classes'!Q26=1,'3. Rate Classes'!C26, 0) -> General Service 50 to 4,999 kW | D29: =IF(OR(VLOOKUP($B29, '3. Rate Classes'!$C$24:$H$45,6,0)=0, ISERROR(VLOOKUP($B29, '3. Rate Classes'!$C$24:$H$45,6,0))), "", VLOOKUP($B29, '3. Rate Classes'!$C$24:$H$45,6,0)) -> kW | F29: 117120197 | G29: 332490 | J29: 0.4828012446 | L29: 117120197 | M29: 332490
B30: =IF('3. Rate Classes'!Q27=1,'3. Rate Classes'!C27, 0) -> Unmetered Scattered Load | D30: =IF(OR(VLOOKUP($B30, '3. Rate Classes'!$C$24:$H$45,6,0)=0, ISERROR(VLOOKUP($B30, '3. Rate Classes'!$C$24:$H$45,6,0))), "", VLOOKUP($B30, '3. Rate Classes'!$C$24:$H$45,6,0)) -> kWh | F30: 389982 | H30: 1.068 | L30: 416500.776 | M30: 0
B31: =IF('3. Rate Classes'!Q28=1,'3. Rate Classes'!C28, 0) -> Sentinel Lighting | D31: =IF(OR(VLOOKUP($B31, '3. Rate Classes'!$C$24:$H$45,6,0)=0, ISERROR(VLOOKUP($B31, '3. Rate Classes'!$C$24:$H$45,6,0))), "", VLOOKUP($B31, '3. Rate Classes'!$C$24:$H$45,6,0)) -> kW | F31: 361875 | G31: 1003 | J31: 0.4945074317 | L31: 361875 | M31: 1003
B32: =IF('3. Rate Classes'!Q29=1,'3. Rate Classes'!C29, 0) -> Street Lighting | D32: =IF(OR(VLOOKUP($B32, '3. Rate Classes'!$C$24:$H$45,6,0)=0, ISERROR(VLOOKUP($B32, '3. Rate Classes'!$C$24:$H$45,6,0))), "", VLOOKUP($B32, '3. Rate Classes'!$C$24:$H$45,6,0)) -> kW | F32: 2398127 | G32: 6665 | J32: 0.4931592684 | L32: 2398127 | M32: 6665
B33: =IF('3. Rate Classes'!Q30=1,'3. Rate Classes'!C30, 0) -> 0 | D33: =IF(OR(VLOOKUP($B33, '3. Rate Classes'!$C$24:$H$45,6,0)=0, ISERROR(VLOOKUP($B33, '3. Rate Classes'!$C$24:$H$45,6,0))), "", VLOOKUP($B33, '3. Rate Classes'!$C$24:$H$45,6,0)) ->  | J33: =IF(ISERROR(F33/(G33*30.4*24)), "", IF(D33="kW", F33/(G33*30.4*24), "")) ->  | L33: 0 | M33: 0
B34: =IF('3. Rate Classes'!Q31=1,'3. Rate Classes'!C31, 0) -> 0 | D34: =IF(OR(VLOOKUP($B34, '3. Rate Classes'!$C$24:$H$45,6,0)=0, ISERROR(VLOOKUP($B34, '3. Rate Classes'!$C$24:$H$45,6,0))), "", VLOOKUP($B34, '3. Rate Classes'!$C$24:$H$45,6,0)) ->  | L34: 0 | M34: 0
B35: =IF('3. Rate Classes'!Q32=1,'3. Rate Classes'!C32, 0) -> 0 | D35: =IF(OR(VLOOKUP($B35, '3. Rate Classes'!$C$24:$H$45,6,0)=0, ISERROR(VLOOKUP($B35, '3. Rate Classes'!$C$24:$H$45,6,0))), "", VLOOKUP($B35, '3. Rate Classes'!$C$24:$H$45,6,0)) ->  | L35: 0 | M35: 0
B36: =IF('3. Rate Classes'!Q33=1,'3. Rate Classes'!C33, 0) -> 0 | D36: =IF(OR(VLOOKUP($B36, '3. Rate Classes'!$C$24:$H$45,6,0)=0, ISERROR(VLOOKUP($B36, '3. Rate Classes'!$C$24:$H$45,6,0))), "", VLOOKUP($B36, '3. Rate Classes'!$C$24:$H$45,6,0)) ->  | L36: 0 | M36: 0
B37: =IF('3. Rate Classes'!Q34=1,'3. Rate Classes'!C34, 0) -> 0 | D37: =IF(OR(VLOOKUP($B37, '3. Rate Classes'!$C$24:$H$45,6,0)=0, ISERROR(VLOOKUP($B37, '3. Rate Classes'!$C$24:$H$45,6,0))), "", VLOOKUP($B37, '3. Rate Classes'!$C$24:$H$45,6,0)) ->  | L37: 0 | M37: 0
B38: =IF('3. Rate Classes'!Q35=1,'3. Rate Classes'!C35, 0) -> 0 | D38: =IF(OR(VLOOKUP($B38, '3. Rate Classes'!$C$24:$H$45,6,0)=0, ISERROR(VLOOKUP($B38, '3. Rate Classes'!$C$24:$H$45,6,0))), "", VLOOKUP($B38, '3. Rate Classes'!$C$24:$H$45,6,0)) ->  | L38: 0 | M38: 0
B39: =IF('3. Rate Classes'!Q36=1,'3. Rate Classes'!C36, 0) -> 0 | D39: =IF(OR(VLOOKUP($B39, '3. Rate Classes'!$C$24:$H$45,6,0)=0, ISERROR(VLOOKUP($B39, '3. Rate Classes'!$C$24:$H$45,6,0))), "", VLOOKUP($B39, '3. Rate Classes'!$C$24:$H$45,6,0)) ->  | L39: 0 | M39: 0
B40: =IF('3. Rate Classes'!Q37=1,'3. Rate Classes'!C37, 0) -> 0 | D40: =IF(OR(VLOOKUP($B40, '3. Rate Classes'!$C$24:$H$45,6,0)=0, ISERROR(VLOOKUP($B40, '3. Rate Classes'!$C$24:$H$45,6,0))), "", VLOOKUP($B40, '3. Rate Classes'!$C$24:$H$45,6,0)) ->  | L40: 0 | M40: 0
B41: =IF('3. Rate Classes'!Q38=1,'3. Rate Classes'!C38, 0) -> 0 | D41: =IF(OR(VLOOKUP($B41, '3. Rate Classes'!$C$24:$H$45,6,0)=0, ISERROR(VLOOKUP($B41, '3. Rate Classes'!$C$24:$H$45,6,0))), "", VLOOKUP($B41, '3. Rate Classes'!$C$24:$H$45,6,0)) ->  | L41: 0 | M41: 0
B42: =IF('3. Rate Classes'!Q39=1,'3. Rate Classes'!C39, 0) -> 0 | D42: =IF(OR(VLOOKUP($B42, '3. Rate Classes'!$C$24:$H$45,6,0)=0, ISERROR(VLOOKUP($B42, '3. Rate Classes'!$C$24:$H$45,6,0))), "", VLOOKUP($B42, '3. Rate Classes'!$C$24:$H$45,6,0)) ->  | L42: 0 | M42: 0
B43: =IF('3. Rate Classes'!Q40=1,'3. Rate Classes'!C40, 0) -> 0 | D43: =IF(OR(VLOOKUP($B43, '3. Rate Classes'!$C$24:$H$45,6,0)=0, ISERROR(VLOOKUP($B43, '3. Rate Classes'!$C$24:$H$45,6,0))), "", VLOOKUP($B43, '3. Rate Classes'!$C$24:$H$45,6,0)) ->  | L43: 0 | M43: 0
B44: =IF('3. Rate Classes'!Q41=1,'3. Rate Classes'!C41, 0) -> 0 | D44: =IF(OR(VLOOKUP($B44, '3. Rate Classes'!$C$24:$H$45,6,0)=0, ISERROR(VLOOKUP($B44, '3. Rate Classes'!$C$24:$H$45,6,0))), "", VLOOKUP($B44, '3. Rate Classes'!$C$24:$H$45,6,0)) ->  | L44: 0 | M44: 0
B45: =IF('3. Rate Classes'!Q42=1,'3. Rate Classes'!C42, 0) -> 0 | D45: =IF(OR(VLOOKUP($B45, '3. Rate Classes'!$C$24:$H$45,6,0)=0, ISERROR(VLOOKUP($B45, '3. Rate Classes'!$C$24:$H$45,6,0))), "", VLOOKUP($B45, '3. Rate Classes'!$C$24:$H$45,6,0)) ->  | L45: 0 | M45: 0
B46: =IF('3. Rate Classes'!Q43=1,'3. Rate Classes'!C43, 0) -> 0 | D46: =IF(OR(VLOOKUP($B46, '3. Rate Classes'!$C$24:$H$45,6,0)=0, ISERROR(VLOOKUP($B46, '3. Rate Classes'!$C$24:$H$45,6,0))), "", VLOOKUP($B46, '3. Rate Classes'!$C$24:$H$45,6,0)) ->  | L46: 0 | M46: 0
B47: =IF('3. Rate Classes'!Q44=1,'3. Rate Classes'!C44, 0) -> 0 | D47: =IF(OR(VLOOKUP($B47, '3. Rate Classes'!$C$24:$H$45,6,0)=0, ISERROR(VLOOKUP($B47, '3. Rate Classes'!$C$24:$H$45,6,0))), "", VLOOKUP($B47, '3. Rate Classes'!$C$24:$H$45,6,0)) ->  | L47: 0 | M47: 0
B48: =IF('3. Rate Classes'!Q45=1,'3. Rate Classes'!C45, 0) -> 0 | D48: =IF(OR(VLOOKUP($B48, '3. Rate Classes'!$C$24:$H$45,6,0)=0, ISERROR(VLOOKUP($B48, '3. Rate Classes'!$C$24:$H$45,6,0))), "", VLOOKUP($B48, '3. Rate Classes'!$C$24:$H$45,6,0)) ->  | L48: 0 | M48: 0

Sheet 5. UTRs and Sub-Transmission
B18: Uniform Transmission Rates | C18: Unit | E18: Effective January 1, 2012 | G18: Effective January 1, 2013 | I18: Effective January 1, 2014
B20: Rate Description | E20: Rate | G20: Rate | I20: Rate
B22: Network Service Rate | C22: kW | E22: 3.57 | G22: 3.63 | I22: 3.82
B24: Line Connection Service Rate | C24: kW | E24: 0.8 | G24: 0.75 | I24: 0.82
B26: Transformation Connection Service Rate | C26: kW | E26: 1.86 | G26: 1.85 | I26: 1.98
B29: Hydro One Sub-Transmission Rates | C29: Unit | E29: Effective January 1, 2012 | G29: Effective January 1, 2013 | I29: Effective January 1, 2014
B33: Rate Description | E33: Rate | G33: Rate | I33: Rate
B35: Network Service Rate | C35: kW | E35: 2.65 | G35: 3.18 | I35: 3.23
B37: Line Connection Service Rate | C37: kW | E37: 0.64 | G37: 0.7 | I37: 0.65
B39: Transformation Connection Service Rate | C39: kW | E39: 1.5 | G39: 1.63 | I39: 1.62
B41: Both Line and Transformation Connection Service Rate | C41: kW | E41: =E39+E37 -> 2.14 | G41: =G39+G37 -> 2.33 | I41: =I39+I37 -> 2.27
B44: If needed , add extra host here (I) | C44: Unit | E44: Effective January 1, 2012 | G44: Effective January 1, 2013 | I44: Effective January 1, 2014
B48: Rate Description | E48: Rate | G48: Rate | I48: Rate
B50: Network Service Rate | C50: kW
B52: Line Connection Service Rate | C52: kW
B54: Transformation Connection Service Rate | C54: kW
B56: Both Line and Transformation Connection Service Rate | C56: kW | E56: =E54+E52 -> 0 | G56: =G54+G52 -> 0 | I56: =I54+I52 -> 0
B59: If needed , add extra host here (II) | C59: Unit | E59: Effective January 1, 2012 | G59: Effective January 1, 2013 | I59: Effective January 1, 2014
B63: Rate Description | E63: Rate | G63: Rate | I63: Rate
B65: Network Service Rate | C65: kW
B67: Line Connection Service Rate | C67: kW
B69: Transformation Connection Service Rate | C69: kW
B71: Both Line and Transformation Connection Service Rate | C71: kW | E71: =E69+E67 -> 0 | G71: =G69+G67 -> 0 | I71: =I69+I67 -> 0
B75: Hydro One Sub-Transmission Rate Rider 9A | C75: Unit | E75: Effective January 1, 2012 | G75: Effective January 1, 2013 | I75: Effective January 1, 2014
B77: Rate Description | E77: Rate | G77: Rate | I77: Rate
B79: RSVA Transmission network – 4714 – which affects 1584 | C79: kW | E79: 0 | G79: 0.1465 | I79: 0.1465
B81: RSVA Transmission connection – 4716 – which affects 1586 | C81: kW | E81: 0 | G81: 0.0667 | I81: 0.0667
B83: RSVA LV – 4750 – which affects 1550 | C83: kW | E83: 0 | G83: 0.0475 | I83: 0.0475
B85: RARA 1 – 2252 – which affects 1590 | C85: kW | E85: 0 | G85: 0.0419 | I85: 0.0419
B87: RARA 1 – 2252 – which affects 1590 (2008) | C87: kW | E87: 0 | G87: -0.027 | I87: -0.027
B89: RARA 1 – 2252 – which affects 1590 (2009) | C89: kW | E89: 0 | G89: -0.0006 | I89: -0.0006
B91: Hydro One Sub-Transmission Rate Rider 9A | C91: kW | E91: =SUM(E79:E89) -> 0 | G91: =SUM(G79:G89) -> 0.275 | I91: =SUM(I79:I89) -> 0.275
E94: Historical 2012 | G94: Current 2013 | I94: Forecast 2014
B95: Transformer Allowance Credit (if applicable, enter as a negative value) | C95: $

Sheet 6. Historical Wholesale
B21: IESO | D21: Network | H21: Line Connection | L21: Transformation Connection | P21: Total Line
B22: Month | D22: Units Billed | E22: Rate | F22: Amount | H22: Units Billed | I22: Rate | J22: Amount | L22: Units Billed | M22: Rate | N22: Amount | P22: Amount
B24: January | D24: =53702-491.805 -> 53210.195 | E24: =IF(D24<>0,F24/D24,0) -> 3.569995186 | F24: =191716.14-1756 -> 189960.14 | H24: =56415-538.173 -> 55876.827 | I24: =IF(H24<>0,J24/H24,0) -> 0.7999999714 | J24: =ROUND(H24*0.8,2) -> 44701.46 | L24: =56415-538.173 -> 55876.827 | M24: =IF(L24<>0,N24/L24,0) -> 1.860000032 | N24: =ROUND(L24*1.86,2) -> 103930.9 | P24: =J24+N24 -> 148632.36
B25: February | D25: =46222-480.483 -> 45741.517 | E25: =IF(D25<>0,F25/D25,0) -> 3.57000709 | F25: =165012.54-1715 -> 163297.54 | H25: =52118-515.988 -> 51602.012 | I25: =IF(H25<>0,J25/H25,0) -> 0.8000000078 | J25: =ROUND(H25*0.8,2) -> 41281.61 | L25: =52118-515.988 -> 51602.012 | M25: =IF(L25<>0,N25/L25,0) -> 1.859999955 | N25: =ROUND(L25*1.86,2) -> 95979.74 | P25: 137261.35
B26: March | D26: =46100-446.049 -> 45653.951 | E26: 3.570008651 | F26: =164577-1592 -> 162985 | H26: =51220-460.098 -> 50759.902 | I26: 0.7999999685 | J26: 40607.92 | L26: =51220-460.098 -> 50759.902 | M26: 1.860000045 | N26: 94413.42 | P26: 135021.34
B27: April | D27: =62218-29662.28*1.006-1950.255 -> 30427.49132 | E27: 3.570013343 | F27: =222118.26-106529.71-6962 -> 108626.55 | H27: =73695-29662.28*1.006-1950.255 -> 41904.49132 | I27: 0.7999999271 | J27: 33523.59 | L27: =73695-29662.28*1.006-1950.255 -> 41904.49132 | M27: 1.859999908 | N27: 77942.35 | P27: 111465.94
B28: May | D28: =67841-24685.77*1.006-7751.29 -> 35255.82538 | E28: 3.570002933 | F28: =242192.37-88656.97-27672 -> 125863.4 | H28: =75418-24685.77*1.006-8975.04 -> 41609.07538 | I28: 0.7999999927 | J28: 33287.26 | L28: =75418-24685.77*1.006-8975.04 -> 41609.07538 | M28: 1.859999995 | N28: 77392.88 | P28: 110680.14
B29: June | D29: =62536-9067.76 -> 53468.24 | E29: 3.56999819 | F29: =223253.52-32372 -> 190881.52 | H29: =66823-9424.34 -> 57398.66 | I29: 0.8000000348 | J29: 45918.93 | L29: =66823-9424.34 -> 57398.66 | M29: 1.860000042 | N29: 106761.51 | P29: 152680.44
B30: July | D30: =67028-412.29 -> 66615.71 | E30: 3.569998128 | F30: =239289.96-1472 -> 237817.96 | H30: =70907-9230.16 -> 61676.84 | I30: 0.7999999676 | J30: 49341.47 | L30: =70907-9230.16 -> 61676.84 | M30: 1.859999961 | N30: 114718.92 | P30: 164060.39
B31: August | D31: =62850-412.848 -> 62437.152 | E31: 3.569997876 | F31: =224374.5-1474 -> 222900.5 | H31: =72338-9545.75 -> 62792.25 | I31: 0.8 | J31: 50233.8 | L31: =72338-9545.75 -> 62792.25 | M31: 1.86000008 | N31: 116793.59 | P31: 167027.39
B32: September | D32: =59115-410.148 -> 58704.852 | E32: 3.57000389 | F32: =211040.55-1464 -> 209576.55 | H32: =64641-9304.71 -> 55336.29 | I32: 0.7999999639 | J32: 44269.03 | L32: =64641-9304.71 -> 55336.29 | M32: 1.860000011 | N32: 102925.5 | P32: 147194.53
B33: October | D33: =48695-9603.09 -> 39091.91 | E33: 3.570000801 | F33: =173841.15-34283 -> 139558.15 | H33: =54558-9603.09 -> 44954.91 | I33: 0.8000000445 | J33: 35963.93 | L33: =54558-9603.09 -> 44954.91 | M33: 1.859999942 | N33: 83616.13 | P33: 119580.06
B34: November | D34: =50656-483.129 -> 50172.871 | E34: 3.569995426 | F34: =180841.92-1725 -> 179116.92 | H34: =53066-505.494 -> 52560.506 | I34: 0.7999999087 | J34: 42048.4 | L34: =53066-505.494 -> 52560.506 | M34: 1.859999978 | N34: 97762.54 | P34: 139810.94
B35: December | D35: =50716-440.28 -> 50275.72 | E35: 3.569996014 | F35: =181056.12-1572 -> 179484.12 | H35: =55415-509.346 -> 54905.654 | I35: 0.7999999417 | J35: 43924.52 | L35: =55415-509.346 -> 54905.654 | M35: 1.860000065 | N35: 102124.52 | P35: 146049.04
B37: Total | D37: =SUM(D24:D35) -> 591055.4347 | E37: =IF(D37<>0,F37/D37,0) -> 3.570000758 | F37: =SUM(F24:F35) -> 2110068.35 | H37: =SUM(H24:H35) -> 631377.4177 | I37: =IF(H37<>0,J37/H37,0) -> 0.7999999776 | J37: =SUM(J24:J35) -> 505101.92 | L37: =SUM(L24:L35) -> 631377.4177 | M37: =IF(L37<>0,N37/L37,0) -> 1.860000005 | N37: =SUM(N24:N35) -> 1174362 | P37: =SUM(P24:P35) -> 1679463.92
B39: Hydro One | D39: Network | H39: Line Connection | L39: Transformation Connection | P39: Total Line
B41: Month | D41: Units Billed | E41: Rate | F41: Amount | H41: Units Billed | I41: Rate | J41: Amount | L41: Units Billed | M41: Rate | N41: Amount | P41: Amount
B43: January | D43: =18987-16190.698*1.006 -> 2699.157812 | E43: =IF(D43<>0,F43/D43,0) -> 2.649919159 | F43: =50315.55-43163 -> 7152.55 | H43: =19006-16234.058*1.006 -> 2674.537652 | I43: =IF(H43<>0,J43/H43,0) -> 0.639998468 | J43: =ROUND(H43*0.64,2) -> 1711.7 | L43: =19006-16234.058*1.006 -> 2674.537652 | M43: =IF(L43<>0,N43/L43,0) -> 1.500001317 | N43: =ROUND(L43*1.5,2) -> 4011.81 | P43: =J43+N43 -> 5723.51
B44: February | D44: =18216-15960.289*1.006 -> 2159.949266 | E44: =IF(D44<>0,F44/D44,0) -> 2.64978446 | F44: =48272.4-42549 -> 5723.4 | H44: =18243-16279.009*1.006 -> 1866.316946 | I44: =IF(H44<>0,J44/H44,0) -> 0.6399984754 | J44: =ROUND(H44*0.64,2) -> 1194.44 | L44: =18243-16279.009*1.006 -> 1866.316946 | M44: =IF(L44<>0,N44/L44,0) -> 1.500002455 | N44: =ROUND(L44*1.5,2) -> 2799.48 | P44: 3993.92
B45: March | D45: =19500-15145.179*1.006 -> 4263.949926 | E45: 2.65012493 | F45: =51675-40375 -> 11300 | H45: =19580-15276.699*1.006 -> 4211.640806 | I45: 0.6399999725 | J45: 2695.45 | L45: =19580-15276.699*1.006 -> 4211.640806 | M45: 1.499999713 | N45: 6317.46 | P45: 9012.91
B46: April | D46: =23715-14913.934*1.006 -> 8711.582396 | E46: 2.650006503 | F46: =62844.75-39759 -> 23085.75 | H46: =23906-15081.534*1.006 -> 8733.976796 | I46: 0.6400005554 | J46: 5589.75 | L46: =23906-15081.534*1.006 -> 8733.976796 | M46: 1.50000055 | N46: 13100.97 | P46: 18690.72
B47: May | D47: =18934-15365.087*1.006 -> 3476.722478 | E47: 2.649938285 | F47: =50175.1-40962 -> 9213.1 | H47: =18984-15412.687*1.006 -> 3478.836878 | I47: 0.6400012642 | J47: 2226.46 | L47: =18984-15412.687*1.006 -> 3478.836878 | M47: 1.500001346 | N47: 5218.26 | P47: 7444.72
B48: June | D48: =21205-15604.199*1.006 -> 5507.175806 | E48: 2.650042511 | F48: =56193.25-41599 -> 14594.25 | H48: =21263-15617.639*1.006 -> 5551.655166 | I48: 0.640000125 | J48: 3553.06 | L48: =21263-15617.639*1.006 -> 5551.655166 | M48: 1.499999505 | N48: 8327.48 | P48: 11880.54
B49: July | D49: =26021-15857.414*1.006 -> 10068.44152 | E49: 2.650027808 | F49: =68955.65-42274 -> 26681.65 | H49: =26121-15887.094*1.006 -> 10138.58344 | I49: 0.6399996647 | J49: 6488.69 | L49: =26121-15887.094*1.006 -> 10138.58344 | M49: 1.500000478 | N49: 15207.88 | P49: 21696.57
B50: August | D50: =17979-15430.1*1.006 -> 2456.3194 | E50: 2.650042173 | F50: =47644.35-41135 -> 6509.35 | H50: =18273-15545.86*1.006 -> 2633.86484 | I50: 0.6399986721 | J50: 1685.67 | L50: =18273-15545.86*1.006 -> 2633.86484 | M50: 1.50000104 | N50: 3950.8 | P50: 5636.47
B51: September | D51: =16081-15124.445*1.006 -> 865.80833 | E51: 2.650297901 | F51: =42614.65-40320 -> 2294.65 | H51: =17320-15316.525*1.006 -> 1911.57585 | I51: 0.6400007617 | J51: 1223.41 | L51: =17320-15316.525*1.006 -> 1911.57585 | M51: 1.499998025 | N51: 2867.36 | P51: 4090.77
B52: October | D52: =23959-14486.803*1.006 -> 9385.276182 | E52: 2.650039223 | F52: =63491.35-38620 -> 24871.35 | H52: =24071-14522.563*1.006 -> 9461.301622 | I52: 0.6399996789 | J52: 6055.23 | L52: =24071-14522.563*1.006 -> 9461.301622 | M52: 1.499999743 | N52: 14191.95 | P52: 20247.18
B53: November | D53: =20533-15200.066*1.006 -> 5241.733604 | E53: 2.649972519 | F53: =54412.45-40522 -> 13890.45 | H53: =20589-15218.386*1.006 -> 5279.303684 | I53: 0.6399991746 | J53: 3378.75 | L53: =20589-15218.386*1.006 -> 5279.303684 | M53: 1.500000847 | N53: 7918.96 | P53: 11297.71
B54: December | D54: =23289-15269.263*1.006 -> 7928.121422 | E54: 3.074646401 | F54: =65082.17-40706 -> 24376.17 | H54: =23291-15361.103*1.006 -> 7837.730382 | I54: 0.6886496137 | J54: =ROUND((23291*0.64*0.727273)+(23291*0.7*0.272727),2)-ROUND(15453*0.64,2) -> 5397.45 | L54: =23291-15361.103*1.006 -> 7837.730382 | M54: 1.605409907 | N54: =ROUND((23291*1.5*0.727273)+(23291*1.63*0.272727),2)-ROUND(15453*1.5,2) -> 12582.77 | P54: 17980.22
B56: Total | D56: =SUM(D43:D54) -> 62764.23814 | E56: =IF(D56<>0,F56/D56,0) -> 2.703652192 | F56: =SUM(F43:F54) -> 169692.67 | H56: =SUM(H43:H54) -> 63779.32406 | I56: =IF(H56<>0,J56/H56,0) -> 0.6459783105 | J56: =SUM(J43:J54) -> 41200.06 | L56: =SUM(L43:L54) -> 63779.32406 | M56: =IF(L56<>0,N56/L56,0) -> 1.512953946 | N56: =SUM(N43:N54) -> 96495.18 | P56: =SUM(P43:P54) -> 137695.24
B58: Add Extra Host Here (I) | D58: Network | H58: Line Connection | L58: Transformation Connection | P58: Total Line
B59: (if needed)
B60: Month | D60: Units Billed | E60: Rate | F60: Amount | H60: Units Billed | I60: Rate | J60: Amount | L60: Units Billed | M60: Rate | N60: Amount | P60: Amount
B62: January | E62: =IF(D62<>0,F62/D62,0) -> 0 | I62: =IF(H62<>0,J62/H62,0) -> 0 | M62: =IF(L62<>0,N62/L62,0) -> 0 | P62: =J62+N62 -> 0
B63: February | E63: 0 | I63: 0 | M63: 0 | P63: 0
B64: March | E64: 0 | I64: 0 | M64: 0 | P64: 0
B65: April | E65: 0 | I65: 0 | M65: 0 | P65: 0
B66: May | E66: 0 | I66: 0 | M66: 0 | P66: 0
B67: June | E67: 0 | I67: 0 | M67: 0 | P67: 0
B68: July | E68: 0 | I68: 0 | M68: 0 | P68: 0
B69: August | E69: 0 | I69: 0 | M69: 0 | P69: 0
B70: September | E70: 0 | I70: 0 | M70: 0 | P70: 0
B71: October | E71: 0 | I71: 0 | M71: 0 | P71: 0
B72: November | E72: 0 | I72: 0 | M72: 0 | P72: 0
B73: December | E73: 0 | I73: 0 | M73: 0 | P73: 0
B75: Total | D75: =SUM(D62:D73) -> 0 | E75: =IF(D75<>0,F75/D75,0) -> 0 | F75: =SUM(F62:F73) -> 0 | H75: =SUM(H62:H73) -> 0 | I75: =IF(H75<>0,J75/H75,0) -> 0 | J75: =SUM(J62:J73) -> 0 | L75: =SUM(L62:L73) -> 0 | M75: =IF(L75<>0,N75/L75,0) -> 0 | N75: =SUM(N62:N73) -> 0 | P75: =SUM(P62:P73) -> 0
B77: Add Extra Host Here (II) | D77: Network | H77: Line Connection | L77: Transformation Connection | P77: Total Line
B78: (if needed)
B79: Month | D79: Units Billed | E79: Rate | F79: Amount | H79: Units Billed | I79: Rate | J79: Amount | L79: Units Billed | M79: Rate | N79: Amount | P79: Amount
B81: January | E81: =IF(D81<>0,F81/D81,0) -> 0 | I81: =IF(H81<>0,J81/H81,0) -> 0 | M81: =IF(L81<>0,N81/L81,0) -> 0 | P81: =J81+N81 -> 0
B82: February | E82: 0 | I82: 0 | M82: 0 | P82: 0
B83: March | E83: 0 | I83: 0 | M83: 0 | P83: 0
B84: April | E84: 0 | I84: 0 | M84: 0 | P84: 0
B85: May | E85: 0 | I85: 0 | M85: 0 | P85: 0
B86: June | E86: 0 | I86: 0 | M86: 0 | P86: 0
B87: July | E87: 0 | I87: 0 | M87: 0 | P87: 0
B88: August | E88: 0 | I88: 0 | M88: 0 | P88: 0
B89: September | E89: 0 | I89: 0 | M89: 0 | P89: 0
B90: October | E90: 0 | I90: 0 | M90: 0 | P90: 0
B91: November | E91: 0 | I91: 0 | M91: 0 | P91: 0
B92: December | E92: 0 | I92: 0 | M92: 0 | P92: 0
B94: Total | D94: =SUM(D81:D92) -> 0 | E94: =IF(D94<>0,F94/D94,0) -> 0 | F94: =SUM(F81:F92) -> 0 | H94: =SUM(H81:H92) -> 0 | I94: =IF(H94<>0,J94/H94,0) -> 0 | J94: =SUM(J81:J92) -> 0 | L94: =SUM(L81:L92) -> 0 | M94: =IF(L94<>0,N94/L94,0) -> 0 | N94: =SUM(N81:N92) -> 0 | P94: =SUM(P81:P92) -> 0
B96: Total | D96: Network | H96: Line Connection | L96: Transformation Connection | P96: Total Line
B98: Month | D98: Units Billed | E98: Rate | F98: Amount | H98: Units Billed | I98: Rate | J98: Amount | L98: Units Billed | M98: Rate | N98: Amount | P98: Amount
B100: January | D100: =D24+D43+D62+D81 -> 55909.35281 | E100: =IF(D100<>0,F100/D100,0) -> 3.525576314 | F100: =F24+F43+F62+F81 -> 197112.69 | H100: =H24+H43+H62+H81 -> 58551.36465 | I100: =IF(H100<>0,J100/H100,0) -> 0.792691345 | J100: =J24+J43+J62+J81 -> 46413.16 | L100: =L24+L43+L62+L81 -> 58551.36465 | M100: =IF(L100<>0,N100/L100,0) -> 1.843555836 | N100: =N24+N43+N62+N81 -> 107942.71 | P100: =J100+N100 -> 154355.87
B101: February | D101: =D25+D44+D63+D82 -> 47901.46627 | E101: 3.528512866 | F101: =F25+F44+F63+F82 -> 169020.94 | H101: =H25+H44+H63+H82 -> 53468.32895 | I101: 0.7944151395 | J101: =J25+J44+J63+J82 -> 42476.05 | L101: =L25+L44+L63+L82 -> 53468.32895 | M101: 1.847434209 | N101: =N25+N44+N63+N82 -> 98779.22 | P101: 141255.27
B102: March | D102: 49917.90093 | E102: 3.491432868 | F102: 174285 | H102: 54971.54281 | I102: 0.7877415803 | J102: 43303.37 | L102: 54971.54281 | M102: 1.832418645 | N102: 100730.88 | P102: 144034.25
B103: April | D103: 39139.07372 | E103: 3.365238047 | F103: 131712.3 | H103: 50638.46812 | I103: 0.7724036973 | J103: 39113.34 | L103: 50638.46812 | M103: 1.797908258 | N103: 91043.32 | P103: 130156.66
B104: May | D104: 38732.54786 | E104: 3.487415816 | F104: 135076.5 | H104: 45087.91226 | I104: 0.7876550104 | J104: 35513.72 | L104: 45087.91226 | M104: 1.832223668 | N104: 82611.14 | P104: 118124.86
B105: June | D105: 58975.41581 | E105: 3.484091925 | F105: 205475.77 | H105: 62950.31517 | I105: 0.7858894728 | J105: 49471.99 | L105: 62950.31517 | M105: 1.828251212 | N105: 115088.99 | P105: 164560.98
B106: July | D106: 76684.15152 | E106: 3.449208275 | F106: 264499.61 | H106: 71815.42344 | I106: 0.7774118334 | J106: 55830.16 | L106: 71815.42344 | M106: 1.809176828 | N106: 129926.8 | P106: 185756.96
B107: August | D107: 64893.4714 | E107: 3.535176113 | F107: 229409.85 | H107: 65426.11484 | I107: 0.7935588125 | J107: 51919.47 | L107: 65426.11484 | M107: 1.845507567 | N107: 120744.39 | P107: 172663.86
B108: September | D108: 59570.66033 | E108: 3.556636754 | F108: 211871.2 | H108: 57247.86585 | I108: 0.7946573959 | J108: 45492.44 | L108: 57247.86585 | M108: 1.847979107 | N108: 105792.86 | P108: 151285.3
B109: October | D109: 48477.18618 | E109: 3.391894476 | F109: 164429.5 | H109: 54416.21162 | I109: 0.7721809135 | J109: 42019.16 | L109: 54416.21162 | M109: 1.797407006 | N109: 97808.08 | P109: 139827.24
B110: November | D110: 55414.6046 | E110: 3.482969361 | F110: 193007.37 | H110: 57839.80968 | I110: 0.7853959107 | J110: 45427.15 | L110: 57839.80968 | M110: 1.827141213 | N110: 105681.5 | P110: 151108.65
B111: December | D111: 58203.84142 | E111: 3.502522944 | F111: 203860.29 | H111: 62743.38438 | I111: 0.7860903661 | J111: 49321.97 | L111: 62743.38438 | M111: 1.828197365 | N111: 114707.29 | P111: 164029.26
B113: Total | D113: =SUM(D100:D111) -> 653819.6728 | E113: =IF(D113<>0,F113/D113,0) -> 3.486834543 | F113: =SUM(F100:F111) -> 2279761.02 | H113: =SUM(H100:H111) -> 695156.7418 | I113: =IF(H113<>0,J113/H113,0) -> 0.7858687792 | J113: =SUM(J100:J111) -> 546301.98 | L113: =SUM(L100:L111) -> 695156.7418 | M113: =IF(L113<>0,N113/L113,0) -> 1.828159181 | N113: =SUM(N100:N111) -> 1270857.18 | P113: =SUM(P100:P111) -> 1817159.16
N115: Transformer Allowance Credit (if applicable) | P115: ='5. UTRs and Sub-Transmission'!E95 -> 0
N117: Total including deduction for Transformer Allowance Credit | P117: =P113+P115 -> 1817159.16

Sheet 7. Current Wholesale
B13: The purpose of this sheet is to calculate the expected billing when current 2013 Uniform Transmission Rates are applied against historical 2012 transmission units.
B20: IESO | D20: Network | H20: Line Connection | L20: Transformation Connection | P20: Total Line
B22: Month | D22: Units Billed | E22: Rate | F22: Amount | H22: Units Billed | I22: Rate | J22: Amount | L22: Units Billed | M22: Rate | N22: Amount | P22: Amount
B24: January | D24: ='6. Historical Wholesale'!D24 -> 53210.195 | E24: ='5. UTRs and Sub-Transmission'!G22 -> 3.63 | F24: =D24*E24 -> 193153.0078 | H24: ='6. Historical Wholesale'!H24 -> 55876.827 | I24: ='5. UTRs and Sub-Transmission'!G24 -> 0.75 | J24: =H24*I24 -> 41907.62025 | L24: ='6. Historical Wholesale'!L24 -> 55876.827 | M24: ='5. UTRs and Sub-Transmission'!G26 -> 1.85 | N24: =L24*M24 -> 103372.13 | P24: =J24+N24 -> 145279.7502
B25: February | D25: ='6. Historical Wholesale'!D25 -> 45741.517 | E25: =E24 -> 3.63 | F25: =D25*E25 -> 166041.7067 | H25: ='6. Historical Wholesale'!H25 -> 51602.012 | I25: =I24 -> 0.75 | J25: =H25*I25 -> 38701.509 | L25: ='6. Historical Wholesale'!L25 -> 51602.012 | M25: =M24 -> 1.85 | N25: =L25*M25 -> 95463.7222 | P25: 134165.2312
B26: March | D26: ='6. Historical Wholesale'!D26 -> 45653.951 | E26: =E25 -> 3.63 | F26: 165723.8421 | H26: ='6. Historical Wholesale'!H26 -> 50759.902 | I26: =I25 -> 0.75 | J26: 38069.9265 | L26: ='6. Historical Wholesale'!L26 -> 50759.902 | M26: =M25 -> 1.85 | N26: 93905.8187 | P26: 131975.7452
B27: April | D27: ='6. Historical Wholesale'!D27 -> 30427.49132 | E27: 3.63 | F27: 110451.7935 | H27: ='6. Historical Wholesale'!H27 -> 41904.49132 | I27: 0.75 | J27: 31428.36849 | L27: ='6. Historical Wholesale'!L27 -> 41904.49132 | M27: 1.85 | N27: 77523.30894 | P27: 108951.6774
B28: May | D28: ='6. Historical Wholesale'!D28 -> 35255.82538 | E28: 3.63 | F28: 127978.6461 | H28: ='6. Historical Wholesale'!H28 -> 41609.07538 | I28: 0.75 | J28: 31206.80654 | L28: ='6. Historical Wholesale'!L28 -> 41609.07538 | M28: 1.85 | N28: 76976.78945 | P28: 108183.596
B29: June | D29: ='6. Historical Wholesale'!D29 -> 53468.24 | E29: 3.63 | F29: 194089.7112 | H29: ='6. Historical Wholesale'!H29 -> 57398.66 | I29: 0.75 | J29: 43048.995 | L29: ='6. Historical Wholesale'!L29 -> 57398.66 | M29: 1.85 | N29: 106187.521 | P29: 149236.516
B30: July | D30: ='6. Historical Wholesale'!D30 -> 66615.71 | E30: 3.63 | F30: 241815.0273 | H30: ='6. Historical Wholesale'!H30 -> 61676.84 | I30: 0.75 | J30: 46257.63 | L30: ='6. Historical Wholesale'!L30 -> 61676.84 | M30: 1.85 | N30: 114102.154 | P30: 160359.784
B31: August | D31: ='6. Historical Wholesale'!D31 -> 62437.152 | E31: 3.63 | F31: 226646.8618 | H31: ='6. Historical Wholesale'!H31 -> 62792.25 | I31: 0.75 | J31: 47094.1875 | L31: ='6. Historical Wholesale'!L31 -> 62792.25 | M31: 1.85 | N31: 116165.6625 | P31: 163259.85
B32: September | D32: ='6. Historical Wholesale'!D32 -> 58704.852 | E32: 3.63 | F32: 213098.6128 | H32: ='6. Historical Wholesale'!H32 -> 55336.29 | I32: 0.75 | J32: 41502.2175 | L32: ='6. Historical Wholesale'!L32 -> 55336.29 | M32: 1.85 | N32: 102372.1365 | P32: 143874.354
B33: October | D33: ='6. Historical Wholesale'!D33 -> 39091.91 | E33: 3.63 | F33: 141903.6333 | H33: ='6. Historical Wholesale'!H33 -> 44954.91 | I33: 0.75 | J33: 33716.1825 | L33: ='6. Historical Wholesale'!L33 -> 44954.91 | M33: 1.85 | N33: 83166.5835 | P33: 116882.766
B34: November | D34: ='6. Historical Wholesale'!D34 -> 50172.871 | E34: 3.63 | F34: 182127.5217 | H34: ='6. Historical Wholesale'!H34 -> 52560.506 | I34: 0.75 | J34: 39420.3795 | L34: ='6. Historical Wholesale'!L34 -> 52560.506 | M34: 1.85 | N34: 97236.9361 | P34: 136657.3156
B35: December | D35: ='6. Historical Wholesale'!D35 -> 50275.72 | E35: 3.63 | F35: 182500.8636 | H35: ='6. Historical Wholesale'!H35 -> 54905.654 | I35: 0.75 | J35: 41179.2405 | L35: ='6. Historical Wholesale'!L35 -> 54905.654 | M35: 1.85 | N35: 101575.4599 | P35: 142754.7004
B37: Total | D37: =SUM(D24:D35) -> 591055.4347 | E37: =IF(D37<>0,F37/D37,0) -> 3.63 | F37: =SUM(F24:F35) -> 2145531.228 | H37: =SUM(H24:H35) -> 631377.4177 | I37: =IF(H37<>0,J37/H37,0) -> 0.75 | J37: =SUM(J24:J35) -> 473533.0633 | L37: =SUM(L24:L35) -> 631377.4177 | M37: =IF(L37<>0,N37/L37,0) -> 1.85 | N37: =SUM(N24:N35) -> 1168048.223 | P37: =SUM(P24:P35) -> 1641581.286
B39: Hydro One | D39: Network | H39: Line Connection | L39: Transformation Connection | P39: Total Line
B41: Month | D41: Units Billed | E41: Rate | F41: Amount | H41: Units Billed | I41: Rate | J41: Amount | L41: Units Billed | M41: Rate | N41: Amount | P41: Amount
B43: January | D43: ='6. Historical Wholesale'!D43 -> 2699.157812 | E43: ='5. UTRs and Sub-Transmission'!G35+'5. UTRs and Sub-Transmission'!G79 -> 3.3265 | F43: =D43*E43 -> 8978.748462 | H43: ='6. Historical Wholesale'!H43 -> 2674.537652 | I43: ='5. UTRs and Sub-Transmission'!G37+'5. UTRs and Sub-Transmission'!G81 -> 0.7667 | J43: =H43*I43 -> 2050.568018 | L43: ='6. Historical Wholesale'!L43 -> 2674.537652 | M43: ='5. UTRs and Sub-Transmission'!G39 -> 1.63 | N43: =L43*M43 -> 4359.496373 | P43: =J43+N43 -> 6410.064391
B44: February | D44: ='6. Historical Wholesale'!D44 -> 2159.949266 | E44: =E43 -> 3.3265 | F44: =D44*E44 -> 7185.071233 | H44: ='6. Historical Wholesale'!H44 -> 1866.316946 | I44: =I43 -> 0.7667 | J44: =H44*I44 -> 1430.905202 | L44: ='6. Historical Wholesale'!L44 -> 1866.316946 | M44: =M43 -> 1.63 | N44: =L44*M44 -> 3042.096622 | P44: 4473.001824
B45: March | D45: ='6. Historical Wholesale'!D45 -> 4263.949926 | E45: =E44 -> 3.3265 | F45: 14184.02943 | H45: ='6. Historical Wholesale'!H45 -> 4211.640806 | I45: =I44 -> 0.7667 | J45: 3229.065006 | L45: ='6. Historical Wholesale'!L45 -> 4211.640806 | M45: =M44 -> 1.63 | N45: 6864.974514 | P45: 10094.03952
B46: April | D46: ='6. Historical Wholesale'!D46 -> 8711.582396 | E46: 3.3265 | F46: 28979.07884 | H46: ='6. Historical Wholesale'!H46 -> 8733.976796 | I46: 0.7667 | J46: 6696.340009 | L46: ='6. Historical Wholesale'!L46 -> 8733.976796 | M46: =M45 -> 1.63 | N46: 14236.38218 | P46: 20932.72219
B47: May | D47: ='6. Historical Wholesale'!D47 -> 3476.722478 | E47: 3.3265 | F47: 11565.31732 | H47: ='6. Historical Wholesale'!H47 -> 3478.836878 | I47: 0.7667 | J47: 2667.224234 | L47: ='6. Historical Wholesale'!L47 -> 3478.836878 | M47: 1.63 | N47: 5670.504111 | P47: 8337.728346
B48: June | D48: ='6. Historical Wholesale'!D48 -> 5507.175806 | E48: 3.3265 | F48: 18319.62032 | H48: ='6. Historical Wholesale'!H48 -> 5551.655166 | I48: 0.7667 | J48: 4256.454016 | L48: ='6. Historical Wholesale'!L48 -> 5551.655166 | M48: 1.63 | N48: 9049.197921 | P48: 13305.65194
B49: July | D49: ='6. Historical Wholesale'!D49 -> 10068.44152 | E49: 3.3265 | F49: 33492.6707 | H49: ='6. Historical Wholesale'!H49 -> 10138.58344 | I49: 0.7667 | J49: 7773.25192 | L49: ='6. Historical Wholesale'!L49 -> 10138.58344 | M49: 1.63 | N49: 16525.891 | P49: 24299.14292
B50: August | D50: ='6. Historical Wholesale'!D50 -> 2456.3194 | E50: 3.3265 | F50: 8170.946484 | H50: ='6. Historical Wholesale'!H50 -> 2633.86484 | I50: 0.7667 | J50: 2019.384173 | L50: ='6. Historical Wholesale'!L50 -> 2633.86484 | M50: 1.63 | N50: 4293.199689 | P50: 6312.583862
B51: September | D51: ='6. Historical Wholesale'!D51 -> 865.80833 | E51: 3.3265 | F51: 2880.11141 | H51: ='6. Historical Wholesale'!H51 -> 1911.57585 | I51: 0.7667 | J51: 1465.605204 | L51: ='6. Historical Wholesale'!L51 -> 1911.57585 | M51: 1.63 | N51: 3115.868636 | P51: 4581.47384
B52: October | D52: ='6. Historical Wholesale'!D52 -> 9385.276182 | E52: 3.3265 | F52: 31220.12122 | H52: ='6. Historical Wholesale'!H52 -> 9461.301622 | I52: 0.7667 | J52: 7253.979954 | L52: ='6. Historical Wholesale'!L52 -> 9461.301622 | M52: 1.63 | N52: 15421.92164 | P52: 22675.9016
B53: November | D53: ='6. Historical Wholesale'!D53 -> 5241.733604 | E53: 3.3265 | F53: 17436.62683 | H53: ='6. Historical Wholesale'!H53 -> 5279.303684 | I53: 0.7667 | J53: 4047.642135 | L53: ='6. Historical Wholesale'!L53 -> 5279.303684 | M53: 1.63 | N53: 8605.265005 | P53: 12652.90714
B54: December | D54: ='6. Historical Wholesale'!D54 -> 7928.121422 | E54: 3.3265 | F54: 26372.89591 | H54: ='6. Historical Wholesale'!H54 -> 7837.730382 | I54: 0.7667 | J54: 6009.187884 | L54: ='6. Historical Wholesale'!L54 -> 7837.730382 | M54: 1.63 | N54: 12775.50052 | P54: 18784.68841
B56: Total | D56: =SUM(D43:D54) -> 62764.23814 | E56: =IF(D56<>0,F56/D56,0) -> 3.3265 | F56: =SUM(F43:F54) -> 208785.2382 | H56: =SUM(H43:H54) -> 63779.32406 | I56: =IF(H56<>0,J56/H56,0) -> 0.7667 | J56: =SUM(J43:J54) -> 48899.60776 | L56: =SUM(L43:L54) -> 63779.32406 | M56: =IF(L56<>0,N56/L56,0) -> 1.63 | N56: =SUM(N43:N54) -> 103960.2982 | P56: =SUM(P43:P54) -> 152859.906
B58: ='6. Historical Wholesale'!B58 -> Add Extra Host Here (I) | D58: Network | H58: Line Connection | L58: Transformation Connection | P58: Total Line
B60: Month | D60: Units Billed | E60: Rate | F60: Amount | H60: Units Billed | I60: Rate | J60: Amount | L60: Units Billed | M60: Rate | N60: Amount | P60: Amount
B62: January | D62: ='6. Historical Wholesale'!D62 -> 0 | E62: ='5. UTRs and Sub-Transmission'!G50 -> 0 | F62: =D62*E62 -> 0 | H62: ='6. Historical Wholesale'!H62 -> 0 | I62: ='5. UTRs and Sub-Transmission'!G52 -> 0 | J62: =H62*I62 -> 0 | L62: ='6. Historical Wholesale'!L62 -> 0 | M62: ='5. UTRs and Sub-Transmission'!G54 -> 0 | N62: =L62*M62 -> 0 | P62: =J62+N62 -> 0
B63: February | D63: ='6. Historical Wholesale'!D63 -> 0 | E63: =E62 -> 0 | F63: =D63*E63 -> 0 | H63: ='6. Historical Wholesale'!H63 -> 0 | I63: =I62 -> 0 | J63: =H63*I63 -> 0 | L63: ='6. Historical Wholesale'!L63 -> 0 | M63: =M62 -> 0 | N63: =L63*M63 -> 0 | P63: 0
B64: March | D64: ='6. Historical Wholesale'!D64 -> 0 | E64: =E63 -> 0 | F64: 0 | H64: ='6. Historical Wholesale'!H64 -> 0 | I64: =I63 -> 0 | J64: 0 | L64: ='6. Historical Wholesale'!L64 -> 0 | M64: =M63 -> 0 | N64: 0 | P64: 0
B65: April | D65: ='6. Historical Wholesale'!D65 -> 0 | E65: 0 | F65: 0 | H65: ='6. Historical Wholesale'!H65 -> 0 | I65: 0 | J65: 0 | L65: ='6. Historical Wholesale'!L65 -> 0 | M65: =M64 -> 0 | N65: 0 | P65: 0
B66: May | D66: ='6. Historical Wholesale'!D66 -> 0 | E66: 0 | F66: 0 | H66: ='6. Historical Wholesale'!H66 -> 0 | I66: 0 | J66: 0 | L66: ='6. Historical Wholesale'!L66 -> 0 | M66: 0 | N66: 0 | P66: 0
B67: June | D67: ='6. Historical Wholesale'!D67 -> 0 | E67: 0 | F67: 0 | H67: ='6. Historical Wholesale'!H67 -> 0 | I67: 0 | J67: 0 | L67: ='6. Historical Wholesale'!L67 -> 0 | M67: 0 | N67: 0 | P67: 0
B68: July | D68: ='6. Historical Wholesale'!D68 -> 0 | E68: 0 | F68: 0 | H68: ='6. Historical Wholesale'!H68 -> 0 | I68: 0 | J68: 0 | L68: ='6. Historical Wholesale'!L68 -> 0 | M68: 0 | N68: 0 | P68: 0
B69: August | D69: ='6. Historical Wholesale'!D69 -> 0 | E69: 0 | F69: 0 | H69: ='6. Historical Wholesale'!H69 -> 0 | I69: 0 | J69: 0 | L69: ='6. Historical Wholesale'!L69 -> 0 | M69: 0 | N69: 0 | P69: 0
B70: September | D70: ='6. Historical Wholesale'!D70 -> 0 | E70: 0 | F70: 0 | H70: ='6. Historical Wholesale'!H70 -> 0 | I70: 0 | J70: 0 | L70: ='6. Historical Wholesale'!L70 -> 0 | M70: 0 | N70: 0 | P70: 0
B71: October | D71: ='6. Historical Wholesale'!D71 -> 0 | E71: 0 | F71: 0 | H71: ='6. Historical Wholesale'!H71 -> 0 | I71: 0 | J71: 0 | L71: ='6. Historical Wholesale'!L71 -> 0 | M71: 0 | N71: 0 | P71: 0
B72: November | D72: ='6. Historical Wholesale'!D72 -> 0 | E72: 0 | F72: 0 | H72: ='6. Historical Wholesale'!H72 -> 0 | I72: 0 | J72: 0 | L72: ='6. Historical Wholesale'!L72 -> 0 | M72: 0 | N72: 0 | P72: 0
B73: December | D73: ='6. Historical Wholesale'!D73 -> 0 | E73: 0 | F73: 0 | H73: ='6. Historical Wholesale'!H73 -> 0 | I73: 0 | J73: 0 | L73: ='6. Historical Wholesale'!L73 -> 0 | M73: 0 | N73: 0 | P73: 0
B75: Total | D75: =SUM(D62:D73) -> 0 | E75: =IF(D75<>0,F75/D75,0) -> 0 | F75: =SUM(F62:F73) -> 0 | H75: =SUM(H62:H73) -> 0 | I75: =IF(H75<>0,J75/H75,0) -> 0 | J75: =SUM(J62:J73) -> 0 | L75: =SUM(L62:L73) -> 0 | M75: =IF(L75<>0,N75/L75,0) -> 0 | N75: =SUM(N62:N73) -> 0 | P75: =SUM(P62:P73) -> 0
B77: ='6. Historical Wholesale'!B77 -> Add Extra Host Here (II) | D77: Network | H77: Line Connection | L77: Transformation Connection | P77: Total Line
B79: Month | D79: Units Billed | E79: Rate | F79: Amount | H79: Units Billed | I79: Rate | J79: Amount | L79: Units Billed | M79: Rate | N79: Amount | P79: Amount
B81: January | D81: ='6. Historical Wholesale'!D81 -> 0 | E81: ='5. UTRs and Sub-Transmission'!G65 -> 0 | F81: =D81*E81 -> 0 | H81: ='6. Historical Wholesale'!H81 -> 0 | I81: ='5. UTRs and Sub-Transmission'!G67 -> 0 | J81: =H81*I81 -> 0 | L81: ='6. Historical Wholesale'!L81 -> 0 | M81: ='5. UTRs and Sub-Transmission'!G69 -> 0 | N81: =L81*M81 -> 0 | P81: =J81+N81 -> 0
B82: February | D82: ='6. Historical Wholesale'!D82 -> 0 | E82: =E81 -> 0 | F82: =D82*E82 -> 0 | H82: ='6. Historical Wholesale'!H82 -> 0 | I82: =I81 -> 0 | J82: =H82*I82 -> 0 | L82: ='6. Historical Wholesale'!L82 -> 0 | M82: =M81 -> 0 | N82: =L82*M82 -> 0 | P82: 0
B83: March | D83: ='6. Historical Wholesale'!D83 -> 0 | E83: =E82 -> 0 | F83: 0 | H83: ='6. Historical Wholesale'!H83 -> 0 | I83: =I82 -> 0 | J83: 0 | L83: ='6. Historical Wholesale'!L83 -> 0 | M83: =M82 -> 0 | N83: 0 | P83: 0
B84: April | D84: ='6. Historical Wholesale'!D84 -> 0 | E84: 0 | F84: 0 | H84: ='6. Historical Wholesale'!H84 -> 0 | I84: 0 | J84: 0 | L84: ='6. Historical Wholesale'!L84 -> 0 | M84: =M83 -> 0 | N84: 0 | P84: 0
B85: May | D85: ='6. Historical Wholesale'!D85 -> 0 | E85: 0 | F85: 0 | H85: ='6. Historical Wholesale'!H85 -> 0 | I85: 0 | J85: 0 | L85: ='6. Historical Wholesale'!L85 -> 0 | M85: 0 | N85: 0 | P85: 0
B86: June | D86: ='6. Historical Wholesale'!D86 -> 0 | E86: 0 | F86: 0 | H86: ='6. Historical Wholesale'!H86 -> 0 | I86: 0 | J86: 0 | L86: ='6. Historical Wholesale'!L86 -> 0 | M86: 0 | N86: 0 | P86: 0
B87: July | D87: ='6. Historical Wholesale'!D87 -> 0 | E87: 0 | F87: 0 | H87: ='6. Historical Wholesale'!H87 -> 0 | I87: 0 | J87: 0 | L87: ='6. Historical Wholesale'!L87 -> 0 | M87: 0 | N87: 0 | P87: 0
B88: August | D88: ='6. Historical Wholesale'!D88 -> 0 | E88: 0 | F88: 0 | H88: ='6. Historical Wholesale'!H88 -> 0 | I88: 0 | J88: 0 | L88: ='6. Historical Wholesale'!L88 -> 0 | M88: 0 | N88: 0 | P88: 0
B89: September | D89: ='6. Historical Wholesale'!D89 -> 0 | E89: 0 | F89: 0 | H89: ='6. Historical Wholesale'!H89 -> 0 | I89: 0 | J89: 0 | L89: ='6. Historical Wholesale'!L89 -> 0 | M89: 0 | N89: 0 | P89: 0
B90: October | D90: ='6. Historical Wholesale'!D90 -> 0 | E90: 0 | F90: 0 | H90: ='6. Historical Wholesale'!H90 -> 0 | I90: 0 | J90: 0 | L90: ='6. Historical Wholesale'!L90 -> 0 | M90: 0 | N90: 0 | P90: 0
B91: November | D91: ='6. Historical Wholesale'!D91 -> 0 | E91: 0 | F91: 0 | H91: ='6. Historical Wholesale'!H91 -> 0 | I91: 0 | J91: 0 | L91: ='6. Historical Wholesale'!L91 -> 0 | M91: 0 | N91: 0 | P91: 0
B92: December | D92: ='6. Historical Wholesale'!D92 -> 0 | E92: 0 | F92: 0 | H92: ='6. Historical Wholesale'!H92 -> 0 | I92: 0 | J92: 0 | L92: ='6. Historical Wholesale'!L92 -> 0 | M92: 0 | N92: 0 | P92: 0
B94: Total | D94: =SUM(D81:D92) -> 0 | E94: =IF(D94<>0,F94/D94,0) -> 0 | F94: =SUM(F81:F92) -> 0 | H94: =SUM(H81:H92) -> 0 | I94: =IF(H94<>0,J94/H94,0) -> 0 | J94: =SUM(J81:J92) -> 0 | L94: =SUM(L81:L92) -> 0 | M94: =IF(L94<>0,N94/L94,0) -> 0 | N94: =SUM(N81:N92) -> 0 | P94: =SUM(P81:P92) -> 0
B96: Total | D96: Network | H96: Line Connection | L96: Transformation Connection | P96: Total Line
B98: Month | D98: Units Billed | E98: Rate | F98: Amount | H98: Units Billed | I98: Rate | J98: Amount | L98: Units Billed | M98: Rate | N98: Amount | P98: Amount
B100: January | D100: =D24+D43+D62+D81 -> 55909.35281 | E100: =IF(D100<>0,F100/D100,0) -> 3.615347811 | F100: =F24+F43+F62+F81 -> 202131.7563 | H100: =H24+H43+H62+H81 -> 58551.36465 | I100: =IF(H100<>0,J100/H100,0) -> 0.7507628307 | J100: =J24+J43+J62+J81 -> 43958.18827 | L100: =L24+L43+L62+L81 -> 58551.36465 | M100: =IF(L100<>0,N100/L100,0) -> 1.839950733 | N100: =N24+N43+N62+N81 -> 107731.6263 | P100: =J100+N100 -> 151689.8146
B101: February | D101: =D25+D44+D63+D82 -> 47901.46627 | E101: 3.616314728 | F101: =F25+F44+F63+F82 -> 173226.7779 | H101: =H25+H44+H63+H82 -> 53468.32895 | I101: 0.750582915 | J101: =J25+J44+J63+J82 -> 40132.4142 | L101: =L25+L44+L63+L82 -> 53468.32895 | M101: 1.84232088 | N101: =N25+N44+N63+N82 -> 98505.81882 | P101: 138638.233
B102: March | D102: 49917.90093 | E102: 3.604075256 | F102: 179907.8716 | H102: 54971.54281 | I102: 0.7512794693 | J102: 41298.99151 | L102: 54971.54281 | M102: 1.833144716 | N102: 100770.7932 | P102: 142069.7847
B103: April | D103: 39139.07372 | E103: 3.562446913 | F103: 139430.8723 | H103: 50638.46812 | I103: 0.7528803678 | J103: 38124.7085 | L103: 50638.46812 | M103: 1.812055035 | N103: 91759.69112 | P103: 129884.3996
B104: May | D104: 38732.54786 | E104: 3.602757143 | F104: 139543.9635 | H104: 45087.91226 | I104: 0.7512885178 | J104: 33874.03077 | L104: 45087.91226 | M104: 1.833025514 | N104: 82647.29356 | P104: 116521.3243
B105: June | D105: 58975.41581 | E105: 3.601658905 | F105: 212409.3315 | H105: 62950.31517 | I105: 0.7514727907 | J105: 47305.44902 | L105: 62950.31517 | M105: 1.830597966 | N105: 115236.7189 | P105: 162542.1679
B106: July | D106: 76684.15152 | E106: 3.590151192 | F106: 275307.698 | H106: 71815.42344 | I106: 0.752357632 | J106: 54030.88192 | L106: 71815.42344 | M106: 1.818941374 | N106: 130628.045 | P106: 184658.9269
B107: August | D107: 64893.4714 | E107: 3.61851205 | F107: 234817.8082 | H107: 65426.11484 | I107: 0.7506722934 | J107: 49113.57167 | L107: 65426.11484 | M107: 1.841143441 | N107: 120458.8622 | P107: 169572.4339
B108: September | D108: 59570.66033 | E108: 3.625588888 | F108: 215978.7242 | H108: 57247.86585 | I108: 0.7505576333 | J108: 42967.8227 | L108: 57247.86585 | M108: 1.842653932 | N108: 105488.0051 | P108: 148455.8278
B109: October | D109: 48477.18618 | E109: 3.571241818 | F109: 173123.7545 | H109: 54416.21162 | I109: 0.7529036152 | J109: 40970.16245 | L109: 54416.21162 | M109: 1.811748782 | N109: 98588.50514 | P109: 139558.6676
B110: November | D110: 55414.6046 | E110: 3.601291573 | F110: 199564.1486 | H110: 57839.80968 | I110: 0.7515242853 | J110: 43468.02163 | L110: 57839.80968 | M110: 1.829919595 | N110: 105842.2011 | P110: 149310.2227
B111: December | D111: 58203.84142 | E111: 3.588659346 | F111: 208873.7595 | H111: 62743.38438 | I111: 0.7520861179 | J111: 47188.42838 | L111: 62743.38438 | M111: 1.822518207 | N111: 114350.9604 | P111: 161539.3888
B113: Total | D113: =SUM(D100:D111) -> 653819.6728 | E113: =IF(D113<>0,F113/D113,0) -> 3.600865137 | F113: =SUM(F100:F111) -> 2354316.466 | H113: =SUM(H100:H111) -> 695156.7418 | I113: =IF(H113<>0,J113/H113,0) -> 0.7515321936 | J113: =SUM(J100:J111) -> 522432.671 | L113: =SUM(L100:L111) -> 695156.7418 | M113: =IF(L113<>0,N113/L113,0) -> 1.829815414 | N113: =SUM(N100:N111) -> 1272008.521 | P113: =SUM(P100:P111) -> 1794441.192
N115: Transformer Allowance Credit (if applicable) | P115: ='5. UTRs and Sub-Transmission'!G95 -> 0
N117: Total including deduction for Transformer Allowance Credit | P117: =P113+P115 -> 1794441.192

Sheet 8. Forecast Wholesale
B13: The purpose of this sheet is to calculate the expected billing when forecasted 2014 Uniform Transmission Rates are applied against historical 2012 transmission units.
B20: IESO | D20: Network | H20: Line Connection | L20: Transformation Connection | P20: Total Line
B22: Month | D22: Units Billed | E22: Rate | F22: Amount | H22: Units Billed | I22: Rate | J22: Amount | L22: Units Billed | M22: Rate | N22: Amount | P22: Amount
B24: January | D24: ='6. Historical Wholesale'!D24 -> 53210.195 | E24: ='5. UTRs and Sub-Transmission'!I22 -> 3.82 | F24: =D24*E24 -> 203262.9449 | H24: ='6. Historical Wholesale'!H24 -> 55876.827 | I24: ='5. UTRs and Sub-Transmission'!I24 -> 0.82 | J24: =H24*I24 -> 45818.99814 | L24: ='6. Historical Wholesale'!L24 -> 55876.827 | M24: ='5. UTRs and Sub-Transmission'!I26 -> 1.98 | N24: =L24*M24 -> 110636.1175 | P24: =J24+N24 -> 156455.1156
B25: February | D25: ='6. Historical Wholesale'!D25 -> 45741.517 | E25: =E24 -> 3.82 | F25: 174732.5949 | H25: ='6. Historical Wholesale'!H25 -> 51602.012 | I25: =I24 -> 0.82 | J25: 42313.64984 | L25: ='6. Historical Wholesale'!L25 -> 51602.012 | M25: =M24 -> 1.98 | N25: 102171.9838 | P25: 144485.6336
B26: March | D26: ='6. Historical Wholesale'!D26 -> 45653.951 | E26: 3.82 | F26: 174398.0928 | H26: ='6. Historical Wholesale'!H26 -> 50759.902 | I26: 0.82 | J26: 41623.11964 | L26: ='6. Historical Wholesale'!L26 -> 50759.902 | M26: 1.98 | N26: 100504.606 | P26: 142127.7256
B27: April | D27: ='6. Historical Wholesale'!D27 -> 30427.49132 | E27: 3.82 | F27: 116233.0168 | H27: ='6. Historical Wholesale'!H27 -> 41904.49132 | I27: 0.82 | J27: 34361.68288 | L27: ='6. Historical Wholesale'!L27 -> 41904.49132 | M27: 1.98 | N27: 82970.89281 | P27: 117332.5757
B28: May | D28: ='6. Historical Wholesale'!D28 -> 35255.82538 | E28: 3.82 | F28: 134677.253 | H28: ='6. Historical Wholesale'!H28 -> 41609.07538 | I28: 0.82 | J28: 34119.44181 | L28: ='6. Historical Wholesale'!L28 -> 41609.07538 | M28: 1.98 | N28: 82385.96925 | P28: 116505.4111
B29: June | D29: ='6. Historical Wholesale'!D29 -> 53468.24 | E29: 3.82 | F29: 204248.6768 | H29: ='6. Historical Wholesale'!H29 -> 57398.66 | I29: 0.82 | J29: 47066.9012 | L29: ='6. Historical Wholesale'!L29 -> 57398.66 | M29: 1.98 | N29: 113649.3468 | P29: 160716.248
B30: July | D30: ='6. Historical Wholesale'!D30 -> 66615.71 | E30: 3.82 | F30: 254472.0122 | H30: ='6. Historical Wholesale'!H30 -> 61676.84 | I30: 0.82 | J30: 50575.0088 | L30: ='6. Historical Wholesale'!L30 -> 61676.84 | M30: 1.98 | N30: 122120.1432 | P30: 172695.152
B31: August | D31: ='6. Historical Wholesale'!D31 -> 62437.152 | E31: 3.82 | F31: 238509.9206 | H31: ='6. Historical Wholesale'!H31 -> 62792.25 | I31: 0.82 | J31: 51489.645 | L31: ='6. Historical Wholesale'!L31 -> 62792.25 | M31: 1.98 | N31: 124328.655 | P31: 175818.3
B32: September | D32: ='6. Historical Wholesale'!D32 -> 58704.852 | E32: 3.82 | F32: 224252.5346 | H32: ='6. Historical Wholesale'!H32 -> 55336.29 | I32: 0.82 | J32: 45375.7578 | L32: ='6. Historical Wholesale'!L32 -> 55336.29 | M32: 1.98 | N32: 109565.8542 | P32: 154941.612
B33: October | D33: ='6. Historical Wholesale'!D33 -> 39091.91 | E33: 3.82 | F33: 149331.0962 | H33: ='6. Historical Wholesale'!H33 -> 44954.91 | I33: 0.82 | J33: 36863.0262 | L33: ='6. Historical Wholesale'!L33 -> 44954.91 | M33: 1.98 | N33: 89010.7218 | P33: 125873.748
B34: November | D34: ='6. Historical Wholesale'!D34 -> 50172.871 | E34: 3.82 | F34: 191660.3672 | H34: ='6. Historical Wholesale'!H34 -> 52560.506 | I34: 0.82 | J34: 43099.61492 | L34: ='6. Historical Wholesale'!L34 -> 52560.506 | M34: 1.98 | N34: 104069.8019 | P34: 147169.4168
B35: December | D35: ='6. Historical Wholesale'!D35 -> 50275.72 | E35: 3.82 | F35: 192053.2504 | H35: ='6. Historical Wholesale'!H35 -> 54905.654 | I35: 0.82 | J35: 45022.63628 | L35: ='6. Historical Wholesale'!L35 -> 54905.654 | M35: 1.98 | N35: 108713.1949 | P35: 153735.8312
B37: Total | D37: =SUM(D24:D35) -> 591055.4347 | E37: =IF(D37<>0,F37/D37,0) -> 3.82 | F37: =SUM(F24:F35) -> 2257831.761 | H37: =SUM(H24:H35) -> 631377.4177 | I37: =IF(H37<>0,J37/H37,0) -> 0.82 | J37: =SUM(J24:J35) -> 517729.4825 | L37: =SUM(L24:L35) -> 631377.4177 | M37: =IF(L37<>0,N37/L37,0) -> 1.98 | N37: =SUM(N24:N35) -> 1250127.287 | P37: =SUM(P24:P35) -> 1767856.77
B39: Hydro One | D39: Network | H39: Line Connection | L39: Transformation Connection | P39: Total Line
B41: Month | D41: Units Billed | E41: Rate | F41: Amount | H41: Units Billed | I41: Rate | J41: Amount | L41: Units Billed | M41: Rate | N41: Amount | P41: Amount
B43: January | D43: ='6. Historical Wholesale'!D43 -> 2699.157812 | E43: ='5. UTRs and Sub-Transmission'!I35+'5. UTRs and Sub-Transmission'!I79 -> 3.3765 | F43: =D43*E43 -> 9113.706352 | H43: ='6. Historical Wholesale'!H43 -> 2674.537652 | I43: ='5. UTRs and Sub-Transmission'!I37+'5. UTRs and Sub-Transmission'!I81 -> 0.7167 | J43: =H43*I43 -> 1916.841135 | L43: ='6. Historical Wholesale'!L43 -> 2674.537652 | M43: ='5. UTRs and Sub-Transmission'!I39 -> 1.62 | N43: =L43*M43 -> 4332.750996 | P43: =J43+N43 -> 6249.592131
B44: February | D44: ='6. Historical Wholesale'!D44 -> 2159.949266 | E44: =E43 -> 3.3765 | F44: 7293.068697 | H44: ='6. Historical Wholesale'!H44 -> 1866.316946 | I44: =I43 -> 0.7167 | J44: 1337.589355 | L44: ='6. Historical Wholesale'!L44 -> 1866.316946 | M44: =M43 -> 1.62 | N44: 3023.433453 | P44: 4361.022808
B45: March | D45: ='6. Historical Wholesale'!D45 -> 4263.949926 | E45: 3.3765 | F45: 14397.22693 | H45: ='6. Historical Wholesale'!H45 -> 4211.640806 | I45: 0.7167 | J45: 3018.482966 | L45: ='6. Historical Wholesale'!L45 -> 4211.640806 | M45: 1.62 | N45: 6822.858106 | P45: 9841.341071
B46: April | D46: ='6. Historical Wholesale'!D46 -> 8711.582396 | E46: 3.3765 | F46: 29414.65796 | H46: ='6. Historical Wholesale'!H46 -> 8733.976796 | I46: 0.7167 | J46: 6259.64117 | L46: ='6. Historical Wholesale'!L46 -> 8733.976796 | M46: 1.62 | N46: 14149.04241 | P46: 20408.68358
B47: May | D47: ='6. Historical Wholesale'!D47 -> 3476.722478 | E47: 3.3765 | F47: 11739.15345 | H47: ='6. Historical Wholesale'!H47 -> 3478.836878 | I47: 0.7167 | J47: 2493.28239 | L47: ='6. Historical Wholesale'!L47 -> 3478.836878 | M47: 1.62 | N47: 5635.715742 | P47: 8128.998133
B48: June | D48: ='6. Historical Wholesale'!D48 -> 5507.175806 | E48: 3.3765 | F48: 18594.97911 | H48: ='6. Historical Wholesale'!H48 -> 5551.655166 | I48: 0.7167 | J48: 3978.871257 | L48: ='6. Historical Wholesale'!L48 -> 5551.655166 | M48: 1.62 | N48: 8993.681369 | P48: 12972.55263
B49: July | D49: ='6. Historical Wholesale'!D49 -> 10068.44152 | E49: 3.3765 | F49: 33996.09278 | H49: ='6. Historical Wholesale'!H49 -> 10138.58344 | I49: 0.7167 | J49: 7266.322749 | L49: ='6. Historical Wholesale'!L49 -> 10138.58344 | M49: 1.62 | N49: 16424.50517 | P49: 23690.82791
B50: August | D50: ='6. Historical Wholesale'!D50 -> 2456.3194 | E50: 3.3765 | F50: 8293.762454 | H50: ='6. Historical Wholesale'!H50 -> 2633.86484 | I50: 0.7167 | J50: 1887.690931 | L50: ='6. Historical Wholesale'!L50 -> 2633.86484 | M50: 1.62 | N50: 4266.861041 | P50: 6154.551972
B51: September | D51: ='6. Historical Wholesale'!D51 -> 865.80833 | E51: 3.3765 | F51: 2923.401826 | H51: ='6. Historical Wholesale'!H51 -> 1911.57585 | I51: 0.7167 | J51: 1370.026412 | L51: ='6. Historical Wholesale'!L51 -> 1911.57585 | M51: 1.62 | N51: 3096.752877 | P51: 4466.779289
B52: October | D52: ='6. Historical Wholesale'!D52 -> 9385.276182 | E52: 3.3765 | F52: 31689.38503 | H52: ='6. Historical Wholesale'!H52 -> 9461.301622 | I52: 0.7167 | J52: 6780.914872 | L52: ='6. Historical Wholesale'!L52 -> 9461.301622 | M52: 1.62 | N52: 15327.30863 | P52: 22108.2235
B53: November | D53: ='6. Historical Wholesale'!D53 -> 5241.733604 | E53: 3.3765 | F53: 17698.71351 | H53: ='6. Historical Wholesale'!H53 -> 5279.303684 | I53: 0.7167 | J53: 3783.67695 | L53: ='6. Historical Wholesale'!L53 -> 5279.303684 | M53: 1.62 | N53: 8552.471968 | P53: 12336.14892
B54: December | D54: ='6. Historical Wholesale'!D54 -> 7928.121422 | E54: 3.3765 | F54: 26769.30198 | H54: ='6. Historical Wholesale'!H54 -> 7837.730382 | I54: 0.7167 | J54: 5617.301365 | L54: ='6. Historical Wholesale'!L54 -> 7837.730382 | M54: 1.62 | N54: 12697.12322 | P54: 18314.42458
B56: Total | D56: =SUM(D43:D54) -> 62764.23814 | E56: =IF(D56<>0,F56/D56,0) -> 3.3765 | F56: =SUM(F43:F54) -> 211923.4501 | H56: =SUM(H43:H54) -> 63779.32406 | I56: =IF(H56<>0,J56/H56,0) -> 0.7167 | J56: =SUM(J43:J54) -> 45710.64155 | L56: =SUM(L43:L54) -> 63779.32406 | M56: =IF(L56<>0,N56/L56,0) -> 1.62 | N56: =SUM(N43:N54) -> 103322.505 | P56: =SUM(P43:P54) -> 149033.1465
B58: ='6. Historical Wholesale'!B58 -> Add Extra Host Here (I) | D58: Network | H58: Line Connection | L58: Transformation Connection | P58: Total Line
B60: Month | D60: Units Billed | E60: Rate | F60: Amount | H60: Units Billed | I60: Rate | J60: Amount | L60: Units Billed | M60: Rate | N60: Amount | P60: Amount
B62: January | D62: ='6. Historical Wholesale'!D62 -> 0 | E62: ='5. UTRs and Sub-Transmission'!I50 -> 0 | F62: =D62*E62 -> 0 | H62: ='6. Historical Wholesale'!H62 -> 0 | I62: ='5. UTRs and Sub-Transmission'!I52 -> 0 | J62: =H62*I62 -> 0 | L62: ='6. Historical Wholesale'!L62 -> 0 | M62: ='5. UTRs and Sub-Transmission'!I54 -> 0 | N62: =L62*M62 -> 0 | P62: =J62+N62 -> 0
B63: February | D63: ='6. Historical Wholesale'!D63 -> 0 | E63: =E62 -> 0 | F63: 0 | H63: ='6. Historical Wholesale'!H63 -> 0 | I63: =I62 -> 0 | J63: 0 | L63: ='6. Historical Wholesale'!L63 -> 0 | M63: =M62 -> 0 | N63: 0 | P63: 0
B64: March | D64: ='6. Historical Wholesale'!D64 -> 0 | E64: 0 | F64: 0 | H64: ='6. Historical Wholesale'!H64 -> 0 | I64: 0 | J64: 0 | L64: ='6. Historical Wholesale'!L64 -> 0 | M64: 0 | N64: 0 | P64: 0
B65: April | D65: ='6. Historical Wholesale'!D65 -> 0 | E65: 0 | F65: 0 | H65: ='6. Historical Wholesale'!H65 -> 0 | I65: 0 | J65: 0 | L65: ='6. Historical Wholesale'!L65 -> 0 | M65: 0 | N65: 0 | P65: 0
B66: May | D66: ='6. Historical Wholesale'!D66 -> 0 | E66: 0 | F66: 0 | H66: ='6. Historical Wholesale'!H66 -> 0 | I66: 0 | J66: 0 | L66: ='6. Historical Wholesale'!L66 -> 0 | M66: 0 | N66: 0 | P66: 0
B67: June | D67: ='6. Historical Wholesale'!D67 -> 0 | E67: 0 | F67: 0 | H67: ='6. Historical Wholesale'!H67 -> 0 | I67: 0 | J67: 0 | L67: ='6. Historical Wholesale'!L67 -> 0 | M67: 0 | N67: 0 | P67: 0
B68: July | D68: ='6. Historical Wholesale'!D68 -> 0 | E68: 0 | F68: 0 | H68: ='6. Historical Wholesale'!H68 -> 0 | I68: 0 | J68: 0 | L68: ='6. Historical Wholesale'!L68 -> 0 | M68: 0 | N68: 0 | P68: 0
B69: August | D69: ='6. Historical Wholesale'!D69 -> 0 | E69: 0 | F69: 0 | H69: ='6. Historical Wholesale'!H69 -> 0 | I69: 0 | J69: 0 | L69: ='6. Historical Wholesale'!L69 -> 0 | M69: 0 | N69: 0 | P69: 0
B70: September | D70: ='6. Historical Wholesale'!D70 -> 0 | E70: 0 | F70: 0 | H70: ='6. Historical Wholesale'!H70 -> 0 | I70: 0 | J70: 0 | L70: ='6. Historical Wholesale'!L70 -> 0 | M70: 0 | N70: 0 | P70: 0
B71: October | D71: ='6. Historical Wholesale'!D71 -> 0 | E71: 0 | F71: 0 | H71: ='6. Historical Wholesale'!H71 -> 0 | I71: 0 | J71: 0 | L71: ='6. Historical Wholesale'!L71 -> 0 | M71: 0 | N71: 0 | P71: 0
B72: November | D72: ='6. Historical Wholesale'!D72 -> 0 | E72: 0 | F72: 0 | H72: ='6. Historical Wholesale'!H72 -> 0 | I72: 0 | J72: 0 | L72: ='6. Historical Wholesale'!L72 -> 0 | M72: 0 | N72: 0 | P72: 0
B73: December | D73: ='6. Historical Wholesale'!D73 -> 0 | E73: 0 | F73: 0 | H73: ='6. Historical Wholesale'!H73 -> 0 | I73: 0 | J73: 0 | L73: ='6. Historical Wholesale'!L73 -> 0 | M73: 0 | N73: 0 | P73: 0
B75: Total | D75: =SUM(D62:D73) -> 0 | E75: =IF(D75<>0,F75/D75,0) -> 0 | F75: =SUM(F62:F73) -> 0 | H75: =SUM(H62:H73) -> 0 | I75: =IF(H75<>0,J75/H75,0) -> 0 | J75: =SUM(J62:J73) -> 0 | L75: =SUM(L62:L73) -> 0 | M75: =IF(L75<>0,N75/L75,0) -> 0 | N75: =SUM(N62:N73) -> 0 | P75: =SUM(P62:P73) -> 0
B77: ='6. Historical Wholesale'!B77 -> Add Extra Host Here (II) | D77: Network | H77: Line Connection | L77: Transformation Connection | P77: Total Line
B79: Month | D79: Units Billed | E79: Rate | F79: Amount | H79: Units Billed | I79: Rate | J79: Amount | L79: Units Billed | M79: Rate | N79: Amount | P79: Amount
B81: January | D81: ='6. Historical Wholesale'!D81 -> 0 | E81: ='5. UTRs and Sub-Transmission'!I65 -> 0 | F81: =D81*E81 -> 0 | H81: ='6. Historical Wholesale'!H81 -> 0 | I81: ='5. UTRs and Sub-Transmission'!I67 -> 0 | J81: =H81*I81 -> 0 | L81: ='6. Historical Wholesale'!L81 -> 0 | M81: ='5. UTRs and Sub-Transmission'!I69 -> 0 | N81: =L81*M81 -> 0 | P81: =J81+N81 -> 0
B82: February | D82: ='6. Historical Wholesale'!D82 -> 0 | E82: =E81 -> 0 | F82: 0 | H82: ='6. Historical Wholesale'!H82 -> 0 | I82: =I81 -> 0 | J82: 0 | L82: ='6. Historical Wholesale'!L82 -> 0 | M82: =M81 -> 0 | N82: 0 | P82: 0
B83: March | D83: ='6. Historical Wholesale'!D83 -> 0 | E83: 0 | F83: 0 | H83: ='6. Historical Wholesale'!H83 -> 0 | I83: 0 | J83: 0 | L83: ='6. Historical Wholesale'!L83 -> 0 | M83: 0 | N83: 0 | P83: 0
B84: April | D84: ='6. Historical Wholesale'!D84 -> 0 | E84: 0 | F84: 0 | H84: ='6. Historical Wholesale'!H84 -> 0 | I84: 0 | J84: 0 | L84: ='6. Historical Wholesale'!L84 -> 0 | M84: 0 | N84: 0 | P84: 0
B85: May | D85: ='6. Historical Wholesale'!D85 -> 0 | E85: 0 | F85: 0 | H85: ='6. Historical Wholesale'!H85 -> 0 | I85: 0 | J85: 0 | L85: ='6. Historical Wholesale'!L85 -> 0 | M85: 0 | N85: 0 | P85: 0
B86: June | D86: ='6. Historical Wholesale'!D86 -> 0 | E86: 0 | F86: 0 | H86: ='6. Historical Wholesale'!H86 -> 0 | I86: 0 | J86: 0 | L86: ='6. Historical Wholesale'!L86 -> 0 | M86: 0 | N86: 0 | P86: 0
B87: July | D87: ='6. Historical Wholesale'!D87 -> 0 | E87: 0 | F87: 0 | H87: ='6. Historical Wholesale'!H87 -> 0 | I87: 0 | J87: 0 | L87: ='6. Historical Wholesale'!L87 -> 0 | M87: 0 | N87: 0 | P87: 0
B88: August | D88: ='6. Historical Wholesale'!D88 -> 0 | E88: 0 | F88: 0 | H88: ='6. Historical Wholesale'!H88 -> 0 | I88: 0 | J88: 0 | L88: ='6. Historical Wholesale'!L88 -> 0 | M88: 0 | N88: 0 | P88: 0
B89: September | D89: ='6. Historical Wholesale'!D89 -> 0 | E89: 0 | F89: 0 | H89: ='6. Historical Wholesale'!H89 -> 0 | I89: 0 | J89: 0 | L89: ='6. Historical Wholesale'!L89 -> 0 | M89: 0 | N89: 0 | P89: 0
B90: October | D90: ='6. Historical Wholesale'!D90 -> 0 | E90: 0 | F90: 0 | H90: ='6. Historical Wholesale'!H90 -> 0 | I90: 0 | J90: 0 | L90: ='6. Historical Wholesale'!L90 -> 0 | M90: 0 | N90: 0 | P90: 0
B91: November | D91: ='6. Historical Wholesale'!D91 -> 0 | E91: 0 | F91: 0 | H91: ='6. Historical Wholesale'!H91 -> 0 | I91: 0 | J91: 0 | L91: ='6. Historical Wholesale'!L91 -> 0 | M91: 0 | N91: 0 | P91: 0
B92: December | D92: ='6. Historical Wholesale'!D92 -> 0 | E92: 0 | F92: 0 | H92: ='6. Historical Wholesale'!H92 -> 0 | I92: 0 | J92: 0 | L92: ='6. Historical Wholesale'!L92 -> 0 | M92: 0 | N92: 0 | P92: 0
B94: Total | D94: =SUM(D81:D92) -> 0 | E94: =IF(D94<>0,F94/D94,0) -> 0 | F94: =SUM(F81:F92) -> 0 | H94: =SUM(H81:H92) -> 0 | I94: =IF(H94<>0,J94/H94,0) -> 0 | J94: =SUM(J81:J92) -> 0 | L94: =SUM(L81:L92) -> 0 | M94: =IF(L94<>0,N94/L94,0) -> 0 | N94: =SUM(N81:N92) -> 0 | P94: =SUM(P81:P92) -> 0
B96: Total | D96: Network | H96: Line Connection | L96: Transformation Connection | P96: Total Line
B98: Month | D98: Units Billed | E98: Rate | F98: Amount | H98: Units Billed | I98: Rate | J98: Amount | L98: Units Billed | M98: Rate | N98: Amount | P98: Amount
B100: January | D100: =D24+D43 -> 55909.35281 | E100: =IF(D100<>0,F100/D100,0) -> 3.798588976 | F100: =F24+F43 -> 212376.6513 | H100: =H24+H43 -> 58551.36465 | I100: =IF(H100<>0,J100/H100,0) -> 0.8152814125 | J100: =J24+J43 -> 47735.83928 | L100: =L24+L43 -> 58551.36465 | M100: =IF(L100<>0,N100/L100,0) -> 1.963555745 | N100: =N24+N43 -> 114968.8685 | P100: =J100+N100 -> 162704.7077
B101: February | D101: 47901.46627 | E101: 3.800001917 | F101: 182025.6636 | H101: 53468.32895 | I101: 0.816394304 | J101: 43651.2392 | L101: 53468.32895 | M101: 1.967434167 | N101: 105195.4172 | P101: 148846.6564
B102: March | D102: 49917.90093 | E102: 3.78211656 | F102: 188795.3197 | H102: 54971.54281 | I102: 0.8120856779 | J102: 44641.60261 | L102: 54971.54281 | M102: 1.952418626 | N102: 107327.4641 | P102: 151969.0667
B103: April | D103: 39139.07372 | E103: 3.721285687 | F103: 145647.6748 | H103: 50638.46812 | I103: 0.8021831142 | J103: 40621.32405 | L103: 50638.46812 | M103: 1.917908239 | N103: 97119.93522 | P103: 137741.2593
B104: May | D104: 38732.54786 | E104: 3.780190421 | F104: 146416.4064 | H104: 45087.91226 | I104: 0.8120297075 | J104: 36612.7242 | L104: 45087.91226 | M104: 1.952223569 | N104: 88021.68499 | P104: 124634.4092
B105: June | D105: 58975.41581 | E105: 3.778585583 | F105: 222843.6559 | H105: 62950.31517 | I105: 0.8108898633 | J105: 51045.77246 | L105: 62950.31517 | M105: 1.948251218 | N105: 122643.0282 | P105: 173688.8006
B106: July | D106: 76684.15152 | E106: 3.761769535 | F106: 288468.105 | H106: 71815.42344 | I106: 0.8054165635 | J106: 57841.33155 | L106: 71815.42344 | M106: 1.929176794 | N106: 138544.6484 | P106: 196385.9799
B107: August | D107: 64893.4714 | E107: 3.803212831 | F107: 246803.6831 | H107: 65426.11484 | I107: 0.8158414428 | J107: 53377.33593 | L107: 65426.11484 | M107: 1.965507448 | N107: 128595.516 | P107: 181972.852
B108: September | D108: 59570.66033 | E108: 3.813554109 | F108: 227175.9365 | H108: 57247.86585 | I108: 0.8165506874 | J108: 46745.78421 | L108: 57247.86585 | M108: 1.967979162 | N108: 112662.6071 | P108: 159408.3913
B109: October | D109: 48477.18618 | E109: 3.73413755 | F109: 181020.4812 | H109: 54416.21162 | I109: 0.8020393146 | J109: 43643.94107 | L109: 54416.21162 | M109: 1.917407098 | N109: 104338.0304 | P109: 147981.9715
B110: November | D110: 55414.6046 | E110: 3.778048806 | F110: 209359.0807 | H110: 57839.80968 | I110: 0.8105713371 | J110: 46883.29187 | L110: 57839.80968 | M110: 1.947141155 | N110: 112622.2738 | P110: 159505.5657
B111: December | D111: 58203.84142 | E111: 3.759589523 | F111: 218822.5524 | H111: 62743.38438 | I111: 0.8070960491 | J111: 50639.93764 | L111: 62743.38438 | M111: 1.935029794 | N111: 121410.3181 | P111: 172050.2558
B113: Total | D113: =SUM(D100:D111) -> 653819.6728 | E113: =IF(D113<>0,F113/D113,0) -> 3.777425662 | F113: =SUM(F100:F111) -> 2469755.211 | H113: =SUM(H100:H111) -> 695156.7418 | I113: =IF(H113<>0,J113/H113,0) -> 0.8105224192 | J113: =SUM(J100:J111) -> 563440.1241 | L113: =SUM(L100:L111) -> 695156.7418 | M113: =IF(L113<>0,N113/L113,0) -> 1.946970677 | N113: =SUM(N100:N111) -> 1353449.792 | P113: =SUM(P100:P111) -> 1916889.916
N115: Transformer Allowance Credit (if applicable) | P115: ='5. UTRs and Sub-Transmission'!I95 -> 0
N117: Total including deduction for Transformer Allowance Credit | P117: =P113+P115 -> 1916889.916

Sheet 9. Adj Network to Current WS
B13: The purpose of this sheet is to re-align the current RTS Network Rates to recover current wholesale network costs.
B22: Rate Class | D22: Unit | F22: Current RTSR-Network | H22: Loss Adjusted Billed kWh | J22: Loss Adjusted Billed kW | L22: Billed Amount | N22: Billed Amount % | P22: Current Wholesale Billing | R22: Proposed RTSR Network
B25: =IF('3. Rate Classes'!Q24=1,'3. Rate Classes'!C24, 0) -> Residential | D25: =IF(ISERROR(VLOOKUP($B25, '3. Rate Classes'!$C$24:$H$45,6,0)), "", VLOOKUP($B25, '3. Rate Classes'!$C$24:$H$45,6,0)) -> kWh | F25: =IF(ISERROR(VLOOKUP($B25,'3. Rate Classes'!$C$24:$N$45, 8,0)), "", VLOOKUP($B25,'3. Rate Classes'!$C$24:$N$45, 8,0)) -> 0.0065 | H25: =VLOOKUP('9. Adj Network to Current WS'!$B25, '4. RRR Data'!$B$27:$M$49,11,0) -> 179753321 | J25: =VLOOKUP('9. Adj Network to Current WS'!$B25, '4. RRR Data'!$B$27:$M$49,12,0) -> 0 | L25: =IF(F25="", "", IF(D25="kWh", F25*H25, F25*J25)) -> 1168396.587 | N25: =IF(ISERROR(L25/$L$49), "", L25/$L$49) -> 0.4956807707 | P25: =IF(ISERROR('7. Current Wholesale'!$F$113*N25), "", '7. Current Wholesale'!$F$113*N25) -> 1166989.4 | R25: =IF(D25="","",IF(D25="kWh",IF(H25<>0,P25/H25,),IF(J25<>0,P25/J25,0))) -> 0.00649217157
B26: =IF('3. Rate Classes'!Q25=1,'3. Rate Classes'!C25, 0) -> General Service Less Than 50 kW | D26: =IF(ISERROR(VLOOKUP($B26, '3. Rate Classes'!$C$24:$H$45,6,0)), "", VLOOKUP($B26, '3. Rate Classes'!$C$24:$H$45,6,0)) -> kWh | F26: =IF(ISERROR(VLOOKUP($B26,'3. Rate Classes'!$C$24:$N$45, 8,0)), "", VLOOKUP($B26,'3. Rate Classes'!$C$24:$N$45, 8,0)) -> 0.0058 | H26: =VLOOKUP('9. Adj Network to Current WS'!$B26, '4. RRR Data'!$B$27:$M$49,11,0) -> 59829221.16 | J26: =VLOOKUP('9. Adj Network to Current WS'!$B26, '4. RRR Data'!$B$27:$M$49,12,0) -> 0 | L26: =IF(F26="", "", IF(D26="kWh", F26*H26, F26*J26)) -> 347009.4827 | N26: =IF(ISERROR(L26/$L$49), "", L26/$L$49) -> 0.1472153632 | P26: =IF(ISERROR('7. Current Wholesale'!$F$113*N26), "", '7. Current Wholesale'!$F$113*N26) -> 346591.5536 | R26: =IF(D26="","",IF(D26="kWh",IF(H26<>0,P26/H26,),IF(J26<>0,P26/J26,0))) -> 0.005793014632
B27: =IF('3. Rate Classes'!Q26=1,'3. Rate Classes'!C26, 0) -> General Service 50 to 4,999 kW | D27: =IF(ISERROR(VLOOKUP($B27, '3. Rate Classes'!$C$24:$H$45,6,0)), "", VLOOKUP($B27, '3. Rate Classes'!$C$24:$H$45,6,0)) -> kW | F27: =IF(ISERROR(VLOOKUP($B27,'3. Rate Classes'!$C$24:$N$45, 8,0)), "", VLOOKUP($B27,'3. Rate Classes'!$C$24:$N$45, 8,0)) -> 2.483 | H27: =VLOOKUP('9. Adj Network to Current WS'!$B27, '4. RRR Data'!$B$27:$M$49,11,0) -> 117120197 | J27: =VLOOKUP('9. Adj Network to Current WS'!$B27, '4. RRR Data'!$B$27:$M$49,12,0) -> 332490 | L27: 825572.67 | N27: 0.3502410928 | P27: =IF(ISERROR('7. Current Wholesale'!$F$113*N27), "", '7. Current Wholesale'!$F$113*N27) -> 824578.3719 | R27: 2.48000954
B28: =IF('3. Rate Classes'!Q27=1,'3. Rate Classes'!C27, 0) -> Unmetered Scattered Load | D28: =IF(ISERROR(VLOOKUP($B28, '3. Rate Classes'!$C$24:$H$45,6,0)), "", VLOOKUP($B28, '3. Rate Classes'!$C$24:$H$45,6,0)) -> kWh | F28: =IF(ISERROR(VLOOKUP($B28,'3. Rate Classes'!$C$24:$N$45, 8,0)), "", VLOOKUP($B28,'3. Rate Classes'!$C$24:$N$45, 8,0)) -> 0.0058 | H28: =VLOOKUP('9. Adj Network to Current WS'!$B28, '4. RRR Data'!$B$27:$M$49,11,0) -> 416500.776 | J28: =VLOOKUP('9. Adj Network to Current WS'!$B28, '4. RRR Data'!$B$27:$M$49,12,0) -> 0 | L28: 2415.704501 | N28: 0.001024838897 | P28: =IF(ISERROR('7. Current Wholesale'!$F$113*N28), "", '7. Current Wholesale'!$F$113*N28) -> 2412.79509 | R28: 0.005793014632
B29: =IF('3. Rate Classes'!Q28=1,'3. Rate Classes'!C28, 0) -> Sentinel Lighting | D29: =IF(ISERROR(VLOOKUP($B29, '3. Rate Classes'!$C$24:$H$45,6,0)), "", VLOOKUP($B29, '3. Rate Classes'!$C$24:$H$45,6,0)) -> kW | F29: =IF(ISERROR(VLOOKUP($B29,'3. Rate Classes'!$C$24:$N$45, 8,0)), "", VLOOKUP($B29,'3. Rate Classes'!$C$24:$N$45, 8,0)) -> 1.8025 | H29: =VLOOKUP('9. Adj Network to Current WS'!$B29, '4. RRR Data'!$B$27:$M$49,11,0) -> 361875 | J29: =VLOOKUP('9. Adj Network to Current WS'!$B29, '4. RRR Data'!$B$27:$M$49,12,0) -> 1003 | L29: 1807.9075 | N29: 0.0007669869916 | P29: =IF(ISERROR('7. Current Wholesale'!$F$113*N29), "", '7. Current Wholesale'!$F$113*N29) -> 1805.730104 | R29: 1.800329116
B30: =IF('3. Rate Classes'!Q29=1,'3. Rate Classes'!C29, 0) -> Street Lighting | D30: =IF(ISERROR(VLOOKUP($B30, '3. Rate Classes'!$C$24:$H$45,6,0)), "", VLOOKUP($B30, '3. Rate Classes'!$C$24:$H$45,6,0)) -> kW | F30: =IF(ISERROR(VLOOKUP($B30,'3. Rate Classes'!$C$24:$N$45, 8,0)), "", VLOOKUP($B30,'3. Rate Classes'!$C$24:$N$45, 8,0)) -> 1.7934 | H30: =VLOOKUP('9. Adj Network to Current WS'!$B30, '4. RRR Data'!$B$27:$M$49,11,0) -> 2398127 | J30: =VLOOKUP('9. Adj Network to Current WS'!$B30, '4. RRR Data'!$B$27:$M$49,12,0) -> 6665 | L30: 11953.011 | N30: 0.005070947461 | P30: =IF(ISERROR('7. Current Wholesale'!$F$113*N30), "", '7. Current Wholesale'!$F$113*N30) -> 11938.61511 | R30: 1.791240076
B31: =IF('3. Rate Classes'!Q30=1,'3. Rate Classes'!C30, 0) -> 0 | D31: =IF(ISERROR(VLOOKUP($B31, '3. Rate Classes'!$C$24:$H$45,6,0)), "", VLOOKUP($B31, '3. Rate Classes'!$C$24:$H$45,6,0)) ->  | F31: =IF(ISERROR(VLOOKUP($B31,'3. Rate Classes'!$C$24:$N$45, 8,0)), "", VLOOKUP($B31,'3. Rate Classes'!$C$24:$N$45, 8,0)) ->  | H31: =VLOOKUP('9. Adj Network to Current WS'!$B31, '4. RRR Data'!$B$27:$M$49,11,0) -> 0 | J31: =VLOOKUP('9. Adj Network to Current WS'!$B31, '4. RRR Data'!$B$27:$M$49,12,0) -> 0 | P31: =IF(ISERROR('7. Current Wholesale'!$F$113*N31), "", '7. Current Wholesale'!$F$113*N31) -> 
B32: =IF('3. Rate Classes'!Q31=1,'3. Rate Classes'!C31, 0) -> 0 | D32: =IF(ISERROR(VLOOKUP($B32, '3. Rate Classes'!$C$24:$H$45,6,0)), "", VLOOKUP($B32, '3. Rate Classes'!$C$24:$H$45,6,0)) ->  | F32: =IF(ISERROR(VLOOKUP($B32,'3. Rate Classes'!$C$24:$N$45, 8,0)), "", VLOOKUP($B32,'3. Rate Classes'!$C$24:$N$45, 8,0)) ->  | H32: =VLOOKUP('9. Adj Network to Current WS'!$B32, '4. RRR Data'!$B$27:$M$49,11,0) -> 0 | J32: =VLOOKUP('9. Adj Network to Current WS'!$B32, '4. RRR Data'!$B$27:$M$49,12,0) -> 0 | P32: =IF(ISERROR('7. Current Wholesale'!$F$113*N32), "", '7. Current Wholesale'!$F$113*N32) -> 
B33: =IF('3. Rate Classes'!Q32=1,'3. Rate Classes'!C32, 0) -> 0 | D33: =IF(ISERROR(VLOOKUP($B33, '3. Rate Classes'!$C$24:$H$45,6,0)), "", VLOOKUP($B33, '3. Rate Classes'!$C$24:$H$45,6,0)) ->  | F33: =IF(ISERROR(VLOOKUP($B33,'3. Rate Classes'!$C$24:$N$45, 8,0)), "", VLOOKUP($B33,'3. Rate Classes'!$C$24:$N$45, 8,0)) ->  | H33: =VLOOKUP('9. Adj Network to Current WS'!$B33, '4. RRR Data'!$B$27:$M$49,11,0) -> 0 | J33: =VLOOKUP('9. Adj Network to Current WS'!$B33, '4. RRR Data'!$B$27:$M$49,12,0) -> 0 | P33: =IF(ISERROR('7. Current Wholesale'!$F$113*N33), "", '7. Current Wholesale'!$F$113*N33) -> 
B34: =IF('3. Rate Classes'!Q33=1,'3. Rate Classes'!C33, 0) -> 0 | D34: =IF(ISERROR(VLOOKUP($B34, '3. Rate Classes'!$C$24:$H$45,6,0)), "", VLOOKUP($B34, '3. Rate Classes'!$C$24:$H$45,6,0)) ->  | F34: =IF(ISERROR(VLOOKUP($B34,'3. Rate Classes'!$C$24:$N$45, 8,0)), "", VLOOKUP($B34,'3. Rate Classes'!$C$24:$N$45, 8,0)) ->  | H34: =VLOOKUP('9. Adj Network to Current WS'!$B34, '4. RRR Data'!$B$27:$M$49,11,0) -> 0 | J34: =VLOOKUP('9. Adj Network to Current WS'!$B34, '4. RRR Data'!$B$27:$M$49,12,0) -> 0 | P34: =IF(ISERROR('7. Current Wholesale'!$F$113*N34), "", '7. Current Wholesale'!$F$113*N34) -> 
B35: =IF('3. Rate Classes'!Q34=1,'3. Rate Classes'!C34, 0) -> 0 | D35: =IF(ISERROR(VLOOKUP($B35, '3. Rate Classes'!$C$24:$H$45,6,0)), "", VLOOKUP($B35, '3. Rate Classes'!$C$24:$H$45,6,0)) ->  | F35: =IF(ISERROR(VLOOKUP($B35,'3. Rate Classes'!$C$24:$N$45, 8,0)), "", VLOOKUP($B35,'3. Rate Classes'!$C$24:$N$45, 8,0)) ->  | H35: =VLOOKUP('9. Adj Network to Current WS'!$B35, '4. RRR Data'!$B$27:$M$49,11,0) -> 0 | J35: =VLOOKUP('9. Adj Network to Current WS'!$B35, '4. RRR Data'!$B$27:$M$49,12,0) -> 0 | P35: =IF(ISERROR('7. Current Wholesale'!$F$113*N35), "", '7. Current Wholesale'!$F$113*N35) -> 
B36: =IF('3. Rate Classes'!Q35=1,'3. Rate Classes'!C35, 0) -> 0 | D36: =IF(ISERROR(VLOOKUP($B36, '3. Rate Classes'!$C$24:$H$45,6,0)), "", VLOOKUP($B36, '3. Rate Classes'!$C$24:$H$45,6,0)) ->  | F36: =IF(ISERROR(VLOOKUP($B36,'3. Rate Classes'!$C$24:$N$45, 8,0)), "", VLOOKUP($B36,'3. Rate Classes'!$C$24:$N$45, 8,0)) ->  | H36: =VLOOKUP('9. Adj Network to Current WS'!$B36, '4. RRR Data'!$B$27:$M$49,11,0) -> 0 | J36: =VLOOKUP('9. Adj Network to Current WS'!$B36, '4. RRR Data'!$B$27:$M$49,12,0) -> 0 | P36: =IF(ISERROR('7. Current Wholesale'!$F$113*N36), "", '7. Current Wholesale'!$F$113*N36) -> 
B37: =IF('3. Rate Classes'!Q36=1,'3. Rate Classes'!C36, 0) -> 0 | D37: =IF(ISERROR(VLOOKUP($B37, '3. Rate Classes'!$C$24:$H$45,6,0)), "", VLOOKUP($B37, '3. Rate Classes'!$C$24:$H$45,6,0)) ->  | F37: =IF(ISERROR(VLOOKUP($B37,'3. Rate Classes'!$C$24:$N$45, 8,0)), "", VLOOKUP($B37,'3. Rate Classes'!$C$24:$N$45, 8,0)) ->  | H37: =VLOOKUP('9. Adj Network to Current WS'!$B37, '4. RRR Data'!$B$27:$M$49,11,0) -> 0 | J37: =VLOOKUP('9. Adj Network to Current WS'!$B37, '4. RRR Data'!$B$27:$M$49,12,0) -> 0 | P37: =IF(ISERROR('7. Current Wholesale'!$F$113*N37), "", '7. Current Wholesale'!$F$113*N37) -> 
B38: =IF('3. Rate Classes'!Q37=1,'3. Rate Classes'!C37, 0) -> 0 | D38: =IF(ISERROR(VLOOKUP($B38, '3. Rate Classes'!$C$24:$H$45,6,0)), "", VLOOKUP($B38, '3. Rate Classes'!$C$24:$H$45,6,0)) ->  | F38: =IF(ISERROR(VLOOKUP($B38,'3. Rate Classes'!$C$24:$N$45, 8,0)), "", VLOOKUP($B38,'3. Rate Classes'!$C$24:$N$45, 8,0)) ->  | H38: =VLOOKUP('9. Adj Network to Current WS'!$B38, '4. RRR Data'!$B$27:$M$49,11,0) -> 0 | J38: =VLOOKUP('9. Adj Network to Current WS'!$B38, '4. RRR Data'!$B$27:$M$49,12,0) -> 0 | P38: =IF(ISERROR('7. Current Wholesale'!$F$113*N38), "", '7. Current Wholesale'!$F$113*N38) -> 
B39: =IF('3. Rate Classes'!Q38=1,'3. Rate Classes'!C38, 0) -> 0 | D39: =IF(ISERROR(VLOOKUP($B39, '3. Rate Classes'!$C$24:$H$45,6,0)), "", VLOOKUP($B39, '3. Rate Classes'!$C$24:$H$45,6,0)) ->  | F39: =IF(ISERROR(VLOOKUP($B39,'3. Rate Classes'!$C$24:$N$45, 8,0)), "", VLOOKUP($B39,'3. Rate Classes'!$C$24:$N$45, 8,0)) ->  | H39: =VLOOKUP('9. Adj Network to Current WS'!$B39, '4. RRR Data'!$B$27:$M$49,11,0) -> 0 | J39: =VLOOKUP('9. Adj Network to Current WS'!$B39, '4. RRR Data'!$B$27:$M$49,12,0) -> 0 | L39: =IF(F39="", "", IF(D39="kWh", F39*H39, F39*J39)) ->  | P39: =IF(ISERROR('7. Current Wholesale'!$F$113*N39), "", '7. Current Wholesale'!$F$113*N39) -> 
B40: =IF('3. Rate Classes'!Q39=1,'3. Rate Classes'!C39, 0) -> 0 | D40: =IF(ISERROR(VLOOKUP($B40, '3. Rate Classes'!$C$24:$H$45,6,0)), "", VLOOKUP($B40, '3. Rate Classes'!$C$24:$H$45,6,0)) ->  | F40: =IF(ISERROR(VLOOKUP($B40,'3. Rate Classes'!$C$24:$N$45, 8,0)), "", VLOOKUP($B40,'3. Rate Classes'!$C$24:$N$45, 8,0)) ->  | H40: =VLOOKUP('9. Adj Network to Current WS'!$B40, '4. RRR Data'!$B$27:$M$49,11,0) -> 0 | J40: =VLOOKUP('9. Adj Network to Current WS'!$B40, '4. RRR Data'!$B$27:$M$49,12,0) -> 0 | P40: =IF(ISERROR('7. Current Wholesale'!$F$113*N40), "", '7. Current Wholesale'!$F$113*N40) -> 
B41: =IF('3. Rate Classes'!Q40=1,'3. Rate Classes'!C40, 0) -> 0 | D41: =IF(ISERROR(VLOOKUP($B41, '3. Rate Classes'!$C$24:$H$45,6,0)), "", VLOOKUP($B41, '3. Rate Classes'!$C$24:$H$45,6,0)) ->  | F41: =IF(ISERROR(VLOOKUP($B41,'3. Rate Classes'!$C$24:$N$45, 8,0)), "", VLOOKUP($B41,'3. Rate Classes'!$C$24:$N$45, 8,0)) ->  | H41: =VLOOKUP('9. Adj Network to Current WS'!$B41, '4. RRR Data'!$B$27:$M$49,11,0) -> 0 | J41: =VLOOKUP('9. Adj Network to Current WS'!$B41, '4. RRR Data'!$B$27:$M$49,12,0) -> 0 | P41: =IF(ISERROR('7. Current Wholesale'!$F$113*N41), "", '7. Current Wholesale'!$F$113*N41) -> 
B42: =IF('3. Rate Classes'!Q41=1,'3. Rate Classes'!C41, 0) -> 0 | D42: =IF(ISERROR(VLOOKUP($B42, '3. Rate Classes'!$C$24:$H$45,6,0)), "", VLOOKUP($B42, '3. Rate Classes'!$C$24:$H$45,6,0)) ->  | F42: =IF(ISERROR(VLOOKUP($B42,'3. Rate Classes'!$C$24:$N$45, 8,0)), "", VLOOKUP($B42,'3. Rate Classes'!$C$24:$N$45, 8,0)) ->  | H42: =VLOOKUP('9. Adj Network to Current WS'!$B42, '4. RRR Data'!$B$27:$M$49,11,0) -> 0 | J42: =VLOOKUP('9. Adj Network to Current WS'!$B42, '4. RRR Data'!$B$27:$M$49,12,0) -> 0 | P42: =IF(ISERROR('7. Current Wholesale'!$F$113*N42), "", '7. Current Wholesale'!$F$113*N42) -> 
B43: =IF('3. Rate Classes'!Q42=1,'3. Rate Classes'!C42, 0) -> 0 | D43: =IF(ISERROR(VLOOKUP($B43, '3. Rate Classes'!$C$24:$H$45,6,0)), "", VLOOKUP($B43, '3. Rate Classes'!$C$24:$H$45,6,0)) ->  | F43: =IF(ISERROR(VLOOKUP($B43,'3. Rate Classes'!$C$24:$N$45, 8,0)), "", VLOOKUP($B43,'3. Rate Classes'!$C$24:$N$45, 8,0)) ->  | H43: =VLOOKUP('9. Adj Network to Current WS'!$B43, '4. RRR Data'!$B$27:$M$49,11,0) -> 0 | J43: =VLOOKUP('9. Adj Network to Current WS'!$B43, '4. RRR Data'!$B$27:$M$49,12,0) -> 0 | P43: =IF(ISERROR('7. Current Wholesale'!$F$113*N43), "", '7. Current Wholesale'!$F$113*N43) -> 
B44: =IF('3. Rate Classes'!Q43=1,'3. Rate Classes'!C43, 0) -> 0 | D44: =IF(ISERROR(VLOOKUP($B44, '3. Rate Classes'!$C$24:$H$45,6,0)), "", VLOOKUP($B44, '3. Rate Classes'!$C$24:$H$45,6,0)) ->  | F44: =IF(ISERROR(VLOOKUP($B44,'3. Rate Classes'!$C$24:$N$45, 8,0)), "", VLOOKUP($B44,'3. Rate Classes'!$C$24:$N$45, 8,0)) ->  | H44: =VLOOKUP('9. Adj Network to Current WS'!$B44, '4. RRR Data'!$B$27:$M$49,11,0) -> 0 | J44: =VLOOKUP('9. Adj Network to Current WS'!$B44, '4. RRR Data'!$B$27:$M$49,12,0) -> 0 | P44: =IF(ISERROR('7. Current Wholesale'!$F$113*N44), "", '7. Current Wholesale'!$F$113*N44) -> 
B45: =IF('3. Rate Classes'!Q44=1,'3. Rate Classes'!C44, 0) -> 0 | D45: =IF(ISERROR(VLOOKUP($B45, '3. Rate Classes'!$C$24:$H$45,6,0)), "", VLOOKUP($B45, '3. Rate Classes'!$C$24:$H$45,6,0)) ->  | F45: =IF(ISERROR(VLOOKUP($B45,'3. Rate Classes'!$C$24:$N$45, 8,0)), "", VLOOKUP($B45,'3. Rate Classes'!$C$24:$N$45, 8,0)) ->  | H45: =VLOOKUP('9. Adj Network to Current WS'!$B45, '4. RRR Data'!$B$27:$M$49,11,0) -> 0 | J45: =VLOOKUP('9. Adj Network to Current WS'!$B45, '4. RRR Data'!$B$27:$M$49,12,0) -> 0 | P45: =IF(ISERROR('7. Current Wholesale'!$F$113*N45), "", '7. Current Wholesale'!$F$113*N45) -> 
B46: =IF('3. Rate Classes'!Q45=1,'3. Rate Classes'!C45, 0) -> 0 | D46: =IF(ISERROR(VLOOKUP($B46, '3. Rate Classes'!$C$24:$H$45,6,0)), "", VLOOKUP($B46, '3. Rate Classes'!$C$24:$H$45,6,0)) ->  | F46: =IF(ISERROR(VLOOKUP($B46,'3. Rate Classes'!$C$24:$N$45, 8,0)), "", VLOOKUP($B46,'3. Rate Classes'!$C$24:$N$45, 8,0)) ->  | H46: =VLOOKUP('9. Adj Network to Current WS'!$B46, '4. RRR Data'!$B$27:$M$49,11,0) -> 0 | J46: =VLOOKUP('9. Adj Network to Current WS'!$B46, '4. RRR Data'!$B$27:$M$49,12,0) -> 0 | P46: =IF(ISERROR('7. Current Wholesale'!$F$113*N46), "", '7. Current Wholesale'!$F$113*N46) -> 
L49: =SUM(L25:L46) -> 2357155.362

Sheet 10. Adj Conn. to Current WS
B13: The purpose of this sheet is to re-align the current RTS Connection Rates to recover current wholesale connection costs.
B22: Rate Class | D22: Unit | F22: Current RTSR-Connection | H22: Loss Adjusted Billed kWh | J22: Loss Adjusted Billed kW | L22: Billed Amount | N22: Billed Amount % | P22: Current Wholesale Billing | R22: Proposed RTSR Connection
B25: =IF('3. Rate Classes'!Q24=1,'3. Rate Classes'!C24, 0) -> Residential | D25: =IF(ISERROR(VLOOKUP($B25, '3. Rate Classes'!$C$24:$H$45,6,0)), "", VLOOKUP($B25, '3. Rate Classes'!$C$24:$H$45,6,0)) -> kWh | F25: =IF(ISERROR(VLOOKUP($B25,'3. Rate Classes'!$C$24:$N$45, 11,0)), "", VLOOKUP($B25,'3. Rate Classes'!$C$24:$N$45, 11,0)) -> 0.0048 | H25: =VLOOKUP('9. Adj Network to Current WS'!$B25, '4. RRR Data'!$B$27:$M$49,11,0) -> 179753321 | J25: =VLOOKUP('9. Adj Network to Current WS'!$B25, '4. RRR Data'!$B$27:$M$49,12,0) -> 0 | L25: =IF(F25="", "", IF(D25="kWh", F25*H25, F25*J25)) -> 862815.9408 | N25: =IF(ISERROR(L25/$L$49), "", L25/$L$49) -> 0.4907501283 | P25: =IF(ISERROR('7. Current Wholesale'!$P$117*N25), "", '7. Current Wholesale'!$P$117*N25) -> 880622.2452 | R25: =IF(D25="","",IF(D25="kWh",IF(H25<>0,P25/H25,),IF(J25<>0,P25/J25,0))) -> 0.004899059668
B26: =IF('3. Rate Classes'!Q25=1,'3. Rate Classes'!C25, 0) -> General Service Less Than 50 kW | D26: =IF(ISERROR(VLOOKUP($B26, '3. Rate Classes'!$C$24:$H$45,6,0)), "", VLOOKUP($B26, '3. Rate Classes'!$C$24:$H$45,6,0)) -> kWh | F26: =IF(ISERROR(VLOOKUP($B26,'3. Rate Classes'!$C$24:$N$45, 11,0)), "", VLOOKUP($B26,'3. Rate Classes'!$C$24:$N$45, 11,0)) -> 0.0044 | H26: =VLOOKUP('9. Adj Network to Current WS'!$B26, '4. RRR Data'!$B$27:$M$49,11,0) -> 59829221.16 | J26: =VLOOKUP('9. Adj Network to Current WS'!$B26, '4. RRR Data'!$B$27:$M$49,12,0) -> 0 | L26: 263248.5731 | N26: 0.1497298148 | P26: =IF(ISERROR('7. Current Wholesale'!$P$117*N26), "", '7. Current Wholesale'!$P$117*N26) -> 268681.3473 | R26: 0.004490804696
B27: =IF('3. Rate Classes'!Q26=1,'3. Rate Classes'!C26, 0) -> General Service 50 to 4,999 kW | D27: =IF(ISERROR(VLOOKUP($B27, '3. Rate Classes'!$C$24:$H$45,6,0)), "", VLOOKUP($B27, '3. Rate Classes'!$C$24:$H$45,6,0)) -> kW | F27: =IF(ISERROR(VLOOKUP($B27,'3. Rate Classes'!$C$24:$N$45, 11,0)), "", VLOOKUP($B27,'3. Rate Classes'!$C$24:$N$45, 11,0)) -> 1.8646 | H27: =VLOOKUP('9. Adj Network to Current WS'!$B27, '4. RRR Data'!$B$27:$M$49,11,0) -> 117120197 | J27: =VLOOKUP('9. Adj Network to Current WS'!$B27, '4. RRR Data'!$B$27:$M$49,12,0) -> 332490 | L27: 619960.854 | N27: 0.3526196657 | P27: =IF(ISERROR('7. Current Wholesale'!$P$117*N27), "", '7. Current Wholesale'!$P$117*N27) -> 632755.2533 | R27: 1.903080554
B28: =IF('3. Rate Classes'!Q27=1,'3. Rate Classes'!C27, 0) -> Unmetered Scattered Load | D28: =IF(ISERROR(VLOOKUP($B28, '3. Rate Classes'!$C$24:$H$45,6,0)), "", VLOOKUP($B28, '3. Rate Classes'!$C$24:$H$45,6,0)) -> kWh | F28: =IF(ISERROR(VLOOKUP($B28,'3. Rate Classes'!$C$24:$N$45, 11,0)), "", VLOOKUP($B28,'3. Rate Classes'!$C$24:$N$45, 11,0)) -> 0.0044 | H28: =VLOOKUP('9. Adj Network to Current WS'!$B28, '4. RRR Data'!$B$27:$M$49,11,0) -> 416500.776 | J28: =VLOOKUP('9. Adj Network to Current WS'!$B28, '4. RRR Data'!$B$27:$M$49,12,0) -> 0 | L28: 1832.603414 | N28: 0.001042343237 | P28: =IF(ISERROR('7. Current Wholesale'!$P$117*N28), "", '7. Current Wholesale'!$P$117*N28) -> 1870.423641 | R28: 0.004490804696
B29: =IF('3. Rate Classes'!Q28=1,'3. Rate Classes'!C28, 0) -> Sentinel Lighting | D29: =IF(ISERROR(VLOOKUP($B29, '3. Rate Classes'!$C$24:$H$45,6,0)), "", VLOOKUP($B29, '3. Rate Classes'!$C$24:$H$45,6,0)) -> kW | F29: =IF(ISERROR(VLOOKUP($B29,'3. Rate Classes'!$C$24:$N$45, 11,0)), "", VLOOKUP($B29,'3. Rate Classes'!$C$24:$N$45, 11,0)) -> 1.3675 | H29: =VLOOKUP('9. Adj Network to Current WS'!$B29, '4. RRR Data'!$B$27:$M$49,11,0) -> 361875 | J29: =VLOOKUP('9. Adj Network to Current WS'!$B29, '4. RRR Data'!$B$27:$M$49,12,0) -> 1003 | L29: 1371.6025 | N29: 0.0007801363779 | P29: =IF(ISERROR('7. Current Wholesale'!$P$117*N29), "", '7. Current Wholesale'!$P$117*N29) -> 1399.908852 | R29: 1.395721687
B30: =IF('3. Rate Classes'!Q29=1,'3. Rate Classes'!C29, 0) -> Street Lighting | D30: =IF(ISERROR(VLOOKUP($B30, '3. Rate Classes'!$C$24:$H$45,6,0)), "", VLOOKUP($B30, '3. Rate Classes'!$C$24:$H$45,6,0)) -> kW | F30: =IF(ISERROR(VLOOKUP($B30,'3. Rate Classes'!$C$24:$N$45, 11,0)), "", VLOOKUP($B30,'3. Rate Classes'!$C$24:$N$45, 11,0)) -> 1.3395 | H30: =VLOOKUP('9. Adj Network to Current WS'!$B30, '4. RRR Data'!$B$27:$M$49,11,0) -> 2398127 | J30: =VLOOKUP('9. Adj Network to Current WS'!$B30, '4. RRR Data'!$B$27:$M$49,12,0) -> 6665 | L30: 8927.7675 | N30: 0.005077911567 | P30: =IF(ISERROR('7. Current Wholesale'!$P$117*N30), "", '7. Current Wholesale'!$P$117*N30) -> 9112.013685 | R30: 1.367143839
B31: =IF('3. Rate Classes'!Q30=1,'3. Rate Classes'!C30, 0) -> 0 | D31: =IF(ISERROR(VLOOKUP($B31, '3. Rate Classes'!$C$24:$H$45,6,0)), "", VLOOKUP($B31, '3. Rate Classes'!$C$24:$H$45,6,0)) ->  | F31: =IF(ISERROR(VLOOKUP($B31,'3. Rate Classes'!$C$24:$N$45, 11,0)), "", VLOOKUP($B31,'3. Rate Classes'!$C$24:$N$45, 11,0)) ->  | H31: =VLOOKUP('9. Adj Network to Current WS'!$B31, '4. RRR Data'!$B$27:$M$49,11,0) -> 0 | J31: =VLOOKUP('9. Adj Network to Current WS'!$B31, '4. RRR Data'!$B$27:$M$49,12,0) -> 0 | P31: =IF(ISERROR('7. Current Wholesale'!$P$117*N31), "", '7. Current Wholesale'!$P$117*N31) -> 
B32: =IF('3. Rate Classes'!Q31=1,'3. Rate Classes'!C31, 0) -> 0 | D32: =IF(ISERROR(VLOOKUP($B32, '3. Rate Classes'!$C$24:$H$45,6,0)), "", VLOOKUP($B32, '3. Rate Classes'!$C$24:$H$45,6,0)) ->  | F32: =IF(ISERROR(VLOOKUP($B32,'3. Rate Classes'!$C$24:$N$45, 11,0)), "", VLOOKUP($B32,'3. Rate Classes'!$C$24:$N$45, 11,0)) ->  | H32: =VLOOKUP('9. Adj Network to Current WS'!$B32, '4. RRR Data'!$B$27:$M$49,11,0) -> 0 | J32: =VLOOKUP('9. Adj Network to Current WS'!$B32, '4. RRR Data'!$B$27:$M$49,12,0) -> 0 | P32: =IF(ISERROR('7. Current Wholesale'!$P$117*N32), "", '7. Current Wholesale'!$P$117*N32) -> 
B33: =IF('3. Rate Classes'!Q32=1,'3. Rate Classes'!C32, 0) -> 0 | D33: =IF(ISERROR(VLOOKUP($B33, '3. Rate Classes'!$C$24:$H$45,6,0)), "", VLOOKUP($B33, '3. Rate Classes'!$C$24:$H$45,6,0)) ->  | F33: =IF(ISERROR(VLOOKUP($B33,'3. Rate Classes'!$C$24:$N$45, 11,0)), "", VLOOKUP($B33,'3. Rate Classes'!$C$24:$N$45, 11,0)) ->  | H33: =VLOOKUP('9. Adj Network to Current WS'!$B33, '4. RRR Data'!$B$27:$M$49,11,0) -> 0 | J33: =VLOOKUP('9. Adj Network to Current WS'!$B33, '4. RRR Data'!$B$27:$M$49,12,0) -> 0 | P33: =IF(ISERROR('7. Current Wholesale'!$P$117*N33), "", '7. Current Wholesale'!$P$117*N33) -> 
B34: =IF('3. Rate Classes'!Q33=1,'3. Rate Classes'!C33, 0) -> 0 | D34: =IF(ISERROR(VLOOKUP($B34, '3. Rate Classes'!$C$24:$H$45,6,0)), "", VLOOKUP($B34, '3. Rate Classes'!$C$24:$H$45,6,0)) ->  | F34: =IF(ISERROR(VLOOKUP($B34,'3. Rate Classes'!$C$24:$N$45, 11,0)), "", VLOOKUP($B34,'3. Rate Classes'!$C$24:$N$45, 11,0)) ->  | H34: =VLOOKUP('9. Adj Network to Current WS'!$B34, '4. RRR Data'!$B$27:$M$49,11,0) -> 0 | J34: =VLOOKUP('9. Adj Network to Current WS'!$B34, '4. RRR Data'!$B$27:$M$49,12,0) -> 0 | P34: =IF(ISERROR('7. Current Wholesale'!$P$117*N34), "", '7. Current Wholesale'!$P$117*N34) -> 
B35: =IF('3. Rate Classes'!Q34=1,'3. Rate Classes'!C34, 0) -> 0 | D35: =IF(ISERROR(VLOOKUP($B35, '3. Rate Classes'!$C$24:$H$45,6,0)), "", VLOOKUP($B35, '3. Rate Classes'!$C$24:$H$45,6,0)) ->  | F35: =IF(ISERROR(VLOOKUP($B35,'3. Rate Classes'!$C$24:$N$45, 11,0)), "", VLOOKUP($B35,'3. Rate Classes'!$C$24:$N$45, 11,0)) ->  | H35: =VLOOKUP('9. Adj Network to Current WS'!$B35, '4. RRR Data'!$B$27:$M$49,11,0) -> 0 | J35: =VLOOKUP('9. Adj Network to Current WS'!$B35, '4. RRR Data'!$B$27:$M$49,12,0) -> 0 | P35: =IF(ISERROR('7. Current Wholesale'!$P$117*N35), "", '7. Current Wholesale'!$P$117*N35) -> 
B36: =IF('3. Rate Classes'!Q35=1,'3. Rate Classes'!C35, 0) -> 0 | D36: =IF(ISERROR(VLOOKUP($B36, '3. Rate Classes'!$C$24:$H$45,6,0)), "", VLOOKUP($B36, '3. Rate Classes'!$C$24:$H$45,6,0)) ->  | F36: =IF(ISERROR(VLOOKUP($B36,'3. Rate Classes'!$C$24:$N$45, 11,0)), "", VLOOKUP($B36,'3. Rate Classes'!$C$24:$N$45, 11,0)) ->  | H36: =VLOOKUP('9. Adj Network to Current WS'!$B36, '4. RRR Data'!$B$27:$M$49,11,0) -> 0 | J36: =VLOOKUP('9. Adj Network to Current WS'!$B36, '4. RRR Data'!$B$27:$M$49,12,0) -> 0 | P36: =IF(ISERROR('7. Current Wholesale'!$P$117*N36), "", '7. Current Wholesale'!$P$117*N36) -> 
B37: =IF('3. Rate Classes'!Q36=1,'3. Rate Classes'!C36, 0) -> 0 | D37: =IF(ISERROR(VLOOKUP($B37, '3. Rate Classes'!$C$24:$H$45,6,0)), "", VLOOKUP($B37, '3. Rate Classes'!$C$24:$H$45,6,0)) ->  | F37: =IF(ISERROR(VLOOKUP($B37,'3. Rate Classes'!$C$24:$N$45, 11,0)), "", VLOOKUP($B37,'3. Rate Classes'!$C$24:$N$45, 11,0)) ->  | H37: =VLOOKUP('9. Adj Network to Current WS'!$B37, '4. RRR Data'!$B$27:$M$49,11,0) -> 0 | J37: =VLOOKUP('9. Adj Network to Current WS'!$B37, '4. RRR Data'!$B$27:$M$49,12,0) -> 0 | P37: =IF(ISERROR('7. Current Wholesale'!$P$117*N37), "", '7. Current Wholesale'!$P$117*N37) -> 
B38: =IF('3. Rate Classes'!Q37=1,'3. Rate Classes'!C37, 0) -> 0 | D38: =IF(ISERROR(VLOOKUP($B38, '3. Rate Classes'!$C$24:$H$45,6,0)), "", VLOOKUP($B38, '3. Rate Classes'!$C$24:$H$45,6,0)) ->  | F38: =IF(ISERROR(VLOOKUP($B38,'3. Rate Classes'!$C$24:$N$45, 11,0)), "", VLOOKUP($B38,'3. Rate Classes'!$C$24:$N$45, 11,0)) ->  | H38: =VLOOKUP('9. Adj Network to Current WS'!$B38, '4. RRR Data'!$B$27:$M$49,11,0) -> 0 | J38: =VLOOKUP('9. Adj Network to Current WS'!$B38, '4. RRR Data'!$B$27:$M$49,12,0) -> 0 | P38: =IF(ISERROR('7. Current Wholesale'!$P$117*N38), "", '7. Current Wholesale'!$P$117*N38) -> 
B39: =IF('3. Rate Classes'!Q38=1,'3. Rate Classes'!C38, 0) -> 0 | D39: =IF(ISERROR(VLOOKUP($B39, '3. Rate Classes'!$C$24:$H$45,6,0)), "", VLOOKUP($B39, '3. Rate Classes'!$C$24:$H$45,6,0)) ->  | F39: =IF(ISERROR(VLOOKUP($B39,'3. Rate Classes'!$C$24:$N$45, 11,0)), "", VLOOKUP($B39,'3. Rate Classes'!$C$24:$N$45, 11,0)) ->  | H39: =VLOOKUP('9. Adj Network to Current WS'!$B39, '4. RRR Data'!$B$27:$M$49,11,0) -> 0 | J39: =VLOOKUP('9. Adj Network to Current WS'!$B39, '4. RRR Data'!$B$27:$M$49,12,0) -> 0 | P39: =IF(ISERROR('7. Current Wholesale'!$P$117*N39), "", '7. Current Wholesale'!$P$117*N39) -> 
B40: =IF('3. Rate Classes'!Q39=1,'3. Rate Classes'!C39, 0) -> 0 | D40: =IF(ISERROR(VLOOKUP($B40, '3. Rate Classes'!$C$24:$H$45,6,0)), "", VLOOKUP($B40, '3. Rate Classes'!$C$24:$H$45,6,0)) ->  | F40: =IF(ISERROR(VLOOKUP($B40,'3. Rate Classes'!$C$24:$N$45, 11,0)), "", VLOOKUP($B40,'3. Rate Classes'!$C$24:$N$45, 11,0)) ->  | H40: =VLOOKUP('9. Adj Network to Current WS'!$B40, '4. RRR Data'!$B$27:$M$49,11,0) -> 0 | J40: =VLOOKUP('9. Adj Network to Current WS'!$B40, '4. RRR Data'!$B$27:$M$49,12,0) -> 0 | P40: =IF(ISERROR('7. Current Wholesale'!$P$117*N40), "", '7. Current Wholesale'!$P$117*N40) -> 
B41: =IF('3. Rate Classes'!Q40=1,'3. Rate Classes'!C40, 0) -> 0 | D41: =IF(ISERROR(VLOOKUP($B41, '3. Rate Classes'!$C$24:$H$45,6,0)), "", VLOOKUP($B41, '3. Rate Classes'!$C$24:$H$45,6,0)) ->  | F41: =IF(ISERROR(VLOOKUP($B41,'3. Rate Classes'!$C$24:$N$45, 11,0)), "", VLOOKUP($B41,'3. Rate Classes'!$C$24:$N$45, 11,0)) ->  | H41: =VLOOKUP('9. Adj Network to Current WS'!$B41, '4. RRR Data'!$B$27:$M$49,11,0) -> 0 | J41: =VLOOKUP('9. Adj Network to Current WS'!$B41, '4. RRR Data'!$B$27:$M$49,12,0) -> 0 | P41: =IF(ISERROR('7. Current Wholesale'!$P$117*N41), "", '7. Current Wholesale'!$P$117*N41) -> 
B42: =IF('3. Rate Classes'!Q41=1,'3. Rate Classes'!C41, 0) -> 0 | D42: =IF(ISERROR(VLOOKUP($B42, '3. Rate Classes'!$C$24:$H$45,6,0)), "", VLOOKUP($B42, '3. Rate Classes'!$C$24:$H$45,6,0)) ->  | F42: =IF(ISERROR(VLOOKUP($B42,'3. Rate Classes'!$C$24:$N$45, 11,0)), "", VLOOKUP($B42,'3. Rate Classes'!$C$24:$N$45, 11,0)) ->  | H42: =VLOOKUP('9. Adj Network to Current WS'!$B42, '4. RRR Data'!$B$27:$M$49,11,0) -> 0 | J42: =VLOOKUP('9. Adj Network to Current WS'!$B42, '4. RRR Data'!$B$27:$M$49,12,0) -> 0 | P42: =IF(ISERROR('7. Current Wholesale'!$P$117*N42), "", '7. Current Wholesale'!$P$117*N42) -> 
B43: =IF('3. Rate Classes'!Q42=1,'3. Rate Classes'!C42, 0) -> 0 | D43: =IF(ISERROR(VLOOKUP($B43, '3. Rate Classes'!$C$24:$H$45,6,0)), "", VLOOKUP($B43, '3. Rate Classes'!$C$24:$H$45,6,0)) ->  | F43: =IF(ISERROR(VLOOKUP($B43,'3. Rate Classes'!$C$24:$N$45, 11,0)), "", VLOOKUP($B43,'3. Rate Classes'!$C$24:$N$45, 11,0)) ->  | H43: =VLOOKUP('9. Adj Network to Current WS'!$B43, '4. RRR Data'!$B$27:$M$49,11,0) -> 0 | J43: =VLOOKUP('9. Adj Network to Current WS'!$B43, '4. RRR Data'!$B$27:$M$49,12,0) -> 0 | P43: =IF(ISERROR('7. Current Wholesale'!$P$117*N43), "", '7. Current Wholesale'!$P$117*N43) -> 
B44: =IF('3. Rate Classes'!Q43=1,'3. Rate Classes'!C43, 0) -> 0 | D44: =IF(ISERROR(VLOOKUP($B44, '3. Rate Classes'!$C$24:$H$45,6,0)), "", VLOOKUP($B44, '3. Rate Classes'!$C$24:$H$45,6,0)) ->  | F44: =IF(ISERROR(VLOOKUP($B44,'3. Rate Classes'!$C$24:$N$45, 11,0)), "", VLOOKUP($B44,'3. Rate Classes'!$C$24:$N$45, 11,0)) ->  | H44: =VLOOKUP('9. Adj Network to Current WS'!$B44, '4. RRR Data'!$B$27:$M$49,11,0) -> 0 | J44: =VLOOKUP('9. Adj Network to Current WS'!$B44, '4. RRR Data'!$B$27:$M$49,12,0) -> 0 | P44: =IF(ISERROR('7. Current Wholesale'!$P$117*N44), "", '7. Current Wholesale'!$P$117*N44) -> 
B45: =IF('3. Rate Classes'!Q44=1,'3. Rate Classes'!C44, 0) -> 0 | D45: =IF(ISERROR(VLOOKUP($B45, '3. Rate Classes'!$C$24:$H$45,6,0)), "", VLOOKUP($B45, '3. Rate Classes'!$C$24:$H$45,6,0)) ->  | F45: =IF(ISERROR(VLOOKUP($B45,'3. Rate Classes'!$C$24:$N$45, 11,0)), "", VLOOKUP($B45,'3. Rate Classes'!$C$24:$N$45, 11,0)) ->  | H45: =VLOOKUP('9. Adj Network to Current WS'!$B45, '4. RRR Data'!$B$27:$M$49,11,0) -> 0 | J45: =VLOOKUP('9. Adj Network to Current WS'!$B45, '4. RRR Data'!$B$27:$M$49,12,0) -> 0 | P45: =IF(ISERROR('7. Current Wholesale'!$P$117*N45), "", '7. Current Wholesale'!$P$117*N45) -> 
B46: =IF('3. Rate Classes'!Q45=1,'3. Rate Classes'!C45, 0) -> 0 | D46: =IF(ISERROR(VLOOKUP($B46, '3. Rate Classes'!$C$24:$H$45,6,0)), "", VLOOKUP($B46, '3. Rate Classes'!$C$24:$H$45,6,0)) ->  | F46: =IF(ISERROR(VLOOKUP($B46,'3. Rate Classes'!$C$24:$N$45, 11,0)), "", VLOOKUP($B46,'3. Rate Classes'!$C$24:$N$45, 11,0)) ->  | H46: =VLOOKUP('9. Adj Network to Current WS'!$B46, '4. RRR Data'!$B$27:$M$49,11,0) -> 0 | J46: =VLOOKUP('9. Adj Network to Current WS'!$B46, '4. RRR Data'!$B$27:$M$49,12,0) -> 0 | P46: =IF(ISERROR('7. Current Wholesale'!$P$117*N46), "", '7. Current Wholesale'!$P$117*N46) -> 
L49: =SUM(L25:L46) -> 1758157.341

Sheet 11. Adj Network to Forecast WS
B13: The purpose of this sheet is to update the re-align RTS Network Rates to recover forecast wholesale network costs.
B22: Rate Class | D22: Unit | F22: Adjusted RTSR-Network | H22: Loss Adjusted Billed kWh | J22: Loss Adjusted Billed kW | L22: Billed Amount | N22: Billed Amount % | P22: Forecast Wholesale Billing | R22: Proposed RTSR Network
B25: =IF('3. Rate Classes'!Q24=1,'3. Rate Classes'!C24, 0) -> Residential | D25: =IF(ISERROR(VLOOKUP($B25, '3. Rate Classes'!$C$24:$H$45,6,0)), "", VLOOKUP($B25, '3. Rate Classes'!$C$24:$H$45,6,0)) -> kWh | F25: =VLOOKUP($B25, '9. Adj Network to Current WS'!$B$25:$R$47, 17,0) -> 0.00649217157 | H25: =VLOOKUP('9. Adj Network to Current WS'!$B25, '4. RRR Data'!$B$27:$M$49,11,0) -> 179753321 | J25: =VLOOKUP('9. Adj Network to Current WS'!$B25, '4. RRR Data'!$B$27:$M$49,12,0) -> 0 | L25: =IF(F25="", "", IF(D25="kWh", F25*H25, F25*J25)) -> 1166989.4 | N25: =IF(ISERROR(L25/$L$49), "", L25/$L$49) -> 0.4956807707 | P25: =IF(ISERROR('8. Forecast Wholesale'!$F$113*N25), "", '8. Forecast Wholesale'!$F$113*N25) -> 1224210.166 | R25: =IF(D25="","",IF(D25="kWh",IF(H25<>0,P25/H25,),IF(J25<>0,P25/J25,0))) -> 0.006810500965
B26: =IF('3. Rate Classes'!Q25=1,'3. Rate Classes'!C25, 0) -> General Service Less Than 50 kW | D26: =IF(ISERROR(VLOOKUP($B26, '3. Rate Classes'!$C$24:$H$45,6,0)), "", VLOOKUP($B26, '3. Rate Classes'!$C$24:$H$45,6,0)) -> kWh | F26: =VLOOKUP($B26, '9. Adj Network to Current WS'!$B$25:$R$47, 17,0) -> 0.005793014632 | H26: =VLOOKUP('9. Adj Network to Current WS'!$B26, '4. RRR Data'!$B$27:$M$49,11,0) -> 59829221.16 | J26: =VLOOKUP('9. Adj Network to Current WS'!$B26, '4. RRR Data'!$B$27:$M$49,12,0) -> 0 | L26: =IF(F26="", "", IF(D26="kWh", F26*H26, F26*J26)) -> 346591.5536 | N26: 0.1472153632 | P26: =IF(ISERROR('8. Forecast Wholesale'!$F$113*N26), "", '8. Forecast Wholesale'!$F$113*N26) -> 363585.9103 | R26: 0.006077062399
B27: =IF('3. Rate Classes'!Q26=1,'3. Rate Classes'!C26, 0) -> General Service 50 to 4,999 kW | D27: =IF(ISERROR(VLOOKUP($B27, '3. Rate Classes'!$C$24:$H$45,6,0)), "", VLOOKUP($B27, '3. Rate Classes'!$C$24:$H$45,6,0)) -> kW | F27: =VLOOKUP($B27, '9. Adj Network to Current WS'!$B$25:$R$47, 17,0) -> 2.48000954 | H27: =VLOOKUP('9. Adj Network to Current WS'!$B27, '4. RRR Data'!$B$27:$M$49,11,0) -> 117120197 | J27: =VLOOKUP('9. Adj Network to Current WS'!$B27, '4. RRR Data'!$B$27:$M$49,12,0) -> 332490 | L27: 824578.3719 | N27: 0.3502410928 | P27: =IF(ISERROR('8. Forecast Wholesale'!$F$113*N27), "", '8. Forecast Wholesale'!$F$113*N27) -> 865009.7639 | R27: 2.601611369
B28: =IF('3. Rate Classes'!Q27=1,'3. Rate Classes'!C27, 0) -> Unmetered Scattered Load | D28: =IF(ISERROR(VLOOKUP($B28, '3. Rate Classes'!$C$24:$H$45,6,0)), "", VLOOKUP($B28, '3. Rate Classes'!$C$24:$H$45,6,0)) -> kWh | F28: =VLOOKUP($B28, '9. Adj Network to Current WS'!$B$25:$R$47, 17,0) -> 0.005793014632 | H28: =VLOOKUP('9. Adj Network to Current WS'!$B28, '4. RRR Data'!$B$27:$M$49,11,0) -> 416500.776 | J28: =VLOOKUP('9. Adj Network to Current WS'!$B28, '4. RRR Data'!$B$27:$M$49,12,0) -> 0 | L28: 2412.79509 | N28: 0.001024838897 | P28: =IF(ISERROR('8. Forecast Wholesale'!$F$113*N28), "", '8. Forecast Wholesale'!$F$113*N28) -> 2531.101205 | R28: 0.006077062399
B29: =IF('3. Rate Classes'!Q28=1,'3. Rate Classes'!C28, 0) -> Sentinel Lighting | D29: =IF(ISERROR(VLOOKUP($B29, '3. Rate Classes'!$C$24:$H$45,6,0)), "", VLOOKUP($B29, '3. Rate Classes'!$C$24:$H$45,6,0)) -> kW | F29: =VLOOKUP($B29, '9. Adj Network to Current WS'!$B$25:$R$47, 17,0) -> 1.800329116 | H29: =VLOOKUP('9. Adj Network to Current WS'!$B29, '4. RRR Data'!$B$27:$M$49,11,0) -> 361875 | J29: =VLOOKUP('9. Adj Network to Current WS'!$B29, '4. RRR Data'!$B$27:$M$49,12,0) -> 1003 | L29: 1805.730104 | N29: 0.0007669869916 | P29: =IF(ISERROR('8. Forecast Wholesale'!$F$113*N29), "", '8. Forecast Wholesale'!$F$113*N29) -> 1894.270119 | R29: 1.888604306
B30: =IF('3. Rate Classes'!Q29=1,'3. Rate Classes'!C29, 0) -> Street Lighting | D30: =IF(ISERROR(VLOOKUP($B30, '3. Rate Classes'!$C$24:$H$45,6,0)), "", VLOOKUP($B30, '3. Rate Classes'!$C$24:$H$45,6,0)) -> kW | F30: =VLOOKUP($B30, '9. Adj Network to Current WS'!$B$25:$R$47, 17,0) -> 1.791240076 | H30: =VLOOKUP('9. Adj Network to Current WS'!$B30, '4. RRR Data'!$B$27:$M$49,11,0) -> 2398127 | J30: =VLOOKUP('9. Adj Network to Current WS'!$B30, '4. RRR Data'!$B$27:$M$49,12,0) -> 6665 | L30: 11938.61511 | N30: 0.005070947461 | P30: =IF(ISERROR('8. Forecast Wholesale'!$F$113*N30), "", '8. Forecast Wholesale'!$F$113*N30) -> 12523.99892 | R30: 1.879069605
B31: =IF('3. Rate Classes'!Q30=1,'3. Rate Classes'!C30, 0) -> 0 | D31: =IF(ISERROR(VLOOKUP($B31, '3. Rate Classes'!$C$24:$H$45,6,0)), "", VLOOKUP($B31, '3. Rate Classes'!$C$24:$H$45,6,0)) ->  | F31: =VLOOKUP($B31, '9. Adj Network to Current WS'!$B$25:$R$47, 17,0) ->  | H31: =VLOOKUP('9. Adj Network to Current WS'!$B31, '4. RRR Data'!$B$27:$M$49,11,0) -> 0 | J31: =VLOOKUP('9. Adj Network to Current WS'!$B31, '4. RRR Data'!$B$27:$M$49,12,0) -> 0 | P31: =IF(ISERROR('8. Forecast Wholesale'!$F$113*N31), "", '8. Forecast Wholesale'!$F$113*N31) -> 
B32: =IF('3. Rate Classes'!Q31=1,'3. Rate Classes'!C31, 0) -> 0 | D32: =IF(ISERROR(VLOOKUP($B32, '3. Rate Classes'!$C$24:$H$45,6,0)), "", VLOOKUP($B32, '3. Rate Classes'!$C$24:$H$45,6,0)) ->  | F32: =VLOOKUP($B32, '9. Adj Network to Current WS'!$B$25:$R$47, 17,0) ->  | H32: =VLOOKUP('9. Adj Network to Current WS'!$B32, '4. RRR Data'!$B$27:$M$49,11,0) -> 0 | J32: =VLOOKUP('9. Adj Network to Current WS'!$B32, '4. RRR Data'!$B$27:$M$49,12,0) -> 0 | P32: =IF(ISERROR('8. Forecast Wholesale'!$F$113*N32), "", '8. Forecast Wholesale'!$F$113*N32) -> 
B33: =IF('3. Rate Classes'!Q32=1,'3. Rate Classes'!C32, 0) -> 0 | D33: =IF(ISERROR(VLOOKUP($B33, '3. Rate Classes'!$C$24:$H$45,6,0)), "", VLOOKUP($B33, '3. Rate Classes'!$C$24:$H$45,6,0)) ->  | F33: =VLOOKUP($B33, '9. Adj Network to Current WS'!$B$25:$R$47, 17,0) ->  | H33: =VLOOKUP('9. Adj Network to Current WS'!$B33, '4. RRR Data'!$B$27:$M$49,11,0) -> 0 | J33: =VLOOKUP('9. Adj Network to Current WS'!$B33, '4. RRR Data'!$B$27:$M$49,12,0) -> 0 | P33: =IF(ISERROR('8. Forecast Wholesale'!$F$113*N33), "", '8. Forecast Wholesale'!$F$113*N33) -> 
B34: =IF('3. Rate Classes'!Q33=1,'3. Rate Classes'!C33, 0) -> 0 | D34: =IF(ISERROR(VLOOKUP($B34, '3. Rate Classes'!$C$24:$H$45,6,0)), "", VLOOKUP($B34, '3. Rate Classes'!$C$24:$H$45,6,0)) ->  | F34: =VLOOKUP($B34, '9. Adj Network to Current WS'!$B$25:$R$47, 17,0) ->  | H34: =VLOOKUP('9. Adj Network to Current WS'!$B34, '4. RRR Data'!$B$27:$M$49,11,0) -> 0 | J34: =VLOOKUP('9. Adj Network to Current WS'!$B34, '4. RRR Data'!$B$27:$M$49,12,0) -> 0 | P34: =IF(ISERROR('8. Forecast Wholesale'!$F$113*N34), "", '8. Forecast Wholesale'!$F$113*N34) -> 
B35: =IF('3. Rate Classes'!Q34=1,'3. Rate Classes'!C34, 0) -> 0 | D35: =IF(ISERROR(VLOOKUP($B35, '3. Rate Classes'!$C$24:$H$45,6,0)), "", VLOOKUP($B35, '3. Rate Classes'!$C$24:$H$45,6,0)) ->  | F35: =VLOOKUP($B35, '9. Adj Network to Current WS'!$B$25:$R$47, 17,0) ->  | H35: =VLOOKUP('9. Adj Network to Current WS'!$B35, '4. RRR Data'!$B$27:$M$49,11,0) -> 0 | J35: =VLOOKUP('9. Adj Network to Current WS'!$B35, '4. RRR Data'!$B$27:$M$49,12,0) -> 0 | P35: =IF(ISERROR('8. Forecast Wholesale'!$F$113*N35), "", '8. Forecast Wholesale'!$F$113*N35) -> 
B36: =IF('3. Rate Classes'!Q35=1,'3. Rate Classes'!C35, 0) -> 0 | D36: =IF(ISERROR(VLOOKUP($B36, '3. Rate Classes'!$C$24:$H$45,6,0)), "", VLOOKUP($B36, '3. Rate Classes'!$C$24:$H$45,6,0)) ->  | F36: =VLOOKUP($B36, '9. Adj Network to Current WS'!$B$25:$R$47, 17,0) ->  | H36: =VLOOKUP('9. Adj Network to Current WS'!$B36, '4. RRR Data'!$B$27:$M$49,11,0) -> 0 | J36: =VLOOKUP('9. Adj Network to Current WS'!$B36, '4. RRR Data'!$B$27:$M$49,12,0) -> 0 | P36: =IF(ISERROR('8. Forecast Wholesale'!$F$113*N36), "", '8. Forecast Wholesale'!$F$113*N36) -> 
B37: =IF('3. Rate Classes'!Q36=1,'3. Rate Classes'!C36, 0) -> 0 | D37: =IF(ISERROR(VLOOKUP($B37, '3. Rate Classes'!$C$24:$H$45,6,0)), "", VLOOKUP($B37, '3. Rate Classes'!$C$24:$H$45,6,0)) ->  | F37: =VLOOKUP($B37, '9. Adj Network to Current WS'!$B$25:$R$47, 17,0) ->  | H37: =VLOOKUP('9. Adj Network to Current WS'!$B37, '4. RRR Data'!$B$27:$M$49,11,0) -> 0 | J37: =VLOOKUP('9. Adj Network to Current WS'!$B37, '4. RRR Data'!$B$27:$M$49,12,0) -> 0 | P37: =IF(ISERROR('8. Forecast Wholesale'!$F$113*N37), "", '8. Forecast Wholesale'!$F$113*N37) -> 
B38: =IF('3. Rate Classes'!Q37=1,'3. Rate Classes'!C37, 0) -> 0 | D38: =IF(ISERROR(VLOOKUP($B38, '3. Rate Classes'!$C$24:$H$45,6,0)), "", VLOOKUP($B38, '3. Rate Classes'!$C$24:$H$45,6,0)) ->  | F38: =VLOOKUP($B38, '9. Adj Network to Current WS'!$B$25:$R$47, 17,0) ->  | H38: =VLOOKUP('9. Adj Network to Current WS'!$B38, '4. RRR Data'!$B$27:$M$49,11,0) -> 0 | J38: =VLOOKUP('9. Adj Network to Current WS'!$B38, '4. RRR Data'!$B$27:$M$49,12,0) -> 0 | P38: =IF(ISERROR('8. Forecast Wholesale'!$F$113*N38), "", '8. Forecast Wholesale'!$F$113*N38) -> 
B39: =IF('3. Rate Classes'!Q38=1,'3. Rate Classes'!C38, 0) -> 0 | D39: =IF(ISERROR(VLOOKUP($B39, '3. Rate Classes'!$C$24:$H$45,6,0)), "", VLOOKUP($B39, '3. Rate Classes'!$C$24:$H$45,6,0)) ->  | F39: =VLOOKUP($B39, '9. Adj Network to Current WS'!$B$25:$R$47, 17,0) ->  | H39: =VLOOKUP('9. Adj Network to Current WS'!$B39, '4. RRR Data'!$B$27:$M$49,11,0) -> 0 | J39: =VLOOKUP('9. Adj Network to Current WS'!$B39, '4. RRR Data'!$B$27:$M$49,12,0) -> 0 | P39: =IF(ISERROR('8. Forecast Wholesale'!$F$113*N39), "", '8. Forecast Wholesale'!$F$113*N39) -> 
B40: =IF('3. Rate Classes'!Q39=1,'3. Rate Classes'!C39, 0) -> 0 | D40: =IF(ISERROR(VLOOKUP($B40, '3. Rate Classes'!$C$24:$H$45,6,0)), "", VLOOKUP($B40, '3. Rate Classes'!$C$24:$H$45,6,0)) ->  | F40: =VLOOKUP($B40, '9. Adj Network to Current WS'!$B$25:$R$47, 17,0) ->  | H40: =VLOOKUP('9. Adj Network to Current WS'!$B40, '4. RRR Data'!$B$27:$M$49,11,0) -> 0 | J40: =VLOOKUP('9. Adj Network to Current WS'!$B40, '4. RRR Data'!$B$27:$M$49,12,0) -> 0 | P40: =IF(ISERROR('8. Forecast Wholesale'!$F$113*N40), "", '8. Forecast Wholesale'!$F$113*N40) -> 
B41: =IF('3. Rate Classes'!Q40=1,'3. Rate Classes'!C40, 0) -> 0 | D41: =IF(ISERROR(VLOOKUP($B41, '3. Rate Classes'!$C$24:$H$45,6,0)), "", VLOOKUP($B41, '3. Rate Classes'!$C$24:$H$45,6,0)) ->  | F41: =VLOOKUP($B41, '9. Adj Network to Current WS'!$B$25:$R$47, 17,0) ->  | H41: =VLOOKUP('9. Adj Network to Current WS'!$B41, '4. RRR Data'!$B$27:$M$49,11,0) -> 0 | J41: =VLOOKUP('9. Adj Network to Current WS'!$B41, '4. RRR Data'!$B$27:$M$49,12,0) -> 0 | P41: =IF(ISERROR('8. Forecast Wholesale'!$F$113*N41), "", '8. Forecast Wholesale'!$F$113*N41) -> 
B42: =IF('3. Rate Classes'!Q41=1,'3. Rate Classes'!C41, 0) -> 0 | D42: =IF(ISERROR(VLOOKUP($B42, '3. Rate Classes'!$C$24:$H$45,6,0)), "", VLOOKUP($B42, '3. Rate Classes'!$C$24:$H$45,6,0)) ->  | F42: =VLOOKUP($B42, '9. Adj Network to Current WS'!$B$25:$R$47, 17,0) ->  | H42: =VLOOKUP('9. Adj Network to Current WS'!$B42, '4. RRR Data'!$B$27:$M$49,11,0) -> 0 | J42: =VLOOKUP('9. Adj Network to Current WS'!$B42, '4. RRR Data'!$B$27:$M$49,12,0) -> 0 | P42: =IF(ISERROR('8. Forecast Wholesale'!$F$113*N42), "", '8. Forecast Wholesale'!$F$113*N42) -> 
B43: =IF('3. Rate Classes'!Q42=1,'3. Rate Classes'!C42, 0) -> 0 | D43: =IF(ISERROR(VLOOKUP($B43, '3. Rate Classes'!$C$24:$H$45,6,0)), "", VLOOKUP($B43, '3. Rate Classes'!$C$24:$H$45,6,0)) ->  | F43: =VLOOKUP($B43, '9. Adj Network to Current WS'!$B$25:$R$47, 17,0) ->  | H43: =VLOOKUP('9. Adj Network to Current WS'!$B43, '4. RRR Data'!$B$27:$M$49,11,0) -> 0 | J43: =VLOOKUP('9. Adj Network to Current WS'!$B43, '4. RRR Data'!$B$27:$M$49,12,0) -> 0 | P43: =IF(ISERROR('8. Forecast Wholesale'!$F$113*N43), "", '8. Forecast Wholesale'!$F$113*N43) -> 
B44: =IF('3. Rate Classes'!Q43=1,'3. Rate Classes'!C43, 0) -> 0 | D44: =IF(ISERROR(VLOOKUP($B44, '3. Rate Classes'!$C$24:$H$45,6,0)), "", VLOOKUP($B44, '3. Rate Classes'!$C$24:$H$45,6,0)) ->  | F44: =VLOOKUP($B44, '9. Adj Network to Current WS'!$B$25:$R$47, 17,0) ->  | H44: =VLOOKUP('9. Adj Network to Current WS'!$B44, '4. RRR Data'!$B$27:$M$49,11,0) -> 0 | J44: =VLOOKUP('9. Adj Network to Current WS'!$B44, '4. RRR Data'!$B$27:$M$49,12,0) -> 0 | P44: =IF(ISERROR('8. Forecast Wholesale'!$F$113*N44), "", '8. Forecast Wholesale'!$F$113*N44) -> 
B45: =IF('3. Rate Classes'!Q44=1,'3. Rate Classes'!C44, 0) -> 0 | D45: =IF(ISERROR(VLOOKUP($B45, '3. Rate Classes'!$C$24:$H$45,6,0)), "", VLOOKUP($B45, '3. Rate Classes'!$C$24:$H$45,6,0)) ->  | F45: =VLOOKUP($B45, '9. Adj Network to Current WS'!$B$25:$R$47, 17,0) ->  | H45: =VLOOKUP('9. Adj Network to Current WS'!$B45, '4. RRR Data'!$B$27:$M$49,11,0) -> 0 | J45: =VLOOKUP('9. Adj Network to Current WS'!$B45, '4. RRR Data'!$B$27:$M$49,12,0) -> 0 | P45: =IF(ISERROR('8. Forecast Wholesale'!$F$113*N45), "", '8. Forecast Wholesale'!$F$113*N45) -> 
B46: =IF('3. Rate Classes'!Q45=1,'3. Rate Classes'!C45, 0) -> 0 | D46: =IF(ISERROR(VLOOKUP($B46, '3. Rate Classes'!$C$24:$H$45,6,0)), "", VLOOKUP($B46, '3. Rate Classes'!$C$24:$H$45,6,0)) ->  | F46: =VLOOKUP($B46, '9. Adj Network to Current WS'!$B$25:$R$47, 17,0) ->  | H46: =VLOOKUP('9. Adj Network to Current WS'!$B46, '4. RRR Data'!$B$27:$M$49,11,0) -> 0 | J46: =VLOOKUP('9. Adj Network to Current WS'!$B46, '4. RRR Data'!$B$27:$M$49,12,0) -> 0 | P46: =IF(ISERROR('8. Forecast Wholesale'!$F$113*N46), "", '8. Forecast Wholesale'!$F$113*N46) -> 
L49: =SUM(L25:L46) -> 2354316.466

Sheet 12. Adj Conn. to Forecast WS
B13: The purpose of this sheet is to update the re-aligned RTS Connection Rates to recover forecast wholesale connection costs.
B19: Rate Class
B22: Rate Class | D22: Unit | F22: Adjusted RTSR-Connection | H22: Loss Adjusted Billed kWh | J22: Loss Adjusted Billed kW | L22: Billed Amount | N22: Billed Amount % | P22: Forecast Wholesale Billing | R22: Proposed RTSR Connection
B25: =IF('3. Rate Classes'!Q24=1,'3. Rate Classes'!C24, 0) -> Residential | D25: =IF(ISERROR(VLOOKUP($B25, '3. Rate Classes'!$C$24:$H$45,6,0)), "", VLOOKUP($B25, '3. Rate Classes'!$C$24:$H$45,6,0)) -> kWh | F25: =VLOOKUP($B25, '10. Adj Conn. to Current WS'!$B$25:$R$47, 17,0) -> 0.004899059668 | H25: =VLOOKUP('9. Adj Network to Current WS'!$B25, '4. RRR Data'!$B$27:$M$49,11,0) -> 179753321 | J25: =VLOOKUP('9. Adj Network to Current WS'!$B25, '4. RRR Data'!$B$27:$M$49,12,0) -> 0 | L25: =IF(F25="", "", IF(D25="kWh", F25*H25, F25*J25)) -> 880622.2452 | N25: =IF(ISERROR(L25/$L$49), "", L25/$L$49) -> 0.4907501283 | P25: =IF(ISERROR('8. Forecast Wholesale'!$P$117*N25), "", '8. Forecast Wholesale'!$P$117*N25) -> 940713.9722 | R25: =IF(D25="","",IF(D25="kWh",IF(H25<>0,P25/H25,),IF(J25<>0,P25/J25,0))) -> 0.005233360736
B26: =IF('3. Rate Classes'!Q25=1,'3. Rate Classes'!C25, 0) -> General Service Less Than 50 kW | D26: =IF(ISERROR(VLOOKUP($B26, '3. Rate Classes'!$C$24:$H$45,6,0)), "", VLOOKUP($B26, '3. Rate Classes'!$C$24:$H$45,6,0)) -> kWh | F26: =VLOOKUP($B26, '10. Adj Conn. to Current WS'!$B$25:$R$47, 17,0) -> 0.004490804696 | H26: =VLOOKUP('9. Adj Network to Current WS'!$B26, '4. RRR Data'!$B$27:$M$49,11,0) -> 59829221.16 | J26: =VLOOKUP('9. Adj Network to Current WS'!$B26, '4. RRR Data'!$B$27:$M$49,12,0) -> 0 | L26: 268681.3473 | N26: 0.1497298148 | P26: =IF(ISERROR('8. Forecast Wholesale'!$P$117*N26), "", '8. Forecast Wholesale'!$P$117*N26) -> 287015.5721 | R26: 0.004797247341
B27: =IF('3. Rate Classes'!Q26=1,'3. Rate Classes'!C26, 0) -> General Service 50 to 4,999 kW | D27: =IF(ISERROR(VLOOKUP($B27, '3. Rate Classes'!$C$24:$H$45,6,0)), "", VLOOKUP($B27, '3. Rate Classes'!$C$24:$H$45,6,0)) -> kW | F27: =VLOOKUP($B27, '10. Adj Conn. to Current WS'!$B$25:$R$47, 17,0) -> 1.903080554 | H27: =VLOOKUP('9. Adj Network to Current WS'!$B27, '4. RRR Data'!$B$27:$M$49,11,0) -> 117120197 | J27: =VLOOKUP('9. Adj Network to Current WS'!$B27, '4. RRR Data'!$B$27:$M$49,12,0) -> 332490 | L27: 632755.2533 | N27: 0.3526196657 | P27: =IF(ISERROR('8. Forecast Wholesale'!$P$117*N27), "", '8. Forecast Wholesale'!$P$117*N27) -> 675933.0814 | R27: 2.032942589
B28: =IF('3. Rate Classes'!Q27=1,'3. Rate Classes'!C27, 0) -> Unmetered Scattered Load | D28: =IF(ISERROR(VLOOKUP($B28, '3. Rate Classes'!$C$24:$H$45,6,0)), "", VLOOKUP($B28, '3. Rate Classes'!$C$24:$H$45,6,0)) -> kWh | F28: =VLOOKUP($B28, '10. Adj Conn. to Current WS'!$B$25:$R$47, 17,0) -> 0.004490804696 | H28: =VLOOKUP('9. Adj Network to Current WS'!$B28, '4. RRR Data'!$B$27:$M$49,11,0) -> 416500.776 | J28: =VLOOKUP('9. Adj Network to Current WS'!$B28, '4. RRR Data'!$B$27:$M$49,12,0) -> 0 | L28: 1870.423641 | N28: 0.001042343237 | P28: =IF(ISERROR('8. Forecast Wholesale'!$P$117*N28), "", '8. Forecast Wholesale'!$P$117*N28) -> 1998.05724 | R28: 0.004797247341
B29: =IF('3. Rate Classes'!Q28=1,'3. Rate Classes'!C28, 0) -> Sentinel Lighting | D29: =IF(ISERROR(VLOOKUP($B29, '3. Rate Classes'!$C$24:$H$45,6,0)), "", VLOOKUP($B29, '3. Rate Classes'!$C$24:$H$45,6,0)) -> kW | F29: =VLOOKUP($B29, '10. Adj Conn. to Current WS'!$B$25:$R$47, 17,0) -> 1.395721687 | H29: =VLOOKUP('9. Adj Network to Current WS'!$B29, '4. RRR Data'!$B$27:$M$49,11,0) -> 361875 | J29: =VLOOKUP('9. Adj Network to Current WS'!$B29, '4. RRR Data'!$B$27:$M$49,12,0) -> 1003 | L29: 1399.908852 | N29: 0.0007801363779 | P29: =IF(ISERROR('8. Forecast Wholesale'!$P$117*N29), "", '8. Forecast Wholesale'!$P$117*N29) -> 1495.435556 | R29: 1.490962668
B30: =IF('3. Rate Classes'!Q29=1,'3. Rate Classes'!C29, 0) -> Street Lighting | D30: =IF(ISERROR(VLOOKUP($B30, '3. Rate Classes'!$C$24:$H$45,6,0)), "", VLOOKUP($B30, '3. Rate Classes'!$C$24:$H$45,6,0)) -> kW | F30: =VLOOKUP($B30, '10. Adj Conn. to Current WS'!$B$25:$R$47, 17,0) -> 1.367143839 | H30: =VLOOKUP('9. Adj Network to Current WS'!$B30, '4. RRR Data'!$B$27:$M$49,11,0) -> 2398127 | J30: =VLOOKUP('9. Adj Network to Current WS'!$B30, '4. RRR Data'!$B$27:$M$49,12,0) -> 6665 | L30: 9112.013685 | N30: 0.005077911567 | P30: =IF(ISERROR('8. Forecast Wholesale'!$P$117*N30), "", '8. Forecast Wholesale'!$P$117*N30) -> 9733.797477 | R30: 1.46043473
B31: =IF('3. Rate Classes'!Q30=1,'3. Rate Classes'!C30, 0) -> 0 | D31: =IF(ISERROR(VLOOKUP($B31, '3. Rate Classes'!$C$24:$H$45,6,0)), "", VLOOKUP($B31, '3. Rate Classes'!$C$24:$H$45,6,0)) ->  | F31: =VLOOKUP($B31, '10. Adj Conn. to Current WS'!$B$25:$R$47, 17,0) ->  | H31: =VLOOKUP('9. Adj Network to Current WS'!$B31, '4. RRR Data'!$B$27:$M$49,11,0) -> 0 | J31: =VLOOKUP('9. Adj Network to Current WS'!$B31, '4. RRR Data'!$B$27:$M$49,12,0) -> 0 | P31: =IF(ISERROR('8. Forecast Wholesale'!$P$117*N31), "", '8. Forecast Wholesale'!$P$117*N31) -> 
B32: =IF('3. Rate Classes'!Q31=1,'3. Rate Classes'!C31, 0) -> 0 | D32: =IF(ISERROR(VLOOKUP($B32, '3. Rate Classes'!$C$24:$H$45,6,0)), "", VLOOKUP($B32, '3. Rate Classes'!$C$24:$H$45,6,0)) ->  | F32: =VLOOKUP($B32, '10. Adj Conn. to Current WS'!$B$25:$R$47, 17,0) ->  | H32: =VLOOKUP('9. Adj Network to Current WS'!$B32, '4. RRR Data'!$B$27:$M$49,11,0) -> 0 | J32: =VLOOKUP('9. Adj Network to Current WS'!$B32, '4. RRR Data'!$B$27:$M$49,12,0) -> 0 | P32: =IF(ISERROR('8. Forecast Wholesale'!$P$117*N32), "", '8. Forecast Wholesale'!$P$117*N32) -> 
B33: =IF('3. Rate Classes'!Q32=1,'3. Rate Classes'!C32, 0) -> 0 | D33: =IF(ISERROR(VLOOKUP($B33, '3. Rate Classes'!$C$24:$H$45,6,0)), "", VLOOKUP($B33, '3. Rate Classes'!$C$24:$H$45,6,0)) ->  | F33: =VLOOKUP($B33, '10. Adj Conn. to Current WS'!$B$25:$R$47, 17,0) ->  | H33: =VLOOKUP('9. Adj Network to Current WS'!$B33, '4. RRR Data'!$B$27:$M$49,11,0) -> 0 | J33: =VLOOKUP('9. Adj Network to Current WS'!$B33, '4. RRR Data'!$B$27:$M$49,12,0) -> 0 | P33: =IF(ISERROR('8. Forecast Wholesale'!$P$117*N33), "", '8. Forecast Wholesale'!$P$117*N33) -> 
B34: =IF('3. Rate Classes'!Q33=1,'3. Rate Classes'!C33, 0) -> 0 | D34: =IF(ISERROR(VLOOKUP($B34, '3. Rate Classes'!$C$24:$H$45,6,0)), "", VLOOKUP($B34, '3. Rate Classes'!$C$24:$H$45,6,0)) ->  | F34: =VLOOKUP($B34, '10. Adj Conn. to Current WS'!$B$25:$R$47, 17,0) ->  | H34: =VLOOKUP('9. Adj Network to Current WS'!$B34, '4. RRR Data'!$B$27:$M$49,11,0) -> 0 | J34: =VLOOKUP('9. Adj Network to Current WS'!$B34, '4. RRR Data'!$B$27:$M$49,12,0) -> 0 | P34: =IF(ISERROR('8. Forecast Wholesale'!$P$117*N34), "", '8. Forecast Wholesale'!$P$117*N34) -> 
B35: =IF('3. Rate Classes'!Q34=1,'3. Rate Classes'!C34, 0) -> 0 | D35: =IF(ISERROR(VLOOKUP($B35, '3. Rate Classes'!$C$24:$H$45,6,0)), "", VLOOKUP($B35, '3. Rate Classes'!$C$24:$H$45,6,0)) ->  | F35: =VLOOKUP($B35, '10. Adj Conn. to Current WS'!$B$25:$R$47, 17,0) ->  | H35: =VLOOKUP('9. Adj Network to Current WS'!$B35, '4. RRR Data'!$B$27:$M$49,11,0) -> 0 | J35: =VLOOKUP('9. Adj Network to Current WS'!$B35, '4. RRR Data'!$B$27:$M$49,12,0) -> 0 | P35: =IF(ISERROR('8. Forecast Wholesale'!$P$117*N35), "", '8. Forecast Wholesale'!$P$117*N35) -> 
B36: =IF('3. Rate Classes'!Q35=1,'3. Rate Classes'!C35, 0) -> 0 | D36: =IF(ISERROR(VLOOKUP($B36, '3. Rate Classes'!$C$24:$H$45,6,0)), "", VLOOKUP($B36, '3. Rate Classes'!$C$24:$H$45,6,0)) ->  | F36: =VLOOKUP($B36, '10. Adj Conn. to Current WS'!$B$25:$R$47, 17,0) ->  | H36: =VLOOKUP('9. Adj Network to Current WS'!$B36, '4. RRR Data'!$B$27:$M$49,11,0) -> 0 | J36: =VLOOKUP('9. Adj Network to Current WS'!$B36, '4. RRR Data'!$B$27:$M$49,12,0) -> 0 | P36: =IF(ISERROR('8. Forecast Wholesale'!$P$117*N36), "", '8. Forecast Wholesale'!$P$117*N36) -> 
B37: =IF('3. Rate Classes'!Q36=1,'3. Rate Classes'!C36, 0) -> 0 | D37: =IF(ISERROR(VLOOKUP($B37, '3. Rate Classes'!$C$24:$H$45,6,0)), "", VLOOKUP($B37, '3. Rate Classes'!$C$24:$H$45,6,0)) ->  | F37: =VLOOKUP($B37, '10. Adj Conn. to Current WS'!$B$25:$R$47, 17,0) ->  | H37: =VLOOKUP('9. Adj Network to Current WS'!$B37, '4. RRR Data'!$B$27:$M$49,11,0) -> 0 | J37: =VLOOKUP('9. Adj Network to Current WS'!$B37, '4. RRR Data'!$B$27:$M$49,12,0) -> 0 | P37: =IF(ISERROR('8. Forecast Wholesale'!$P$117*N37), "", '8. Forecast Wholesale'!$P$117*N37) -> 
B38: =IF('3. Rate Classes'!Q37=1,'3. Rate Classes'!C37, 0) -> 0 | D38: =IF(ISERROR(VLOOKUP($B38, '3. Rate Classes'!$C$24:$H$45,6,0)), "", VLOOKUP($B38, '3. Rate Classes'!$C$24:$H$45,6,0)) ->  | F38: =VLOOKUP($B38, '10. Adj Conn. to Current WS'!$B$25:$R$47, 17,0) ->  | H38: =VLOOKUP('9. Adj Network to Current WS'!$B38, '4. RRR Data'!$B$27:$M$49,11,0) -> 0 | J38: =VLOOKUP('9. Adj Network to Current WS'!$B38, '4. RRR Data'!$B$27:$M$49,12,0) -> 0 | P38: =IF(ISERROR('8. Forecast Wholesale'!$P$117*N38), "", '8. Forecast Wholesale'!$P$117*N38) -> 
B39: =IF('3. Rate Classes'!Q38=1,'3. Rate Classes'!C38, 0) -> 0 | D39: =IF(ISERROR(VLOOKUP($B39, '3. Rate Classes'!$C$24:$H$45,6,0)), "", VLOOKUP($B39, '3. Rate Classes'!$C$24:$H$45,6,0)) ->  | F39: =VLOOKUP($B39, '10. Adj Conn. to Current WS'!$B$25:$R$47, 17,0) ->  | H39: =VLOOKUP('9. Adj Network to Current WS'!$B39, '4. RRR Data'!$B$27:$M$49,11,0) -> 0 | J39: =VLOOKUP('9. Adj Network to Current WS'!$B39, '4. RRR Data'!$B$27:$M$49,12,0) -> 0 | P39: =IF(ISERROR('8. Forecast Wholesale'!$P$117*N39), "", '8. Forecast Wholesale'!$P$117*N39) -> 
B40: =IF('3. Rate Classes'!Q39=1,'3. Rate Classes'!C39, 0) -> 0 | D40: =IF(ISERROR(VLOOKUP($B40, '3. Rate Classes'!$C$24:$H$45,6,0)), "", VLOOKUP($B40, '3. Rate Classes'!$C$24:$H$45,6,0)) ->  | F40: =VLOOKUP($B40, '10. Adj Conn. to Current WS'!$B$25:$R$47, 17,0) ->  | H40: =VLOOKUP('9. Adj Network to Current WS'!$B40, '4. RRR Data'!$B$27:$M$49,11,0) -> 0 | J40: =VLOOKUP('9. Adj Network to Current WS'!$B40, '4. RRR Data'!$B$27:$M$49,12,0) -> 0 | P40: =IF(ISERROR('8. Forecast Wholesale'!$P$117*N40), "", '8. Forecast Wholesale'!$P$117*N40) -> 
B41: =IF('3. Rate Classes'!Q40=1,'3. Rate Classes'!C40, 0) -> 0 | D41: =IF(ISERROR(VLOOKUP($B41, '3. Rate Classes'!$C$24:$H$45,6,0)), "", VLOOKUP($B41, '3. Rate Classes'!$C$24:$H$45,6,0)) ->  | F41: =VLOOKUP($B41, '10. Adj Conn. to Current WS'!$B$25:$R$47, 17,0) ->  | H41: =VLOOKUP('9. Adj Network to Current WS'!$B41, '4. RRR Data'!$B$27:$M$49,11,0) -> 0 | J41: =VLOOKUP('9. Adj Network to Current WS'!$B41, '4. RRR Data'!$B$27:$M$49,12,0) -> 0 | P41: =IF(ISERROR('8. Forecast Wholesale'!$P$117*N41), "", '8. Forecast Wholesale'!$P$117*N41) -> 
B42: =IF('3. Rate Classes'!Q41=1,'3. Rate Classes'!C41, 0) -> 0 | D42: =IF(ISERROR(VLOOKUP($B42, '3. Rate Classes'!$C$24:$H$45,6,0)), "", VLOOKUP($B42, '3. Rate Classes'!$C$24:$H$45,6,0)) ->  | F42: =VLOOKUP($B42, '10. Adj Conn. to Current WS'!$B$25:$R$47, 17,0) ->  | H42: =VLOOKUP('9. Adj Network to Current WS'!$B42, '4. RRR Data'!$B$27:$M$49,11,0) -> 0 | J42: =VLOOKUP('9. Adj Network to Current WS'!$B42, '4. RRR Data'!$B$27:$M$49,12,0) -> 0 | P42: =IF(ISERROR('8. Forecast Wholesale'!$P$117*N42), "", '8. Forecast Wholesale'!$P$117*N42) -> 
B43: =IF('3. Rate Classes'!Q42=1,'3. Rate Classes'!C42, 0) -> 0 | D43: =IF(ISERROR(VLOOKUP($B43, '3. Rate Classes'!$C$24:$H$45,6,0)), "", VLOOKUP($B43, '3. Rate Classes'!$C$24:$H$45,6,0)) ->  | F43: =VLOOKUP($B43, '10. Adj Conn. to Current WS'!$B$25:$R$47, 17,0) ->  | H43: =VLOOKUP('9. Adj Network to Current WS'!$B43, '4. RRR Data'!$B$27:$M$49,11,0) -> 0 | J43: =VLOOKUP('9. Adj Network to Current WS'!$B43, '4. RRR Data'!$B$27:$M$49,12,0) -> 0 | P43: =IF(ISERROR('8. Forecast Wholesale'!$P$117*N43), "", '8. Forecast Wholesale'!$P$117*N43) -> 
B44: =IF('3. Rate Classes'!Q43=1,'3. Rate Classes'!C43, 0) -> 0 | D44: =IF(ISERROR(VLOOKUP($B44, '3. Rate Classes'!$C$24:$H$45,6,0)), "", VLOOKUP($B44, '3. Rate Classes'!$C$24:$H$45,6,0)) ->  | F44: =VLOOKUP($B44, '10. Adj Conn. to Current WS'!$B$25:$R$47, 17,0) ->  | H44: =VLOOKUP('9. Adj Network to Current WS'!$B44, '4. RRR Data'!$B$27:$M$49,11,0) -> 0 | J44: =VLOOKUP('9. Adj Network to Current WS'!$B44, '4. RRR Data'!$B$27:$M$49,12,0) -> 0 | P44: =IF(ISERROR('8. Forecast Wholesale'!$P$117*N44), "", '8. Forecast Wholesale'!$P$117*N44) -> 
B45: =IF('3. Rate Classes'!Q44=1,'3. Rate Classes'!C44, 0) -> 0 | D45: =IF(ISERROR(VLOOKUP($B45, '3. Rate Classes'!$C$24:$H$45,6,0)), "", VLOOKUP($B45, '3. Rate Classes'!$C$24:$H$45,6,0)) ->  | F45: =VLOOKUP($B45, '10. Adj Conn. to Current WS'!$B$25:$R$47, 17,0) ->  | H45: =VLOOKUP('9. Adj Network to Current WS'!$B45, '4. RRR Data'!$B$27:$M$49,11,0) -> 0 | J45: =VLOOKUP('9. Adj Network to Current WS'!$B45, '4. RRR Data'!$B$27:$M$49,12,0) -> 0 | P45: =IF(ISERROR('8. Forecast Wholesale'!$P$117*N45), "", '8. Forecast Wholesale'!$P$117*N45) -> 
B46: =IF('3. Rate Classes'!Q45=1,'3. Rate Classes'!C45, 0) -> 0 | D46: =IF(ISERROR(VLOOKUP($B46, '3. Rate Classes'!$C$24:$H$45,6,0)), "", VLOOKUP($B46, '3. Rate Classes'!$C$24:$H$45,6,0)) ->  | F46: =VLOOKUP($B46, '10. Adj Conn. to Current WS'!$B$25:$R$47, 17,0) ->  | H46: =VLOOKUP('9. Adj Network to Current WS'!$B46, '4. RRR Data'!$B$27:$M$49,11,0) -> 0 | J46: =VLOOKUP('9. Adj Network to Current WS'!$B46, '4. RRR Data'!$B$27:$M$49,12,0) -> 0 | P46: =IF(ISERROR('8. Forecast Wholesale'!$P$117*N46), "", '8. Forecast Wholesale'!$P$117*N46) -> 
L49: =SUM(L25:L46) -> 1794441.192

Sheet 13. Final 2014 RTS Rates
B13: For Cost of Service Applicants, please enter the following Proposed RTS rates into your rates model. For IRM applicants, please enter these rates into the 2013 IRM Rate Generator, Sheet 11 "Proposed Rates", column I. Please note that the rate descriptions for the RTSRs are transfered automatically from Sheet 4 to Sheet 11, Column A.
B23: Rate Class | D23: Unit | F23: Proposed RTSR Network | H23: Proposed RTSR Connection
B26: =IF('3. Rate Classes'!Q24=1,'3. Rate Classes'!C24, 0) -> Residential | D26: =IF(ISERROR(VLOOKUP($B26, '3. Rate Classes'!$C$24:$H$45,6,0)), "", VLOOKUP($B26, '3. Rate Classes'!$C$24:$H$45,6,0)) -> kWh | F26: =VLOOKUP($B26, '11. Adj Network to Forecast WS'!$B$25:$R$48,17,0) -> 0.006810500965 | H26: =VLOOKUP($B26, '12. Adj Conn. to Forecast WS'!$B$25:$R$48,17,0) -> 0.005233360736
B27: =IF('3. Rate Classes'!Q25=1,'3. Rate Classes'!C25, 0) -> General Service Less Than 50 kW | D27: =IF(ISERROR(VLOOKUP($B27, '3. Rate Classes'!$C$24:$H$45,6,0)), "", VLOOKUP($B27, '3. Rate Classes'!$C$24:$H$45,6,0)) -> kWh | F27: =VLOOKUP($B27, '11. Adj Network to Forecast WS'!$B$25:$R$48,17,0) -> 0.006077062399 | H27: =VLOOKUP($B27, '12. Adj Conn. to Forecast WS'!$B$25:$R$48,17,0) -> 0.004797247341
B28: =IF('3. Rate Classes'!Q26=1,'3. Rate Classes'!C26, 0) -> General Service 50 to 4,999 kW | D28: =IF(ISERROR(VLOOKUP($B28, '3. Rate Classes'!$C$24:$H$45,6,0)), "", VLOOKUP($B28, '3. Rate Classes'!$C$24:$H$45,6,0)) -> kW | F28: =VLOOKUP($B28, '11. Adj Network to Forecast WS'!$B$25:$R$48,17,0) -> 2.601611369 | H28: =VLOOKUP($B28, '12. Adj Conn. to Forecast WS'!$B$25:$R$48,17,0) -> 2.032942589
B29: =IF('3. Rate Classes'!Q27=1,'3. Rate Classes'!C27, 0) -> Unmetered Scattered Load | D29: =IF(ISERROR(VLOOKUP($B29, '3. Rate Classes'!$C$24:$H$45,6,0)), "", VLOOKUP($B29, '3. Rate Classes'!$C$24:$H$45,6,0)) -> kWh | F29: =VLOOKUP($B29, '11. Adj Network to Forecast WS'!$B$25:$R$48,17,0) -> 0.006077062399 | H29: =VLOOKUP($B29, '12. Adj Conn. to Forecast WS'!$B$25:$R$48,17,0) -> 0.004797247341
B30: =IF('3. Rate Classes'!Q28=1,'3. Rate Classes'!C28, 0) -> Sentinel Lighting | D30: =IF(ISERROR(VLOOKUP($B30, '3. Rate Classes'!$C$24:$H$45,6,0)), "", VLOOKUP($B30, '3. Rate Classes'!$C$24:$H$45,6,0)) -> kW | F30: =VLOOKUP($B30, '11. Adj Network to Forecast WS'!$B$25:$R$48,17,0) -> 1.888604306 | H30: =VLOOKUP($B30, '12. Adj Conn. to Forecast WS'!$B$25:$R$48,17,0) -> 1.490962668
B31: =IF('3. Rate Classes'!Q29=1,'3. Rate Classes'!C29, 0) -> Street Lighting | D31: =IF(ISERROR(VLOOKUP($B31, '3. Rate Classes'!$C$24:$H$45,6,0)), "", VLOOKUP($B31, '3. Rate Classes'!$C$24:$H$45,6,0)) -> kW | F31: =VLOOKUP($B31, '11. Adj Network to Forecast WS'!$B$25:$R$48,17,0) -> 1.879069605 | H31: =VLOOKUP($B31, '12. Adj Conn. to Forecast WS'!$B$25:$R$48,17,0) -> 1.46043473
B32: =IF('3. Rate Classes'!Q30=1,'3. Rate Classes'!C30, 0) -> 0 | D32: =IF(ISERROR(VLOOKUP($B32, '3. Rate Classes'!$C$24:$H$45,6,0)), "", VLOOKUP($B32, '3. Rate Classes'!$C$24:$H$45,6,0)) ->  | F32: =VLOOKUP($B32, '11. Adj Network to Forecast WS'!$B$25:$R$48,17,0) ->  | H32: =VLOOKUP($B32, '12. Adj Conn. to Forecast WS'!$B$25:$R$48,17,0) -> 
B33: =IF('3. Rate Classes'!Q31=1,'3. Rate Classes'!C31, 0) -> 0 | D33: =IF(ISERROR(VLOOKUP($B33, '3. Rate Classes'!$C$24:$H$45,6,0)), "", VLOOKUP($B33, '3. Rate Classes'!$C$24:$H$45,6,0)) ->  | F33: =VLOOKUP($B33, '11. Adj Network to Forecast WS'!$B$25:$R$48,17,0) ->  | H33: =VLOOKUP($B33, '12. Adj Conn. to Forecast WS'!$B$25:$R$48,17,0) -> 
B34: =IF('3. Rate Classes'!Q32=1,'3. Rate Classes'!C32, 0) -> 0 | D34: =IF(ISERROR(VLOOKUP($B34, '3. Rate Classes'!$C$24:$H$45,6,0)), "", VLOOKUP($B34, '3. Rate Classes'!$C$24:$H$45,6,0)) ->  | F34: =VLOOKUP($B34, '11. Adj Network to Forecast WS'!$B$25:$R$48,17,0) ->  | H34: =VLOOKUP($B34, '12. Adj Conn. to Forecast WS'!$B$25:$R$48,17,0) -> 
B35: =IF('3. Rate Classes'!Q33=1,'3. Rate Classes'!C33, 0) -> 0 | D35: =IF(ISERROR(VLOOKUP($B35, '3. Rate Classes'!$C$24:$H$45,6,0)), "", VLOOKUP($B35, '3. Rate Classes'!$C$24:$H$45,6,0)) ->  | F35: =VLOOKUP($B35, '11. Adj Network to Forecast WS'!$B$25:$R$48,17,0) ->  | H35: =VLOOKUP($B35, '12. Adj Conn. to Forecast WS'!$B$25:$R$48,17,0) -> 
B36: =IF('3. Rate Classes'!Q34=1,'3. Rate Classes'!C34, 0) -> 0 | D36: =IF(ISERROR(VLOOKUP($B36, '3. Rate Classes'!$C$24:$H$45,6,0)), "", VLOOKUP($B36, '3. Rate Classes'!$C$24:$H$45,6,0)) ->  | F36: =VLOOKUP($B36, '11. Adj Network to Forecast WS'!$B$25:$R$48,17,0) ->  | H36: =VLOOKUP($B36, '12. Adj Conn. to Forecast WS'!$B$25:$R$48,17,0) -> 
B37: =IF('3. Rate Classes'!Q35=1,'3. Rate Classes'!C35, 0) -> 0 | D37: =IF(ISERROR(VLOOKUP($B37, '3. Rate Classes'!$C$24:$H$45,6,0)), "", VLOOKUP($B37, '3. Rate Classes'!$C$24:$H$45,6,0)) ->  | F37: =VLOOKUP($B37, '11. Adj Network to Forecast WS'!$B$25:$R$48,17,0) ->  | H37: =VLOOKUP($B37, '12. Adj Conn. to Forecast WS'!$B$25:$R$48,17,0) -> 
B38: =IF('3. Rate Classes'!Q36=1,'3. Rate Classes'!C36, 0) -> 0 | D38: =IF(ISERROR(VLOOKUP($B38, '3. Rate Classes'!$C$24:$H$45,6,0)), "", VLOOKUP($B38, '3. Rate Classes'!$C$24:$H$45,6,0)) ->  | F38: =VLOOKUP($B38, '11. Adj Network to Forecast WS'!$B$25:$R$48,17,0) ->  | H38: =VLOOKUP($B38, '12. Adj Conn. to Forecast WS'!$B$25:$R$48,17,0) -> 
B39: =IF('3. Rate Classes'!Q37=1,'3. Rate Classes'!C37, 0) -> 0 | D39: =IF(ISERROR(VLOOKUP($B39, '3. Rate Classes'!$C$24:$H$45,6,0)), "", VLOOKUP($B39, '3. Rate Classes'!$C$24:$H$45,6,0)) ->  | F39: =VLOOKUP($B39, '11. Adj Network to Forecast WS'!$B$25:$R$48,17,0) ->  | H39: =VLOOKUP($B39, '12. Adj Conn. to Forecast WS'!$B$25:$R$48,17,0) -> 
B40: =IF('3. Rate Classes'!Q38=1,'3. Rate Classes'!C38, 0) -> 0 | D40: =IF(ISERROR(VLOOKUP($B40, '3. Rate Classes'!$C$24:$H$45,6,0)), "", VLOOKUP($B40, '3. Rate Classes'!$C$24:$H$45,6,0)) ->  | F40: =VLOOKUP($B40, '11. Adj Network to Forecast WS'!$B$25:$R$48,17,0) ->  | H40: =VLOOKUP($B40, '12. Adj Conn. to Forecast WS'!$B$25:$R$48,17,0) -> 
B41: =IF('3. Rate Classes'!Q39=1,'3. Rate Classes'!C39, 0) -> 0 | D41: =IF(ISERROR(VLOOKUP($B41, '3. Rate Classes'!$C$24:$H$45,6,0)), "", VLOOKUP($B41, '3. Rate Classes'!$C$24:$H$45,6,0)) ->  | F41: =VLOOKUP($B41, '11. Adj Network to Forecast WS'!$B$25:$R$48,17,0) ->  | H41: =VLOOKUP($B41, '12. Adj Conn. to Forecast WS'!$B$25:$R$48,17,0) -> 
B42: =IF('3. Rate Classes'!Q40=1,'3. Rate Classes'!C40, 0) -> 0 | D42: =IF(ISERROR(VLOOKUP($B42, '3. Rate Classes'!$C$24:$H$45,6,0)), "", VLOOKUP($B42, '3. Rate Classes'!$C$24:$H$45,6,0)) ->  | F42: =VLOOKUP($B42, '11. Adj Network to Forecast WS'!$B$25:$R$48,17,0) ->  | H42: =VLOOKUP($B42, '12. Adj Conn. to Forecast WS'!$B$25:$R$48,17,0) -> 
B43: =IF('3. Rate Classes'!Q41=1,'3. Rate Classes'!C41, 0) -> 0 | D43: =IF(ISERROR(VLOOKUP($B43, '3. Rate Classes'!$C$24:$H$45,6,0)), "", VLOOKUP($B43, '3. Rate Classes'!$C$24:$H$45,6,0)) ->  | F43: =VLOOKUP($B43, '11. Adj Network to Forecast WS'!$B$25:$R$48,17,0) ->  | H43: =VLOOKUP($B43, '12. Adj Conn. to Forecast WS'!$B$25:$R$48,17,0) -> 
B44: =IF('3. Rate Classes'!Q42=1,'3. Rate Classes'!C42, 0) -> 0 | D44: =IF(ISERROR(VLOOKUP($B44, '3. Rate Classes'!$C$24:$H$45,6,0)), "", VLOOKUP($B44, '3. Rate Classes'!$C$24:$H$45,6,0)) ->  | F44: =VLOOKUP($B44, '11. Adj Network to Forecast WS'!$B$25:$R$48,17,0) ->  | H44: =VLOOKUP($B44, '12. Adj Conn. to Forecast WS'!$B$25:$R$48,17,0) -> 
B45: =IF('3. Rate Classes'!Q43=1,'3. Rate Classes'!C43, 0) -> 0 | D45: =IF(ISERROR(VLOOKUP($B45, '3. Rate Classes'!$C$24:$H$45,6,0)), "", VLOOKUP($B45, '3. Rate Classes'!$C$24:$H$45,6,0)) ->  | F45: =VLOOKUP($B45, '11. Adj Network to Forecast WS'!$B$25:$R$48,17,0) ->  | H45: =VLOOKUP($B45, '12. Adj Conn. to Forecast WS'!$B$25:$R$48,17,0) -> 
B46: =IF('3. Rate Classes'!Q44=1,'3. Rate Classes'!C44, 0) -> 0 | D46: =IF(ISERROR(VLOOKUP($B46, '3. Rate Classes'!$C$24:$H$45,6,0)), "", VLOOKUP($B46, '3. Rate Classes'!$C$24:$H$45,6,0)) ->  | F46: =VLOOKUP($B46, '11. Adj Network to Forecast WS'!$B$25:$R$48,17,0) ->  | H46: =VLOOKUP($B46, '12. Adj Conn. to Forecast WS'!$B$25:$R$48,17,0) -> 
B47: =IF('3. Rate Classes'!Q45=1,'3. Rate Classes'!C45, 0) -> 0 | D47: =IF(ISERROR(VLOOKUP($B47, '3. Rate Classes'!$C$24:$H$45,6,0)), "", VLOOKUP($B47, '3. Rate Classes'!$C$24:$H$45,6,0)) ->  | F47: =VLOOKUP($B47, '11. Adj Network to Forecast WS'!$B$25:$R$48,17,0) ->  | H47: =VLOOKUP($B47, '12. Adj Conn. to Forecast WS'!$B$25:$R$48,17,0) -> 

Sheet hidden1 (hidden)
A1: =IF('3. Rate Classes'!Q24=1, '3. Rate Classes'!C24, "") -> Residential | B1: 1
A2: =IF('3. Rate Classes'!Q25=1, '3. Rate Classes'!C25, "") -> General Service Less Than 50 kW | B2: 2
A3: =IF('3. Rate Classes'!Q26=1, '3. Rate Classes'!C26, "") -> General Service 50 to 4,999 kW | B3: 3
A4: =IF('3. Rate Classes'!Q27=1, '3. Rate Classes'!C27, "") -> Unmetered Scattered Load | B4: 4
A5: =IF('3. Rate Classes'!Q28=1, '3. Rate Classes'!C28, "") -> Sentinel Lighting | B5: 5
A6: =IF('3. Rate Classes'!Q29=1, '3. Rate Classes'!C29, "") -> Street Lighting | B6: 6
A7: =IF('3. Rate Classes'!Q30=1, '3. Rate Classes'!C30, "") ->  | B7: 7
A8: =IF('3. Rate Classes'!Q31=1, '3. Rate Classes'!C31, "") ->  | B8: 8
A9: =IF('3. Rate Classes'!Q32=1, '3. Rate Classes'!C32, "") ->  | B9: 9
A10: =IF('3. Rate Classes'!Q33=1, '3. Rate Classes'!C33, "") ->  | B10: 10
A11: =IF('3. Rate Classes'!Q34=1, '3. Rate Classes'!C34, "") ->  | B11: 11
A12: =IF('3. Rate Classes'!Q35=1, '3. Rate Classes'!C35, "") ->  | B12: 12
A13: =IF('3. Rate Classes'!Q36=1, '3. Rate Classes'!C36, "") ->  | B13: 13
A14: =IF('3. Rate Classes'!Q37=1, '3. Rate Classes'!C37, "") ->  | B14: 14
A15: =IF('3. Rate Classes'!Q38=1, '3. Rate Classes'!C38, "") ->  | B15: 15
A16: =IF('3. Rate Classes'!Q39=1, '3. Rate Classes'!C39, "") ->  | B16: 16
A17: =IF('3. Rate Classes'!Q40=1, '3. Rate Classes'!C40, "") ->  | B17: 17
A18: =IF('3. Rate Classes'!Q41=1, '3. Rate Classes'!C41, "") ->  | B18: 18
A19: =IF('3. Rate Classes'!Q42=1, '3. Rate Classes'!C42, "") ->  | B19: 19
A20: =IF('3. Rate Classes'!Q43=1, '3. Rate Classes'!C43, "") ->  | B20: 20
A21: =IF('3. Rate Classes'!Q44=1, '3. Rate Classes'!C44, "") ->  | B21: 21
A22: =IF('3. Rate Classes'!Q45=1, '3. Rate Classes'!C45, "") ->  | B22: 22
